Workbook

Sheet Cover
B3: ="WaterNSW - Rural water pricing annual update "&Outputs!$C$23 -> WaterNSW - Rural water pricing annual update 2022-23
B6: MODELLER: | D6: Bee Thompson
B7: email | D7: Bee_Thompson@ipart.nsw.gov.au
B11: WHAT IS THE PURPOSE OF MODEL?
B12: ="This model calculates "&Outputs!$C$23&" water entitlement and usage charges for the Murray Darling Basin (MDB) and the Fish River Water Supply Scheme (FRWS) based on updated demand forecasts." -> This model calculates 2022-23 water entitlement and usage charges for the Murray Darling Basin (MDB) and the Fish River Water Supply Scheme (FRWS) based on updated demand forecasts.
B14: ="For the "&'2021 Determination Revenue'!$C$13&" Determination, the forecast usage for each year of the determination period was calculated as the 20 year historical average to "&'2021 Determination Revenue'!$C$15&"." -> For the 2021 Determination, the forecast usage for each year of the determination period was calculated as the 20 year historical average to 2019-20.
B15: ="This model updates the 20-year historical average for "&Outputs!$C$23&" by using the 20 year average to "&Outputs!$C$24&". It then uses these updated forecasts to calculate new "&Outputs!$C$23&" charges." -> This model updates the 20-year historical average for 2022-23 by using the 20 year average to 2020-21. It then uses these updated forecasts to calculate new 2022-23 charges.
B17: HOW DOES THE MODEL WORK?
B18: In essence, the model calculates the entitlement and usage charges that would recover the allowed revenue for each of these charges, using the updated demand forecasts.
B19: The re-calculated charges include
C20: - | D20: WaterNSW entitlement and usage charges
C21: - | D21: MDBA/BRC entitlement and usage charges, and
C22: - | D22: FRWS access and usage charges
B24: ="All other inputs, assumptions and calculation methodologies are consistent with the "&'2021 Determination Revenue'!$C$13&" Determination." -> All other inputs, assumptions and calculation methodologies are consistent with the 2021 Determination.
B26: MODEL STRUCTURE
B27: The model comprises three sections
B28: (i) | C28: Inputs
C29: - | D29: Volumetric data, including actual volumes provided by WaterNSW ('Updated Volumes (2)') as part of Annual Review process
C30: - | D30: ="Maximum allowed revenue and other inputs assumptions consistent with the "&'2021 Determination Revenue'!$C$13&" Determination ('2021 Determination - revenue')" -> Maximum allowed revenue and other inputs assumptions consistent with the 2021 Determination ('2021 Determination - revenue')
C31: - | D31: ='2021 Determination Revenue'!$C$13&" Determination charges" -> 2021 Determination charges
B32: (ii) | C32: Outputs
C33: - | D33: showing calculated charges, indicative customer bills and revenue comparisons*.
B34: (iii) | C34: Detailed calculations
C35: - | D35: Usage and entitlement volumes, required revenue and entitlement premiums for the MDB valleys (MDB calcs)
C36: - | D36: Usage volumes, MAQ levels and required revenue for FRWS customers (FRWS calcs)
C37: ="* Comparisons of revenue using the "&'2021 Determination Revenue'!$C$13&" Determination charges versus the re-calculated charges and the updated "&Outputs!$C$23&" demand forecasts." -> * Comparisons of revenue using the 2021 Determination charges versus the re-calculated charges and the updated 2022-23 demand forecasts.
B39: ="Inflation to "&Outputs!$M$31 -> Inflation to $2022-23
B41: ="This model uses a two-step process to inflate prices in "&Outputs!$G$31&" to nominal prices" -> This model uses a two-step process to inflate prices in $2020-21 to nominal prices
C42: Step 1 | D42: ="Charges entered or calculated for "&Outputs!H29&" in "&Outputs!$H$31&" are inflated to $"&Outputs!$G$29&" then rounded to two decimal places." -> Charges entered or calculated for 2022-23 in $2020-21 are inflated to $2021-22 then rounded to two decimal places.
C43: Step 2 | D43: ="The $"&Outputs!$G$29&" charges calculated in step 1 are then inflated to "&Outputs!$M$31&" and rounded to 2 decimal places" -> The $2021-22 charges calculated in step 1 are then inflated to $2022-23 and rounded to 2 decimal places
B45: ="The model uses this method of indexation to maintain consistency with the "&'2021 Determination Revenue'!$C$13&" Determination, which published prices in $"&Outputs!$G$29&"" -> The model uses this method of indexation to maintain consistency with the 2021 Determination, which published prices in $2021-22
B47: COLOUR CODE
B48: This model uses standard IPART colour coding:
B50: Blue cells indicate inputs
B51: Blue font indicates IPART hard-coded values used that should not be changed
B52: Key outputs
B53: Pink font indicates calculation checks
B54: Red indicates assumptions made in calculations
B55: red double line means formula changes across row

Sheet Inputs>>
C5: Page intentionally left blank

Sheet 2021 Determination Revenue
B2: 2 ALLOWED REVENUE, SECURITY FACTORS AND VOLUMES FOR INDICATIVE CUSTOMER BILLS
B3: ="This worksheet records the required revenue that was calculated as part of our "&$C$13&" review of prices, as well as other inputs consistent with that review." -> This worksheet records the required revenue that was calculated as part of our 2021 review of prices, as well as other inputs consistent with that review.
B5: List of tables | G5: Row number
B6: =B18 -> TABLE 2.1 - INFLATION AS PER 2021 DETERMINATION | G6: =ROW(B18) -> 18
B7: =B35 -> TABLE 2.2 - REVENUE REQUIREMENT EXCLUDING MDBA/BRC REVENUE | G7: =ROW(B35) -> 35
B8: =B71 -> TABLE 2.3 - MDBA/BRC REVENUE REQUIREMENT | G8: =ROW(B71) -> 71
B9: =B101 -> TABLE 2.4 - SECURITY FACTORS | G9: =ROW(B101) -> 101
B10: =B120 -> TABLE 2.5 - CUSTOMER USAGE VOLUMES FOR CALCULATION OF BILLS | G10: =ROW(B120) -> 120
B13: Determination year | C13: 2021
B14: For prices from (FY) | C14: =G20 -> 2021-22
B15: Prices set using 20 year average volumes to | C15: =C13-2&"-"&RIGHT(C13-1,2) -> 2019-20
B18: TABLE 2.1 - INFLATION AS PER 2021 DETERMINATION
B19: Financial year ending 30 June | C19: =C$36 -> Units | E19: =F19-1 -> 2020 | F19: =C13 -> 2021 | G19: =F19+1 -> 2022 | H19: =G19+1 -> 2023 | I19: 2024 | J19: 2025
B20: Financial year | E20: =E19-1&"-"&RIGHT(E19,2) -> 2019-20 | F20: =F19-1&"-"&RIGHT(F19,2) -> 2020-21 | G20: =G19-1&"-"&RIGHT(G19,2) -> 2021-22 | H20: =H19-1&"-"&RIGHT(H19,2) -> 2022-23 | I20: =I19-1&"-"&RIGHT(I19,2) -> 2023-24 | J20: =J19-1&"-"&RIGHT(J19,2) -> 2024-25
B22: ="Inflation rate used to convert $"&F20&" prices to $"&G20&" prices" -> Inflation rate used to convert $2020-21 prices to $2021-22 prices | C22: % | G22: 0.011 | H22: (March-on-March, lagged by 1 year)
B23: check = 0 | G23: =ROUND(F26/E26,3)-G22-1 -> 0
B24: ="CPI calculations to convert $"&$F$20&" prices to nominal prices" -> CPI calculations to convert $2020-21 prices to nominal prices
B25: Forecast inflation rate when actual not available (not lagged) | E25: na | F25: na | J25: na
B26: CPI (actual to March, not lagged) | E26: 116.6 | F26: 117.9 | G26: 123.9 | J26: na
B27: CPI used in calculations | E27: =E26 -> 116.6 | F27: =F26 -> 117.9 | G27: =IF(ISBLANK(G26),F27*(1+G25),G26) -> 123.9 | H27: =IF(ISBLANK(H26),G27*(1+H25),H26) -> 123.9 | I27: 123.9 | J27: na
B29: ="Index for determination prices in $"&$G$20 -> Index for determination prices in $2021-22 | G29: 1 | H29: =ROUND(G27/$F27,3) -> 1.051 | I29: =ROUND(H27/$F27,3) -> 1.051 | J29: 1.051
B30: ="Index (CPI) from $"&$F$20&" (lagged to show inflator for prices in that year" -> Index (CPI) from $2020-21 (lagged to show inflator for prices in that year | C30: % | G30: =G29*(1+G22) -> 1.011 | H30: =ROUND(G27/$E27,3) -> 1.063 | I30: =ROUND(H27/$E27,3) -> 1.063 | J30: =ROUND(I27/$E27,3) -> 1.063
B31: Lagged year-on-year change (for information) | C31: % | G31: =ROUND(F27/E27-1,3) -> 0.011 | H31: =ROUND(G27/F27-1,3) -> 0.051 | I31: 0 | J31: 0
B32: check = TRUE | G32: =G31=G22 -> TRUE
B35: TABLE 2.2 - REVENUE REQUIREMENT EXCLUDING MDBA/BRC REVENUE
B36: =B20 -> Financial year | C36: Units | G36: =G$20 -> 2021-22 | H36: =H$20 -> 2022-23 | I36: =I$20 -> 2023-24 | J36: =J$20 -> 2024-25
G37: ="$" &$F$20 -> $2020-21 | H37: ='2021 Determination Revenue'!$G$37 -> $2020-21 | I37: ='2021 Determination Revenue'!$G$37 -> $2020-21 | J37: ='2021 Determination Revenue'!$G$37 -> $2020-21
B39: Revenue from WaterNSW charges (excluding MDBA/BRC charges and miscellaneous income)
B40: Source: 2021 review model, Price & Revenue worksheet, Table C2.4, U445:X453. Revenue from charges ignoring delayed implementation
B41: Border | C41: $'000 | G41: =H41 -> 1617.101619 | H41: 1617.101619 | I41: 1617.101619 | J41: 1617.101619
B42: Gwydir | C42: =C$41 -> $'000 | G42: 6248.131838 | H42: 6248.131838 | I42: 6248.131838 | J42: 6248.131838
B43: Namoi | C43: $'000 | G43: 7038.029797 | H43: 7038.029797 | I43: 7038.029797 | J43: 7038.029797
B44: Peel | C44: $'000 | G44: 1530.645685 | H44: 1530.645685 | I44: 1530.645685 | J44: 1530.645685
B45: Lachlan | C45: $'000 | G45: 9359.27687 | H45: 9359.27687 | I45: 9359.27687 | J45: 9359.27687
B46: Macquarie | C46: $'000 | G46: 8297.091737 | H46: 8297.091737 | I46: 8297.091737 | J46: 8297.091737
B47: Murray | C47: $'000 | G47: 6631.250988 | H47: 6631.250988 | I47: 6631.250988 | J47: 6631.250988
B48: Murrumbidgee | C48: $'000 | G48: 12538.11663 | H48: 12538.11663 | I48: 12538.11663 | J48: 12538.11663
B49: Lowbidgee | C49: $'000 | G49: 1272.981852 | H49: 1272.981852 | I49: 1272.981852 | J49: 1272.981852
B51: Revenue recovered from entitlement charges
B52: Source: 2021 review model, Price Scenario worksheet, Table 11.3, row 292-300.
B53: =B$41 -> Border | C53: =C$30 -> % | G53: 0.40360619 | H53: 0.4004870878 | I53: 0.4004870878 | J53: 0.4004870878
B54: =B$42 -> Gwydir | C54: % | G54: 0.4088703565 | H54: 0.400079048 | I54: 0.400079048 | J54: 0.400079048
B55: =B$43 -> Namoi | C55: % | G55: 0.4086520996 | H55: 0.4001110856 | I55: 0.4001110856 | J55: 0.4001110856
B56: =B$44 -> Peel | C56: % | G56: 0.7968204853 | H56: 0.800037565 | I56: 0.800037565 | J56: 0.800037565
B57: =B$45 -> Lachlan | C57: % | G57: 0.4056025782 | H57: 0.4001372101 | I57: 0.4001372101 | J57: 0.4001372101
B58: =B$46 -> Macquarie | C58: % | G58: 0.4051356299 | H58: 0.4001117928 | I58: 0.4001117928 | J58: 0.4001117928
B59: =B$47 -> Murray | C59: % | G59: 0.4033690931 | H59: 0.3973157917 | I59: 0.3973157917 | J59: 0.3973157917
B60: =B$48 -> Murrumbidgee | C60: % | G60: 0.4054172306 | H60: 0.399812477 | I60: 0.399812477 | J60: 0.399812477
B61: =B$49 -> Lowbidgee | C61: % | G61: 1 | H61: 1 | I61: 1 | J61: 1
B63: Fish River revenue requirement
B64: Source: 2021 review model, Prices & Revenue worksheet, Table C2.4, N498-O506 | G64: ignoring delayed implementation
B65: ='Updated Volumes'!B$31 -> Energy Australia | C65: =C$41 -> $'000 | G65: =H65 -> 4529.679801 | H65: 4529.679801 | I65: 4529.679801 | J65: 4529.679801
B66: ='Updated Volumes'!B$32 -> Minor customers (raw) | C66: =C$41 -> $'000 | G66: =H66 -> 41.17118573 | H66: 41.17118573 | I66: 41.17118573 | J66: 41.17118573
B67: ='Updated Volumes'!B$33 -> Minor customers (filtered) | C67: =C$41 -> $'000 | G67: 140.9038493 | H67: 140.9038493 | I67: 140.9038493 | J67: 140.9038493
B71: TABLE 2.3 - MDBA/BRC REVENUE REQUIREMENT
B72: =B$20 -> Financial year | C72: =C$36 -> Units | G72: =G$20 -> 2021-22 | H72: =H$20 -> 2022-23 | I72: =I$20 -> 2023-24 | J72: =J$20 -> 2024-25
G73: =G$37 -> $2020-21 | H73: =H$37 -> $2020-21 | I73: $2020-21 | J73: $2020-21
B74: MDBA/BRC Revenue requirement
B75: Source: 2021 review model, Prices & Revenue worksheet, Table C2.4, Column N-Q, row 543-551 | F75: ='2021 Determination Charges'!$I$49 -> D21/15629 | G75: ignoring delayed implementation
B76: =B$41 -> Border | C76: =C$41 -> $'000 | G76: =H76 -> 594.838886 | H76: 594.838886 | I76: 594.838886 | J76: 594.838886
B77: =B$42 -> Gwydir | C77: =C$41 -> $'000 | G77: 0 | H77: 0 | I77: 0 | J77: 0
B78: =B$43 -> Namoi | C78: $'000 | G78: 0 | H78: 0 | I78: 0 | J78: 0
B79: =B$44 -> Peel | C79: $'000 | G79: 0 | H79: 0 | I79: 0 | J79: 0
B80: =B$45 -> Lachlan | C80: $'000 | G80: 0 | H80: 0 | I80: 0 | J80: 0
B81: =B$46 -> Macquarie | C81: $'000 | G81: 0 | H81: 0 | I81: 0 | J81: 0
B82: =B$47 -> Murray | C82: $'000 | G82: 12613.79796 | H82: 12613.79796 | I82: 12613.79796 | J82: 12613.79796
B83: =B$48 -> Murrumbidgee | C83: $'000 | G83: 2797.557655 | H83: 2797.557655 | I83: 2797.557655 | J83: 2797.557655
B84: =B$49 -> Lowbidgee | C84: $'000 | G84: 0 | H84: 0 | I84: 0 | J84: 0
B86: MDBA/BRC Revenue recovered from entitlement charges
B87: Source: 2021 review model, Price Scenario worksheet, Table 11.6, Column N-Q, rows 412-414.
B88: =B$41 -> Border | C88: =C$30 -> % | G88: 0.8 | H88: 0.8 | I88: 0.8 | J88: 0.8
B89: =B$42 -> Gwydir | C89: % | G89: 0 | H89: 0 | I89: 0 | J89: 0
B90: =B$43 -> Namoi | C90: % | G90: 0 | H90: 0 | I90: 0 | J90: 0
B91: =B$44 -> Peel | C91: % | G91: 0 | H91: 0 | I91: 0 | J91: 0
B92: =B$45 -> Lachlan | C92: % | G92: 0 | H92: 0 | I92: 0 | J92: 0
B93: =B$46 -> Macquarie | C93: % | G93: 0 | H93: 0 | I93: 0 | J93: 0
B94: =B$47 -> Murray | C94: % | G94: 0.8 | H94: 0.8 | I94: 0.8 | J94: 0.8
B95: =B$48 -> Murrumbidgee | C95: % | G95: 0.8 | H95: 0.8 | I95: 0.8 | J95: 0.8
B96: =B$49 -> Lowbidgee | C96: % | G96: 0 | H96: 0 | I96: 0 | J96: 0
B101: TABLE 2.4 - SECURITY FACTORS
B102: =B$20 -> Financial year | C102: =C$36 -> Units | G102: =G$20 -> 2021-22 | H102: =H$20 -> 2022-23 | I102: =I$20 -> 2023-24 | J102: =J$20 -> 2024-25
B104: Note: This ratio reflects the relative security of supply between HS and GS entitlements and is used to calculate the high security premium.
B105: MDB Valleys
B106: Source: 2021 review model, Pricing inputs worksheet, Table 7.1, Column I, row 24-32. (The Security Factor is held constant over the Determination period)
B107: =B$41 -> Border | C107: # | G107: 1.25 | H107: 1.25 | I107: 1.25 | J107: 1.25
B108: =B$42 -> Gwydir | C108: =$C$107 -> # | G108: 1.397322188 | H108: 1.397322188 | I108: 1.397322188 | J108: 1.397322188
B109: =B$43 -> Namoi | C109: # | G109: 1.25 | H109: 1.25 | I109: 1.25 | J109: 1.25
B110: =B$44 -> Peel | C110: # | G110: 6.541945223 | H110: 6.541945223 | I110: 6.541945223 | J110: 6.541945223
B111: =B$45 -> Lachlan | C111: # | G111: 2.495217761 | H111: 2.495217761 | I111: 2.495217761 | J111: 2.495217761
B112: =B$46 -> Macquarie | C112: # | G112: 1.884834667 | H112: 1.884834667 | I112: 1.884834667 | J112: 1.884834667
B113: =B$47 -> Murray | C113: # | G113: 1.308492142 | H113: 1.308492142 | I113: 1.308492142 | J113: 1.308492142
B114: =B$48 -> Murrumbidgee | C114: # | G114: 1.692969071 | H114: 1.692969071 | I114: 1.692969071 | J114: 1.692969071
B115: =B$49 -> Lowbidgee | C115: # | G115: 0 | H115: 0 | I115: 0 | J115: 0
B120: TABLE 2.5 - CUSTOMER USAGE VOLUMES FOR CALCULATION OF BILLS
B121: =B$20 -> Financial year | C121: =C$36 -> Units | G121: =G$20 -> 2021-22 | H121: =H$20 -> 2022-23 | I121: =I$20 -> 2023-24 | J121: =J$20 -> 2024-25
B123: Note: Inputs in this table are assumptions that we use to calculate indicative customer bills.
B125: High Security entitlement level
B126: Small consumption customers | C126: ='Updated Volumes'!$C$31 -> kL | G126: 100 | H126: =G126 -> 100 | I126: =H126 -> 100 | J126: 100
B127: Medium consumption customers | C127: ='Updated Volumes'!$C$31 -> kL | G127: 500 | H127: =G127 -> 500 | I127: 500 | J127: 500
B128: Large consumption customers | C128: ='Updated Volumes'!$C$31 -> kL | G128: 1000 | H128: 1000 | I128: 1000 | J128: 1000
B130: High security usage rate
B131: =B$126 -> Small consumption customers | C131: =C$30 -> % | G131: 1 | H131: =G131 -> 1 | I131: =H131 -> 1 | J131: 1
B132: =B$127 -> Medium consumption customers | C132: =C$30 -> % | G132: 1 | H132: =G132 -> 1 | I132: 1 | J132: 1
B133: =B$128 -> Large consumption customers | C133: =C$30 -> % | G133: 1 | H133: =G133 -> 1 | I133: 1 | J133: 1
B135: General Security entitlement level
B136: =B$126 -> Small consumption customers | C136: ='Updated Volumes'!$C$31 -> kL | G136: 100 | H136: =G136 -> 100 | I136: =H136 -> 100 | J136: 100
B137: =B$127 -> Medium consumption customers | C137: ='Updated Volumes'!$C$31 -> kL | G137: 500 | H137: =G137 -> 500 | I137: 500 | J137: 500
B138: =B$128 -> Large consumption customers | C138: ='Updated Volumes'!$C$31 -> kL | G138: 1000 | H138: =G138 -> 1000 | I138: 1000 | J138: 1000
B140: General Security usage rate
B141: =B$126 -> Small consumption customers | C141: =C$30 -> % | G141: 0.6 | H141: =G141 -> 0.6 | I141: =H141 -> 0.6 | J141: 0.6
B142: =B$127 -> Medium consumption customers | C142: =C$30 -> % | G142: 0.6 | H142: =G142 -> 0.6 | I142: 0.6 | J142: 0.6
B143: =B$128 -> Large consumption customers | C143: =C$30 -> % | G143: 0.6 | H143: =G143 -> 0.6 | I143: 0.6 | J143: 0.6

Sheet 2021 Determination Charges
B2: ="3. "&'2021 Determination Revenue'!$F$19&" DETERMINATION CHARGES, "&$G$14 -> 3. 2021 DETERMINATION CHARGES, $2020-21
B3: ="This worksheet records the charges under the "&'2021 Determination Revenue'!$C$13&" Determination." -> This worksheet records the charges under the 2021 Determination.
B5: List of tables | F5: Row number
B6: =B12 -> TABLE 3.1 - WaterNSW CHARGES | F6: =ROW(B12) -> 12
B7: =B52 -> TABLE 3.2 - MDBA AND BRC USAGE AND ENTITLEMENT CHARGES | F7: =ROW(B52) -> 52
B8: =B75 -> TABLE 3.3 - FISH RIVER WATER SUPPLY SCHEME CHARGES | F8: =ROW(B75) -> 75
B12: TABLE 3.1 - WaterNSW CHARGES
B13: ='2021 Determination Revenue'!B$20 -> Financial year | C13: ='2021 Determination Revenue'!C$36 -> Units | G13: ='2021 Determination Revenue'!G$20 -> 2021-22 | H13: ='2021 Determination Revenue'!H$20 -> 2022-23 | I13: ='2021 Determination Revenue'!I$20 -> 2023-24 | J13: ='2021 Determination Revenue'!J$20 -> 2024-25 | L13: =G13 -> 2021-22 | M13: =H13 -> 2022-23 | N13: 2023-24 | O13: 2024-25
G14: ='2021 Determination Revenue'!$G$37 -> $2020-21 | H14: =G14 -> $2020-21 | I14: =H14 -> $2020-21 | J14: $2020-21 | L14: ="$"&L13 -> $2021-22 | M14: $2022-23 | N14: $2023-24 | O14: $2024-25
B16: Usage Charge
B17: ='2021 Determination Revenue'!$B$41 -> Border | C17: =Outputs!$C$33 -> $/ML | G17: 6.951963013 | H17: 6.951963013 | I17: 6.951963013 | J17: 6.951963013 | L17: =ROUND(G17*'2021 Determination Revenue'!$G$30,2) -> 7.03 | M17: =ROUND(ROUND(H17*'2021 Determination Revenue'!$G$30,2)*'2021 Determination Revenue'!H$29,2) -> 7.39 | N17: =ROUND(ROUND(I17*'2021 Determination Revenue'!$G$30,2)*'2021 Determination Revenue'!I$29,2) -> 7.39 | O17: =ROUND(ROUND(J17*'2021 Determination Revenue'!$G$30,2)*'2021 Determination Revenue'!J$29,2) -> 7.39
B18: ='2021 Determination Revenue'!$B$42 -> Gwydir | C18: =Outputs!$C$33 -> $/ML | G18: 17.00032167 | H18: 17.00032167 | I18: 17.00032167 | J18: 17.00032167 | L18: =ROUND(G18*'2021 Determination Revenue'!$G$30,2) -> 17.19 | M18: =ROUND(ROUND(H18*'2021 Determination Revenue'!$G$30,2)*'2021 Determination Revenue'!H$29,2) -> 18.07 | N18: =ROUND(ROUND(I18*'2021 Determination Revenue'!$G$30,2)*'2021 Determination Revenue'!I$29,2) -> 18.07 | O18: =ROUND(ROUND(J18*'2021 Determination Revenue'!$G$30,2)*'2021 Determination Revenue'!J$29,2) -> 18.07
B19: ='2021 Determination Revenue'!$B$43 -> Namoi | C19: =Outputs!$C$33 -> $/ML | G19: 30.541139 | H19: 30.541139 | I19: 30.541139 | J19: 30.541139 | L19: =ROUND(G19*'2021 Determination Revenue'!$G$30,2) -> 30.88 | M19: =ROUND(ROUND(H19*'2021 Determination Revenue'!$G$30,2)*'2021 Determination Revenue'!H$29,2) -> 32.45 | N19: =ROUND(ROUND(I19*'2021 Determination Revenue'!$G$30,2)*'2021 Determination Revenue'!I$29,2) -> 32.45 | O19: =ROUND(ROUND(J19*'2021 Determination Revenue'!$G$30,2)*'2021 Determination Revenue'!J$29,2) -> 32.45
B20: ='2021 Determination Revenue'!$B$44 -> Peel | C20: =Outputs!$C$33 -> $/ML | G20: 24.24338547 | H20: 24.24338547 | I20: 24.24338547 | J20: 24.24338547 | L20: =ROUND(G20*'2021 Determination Revenue'!$G$30,2) -> 24.51 | M20: =ROUND(ROUND(H20*'2021 Determination Revenue'!$G$30,2)*'2021 Determination Revenue'!H$29,2) -> 25.76 | N20: =ROUND(ROUND(I20*'2021 Determination Revenue'!$G$30,2)*'2021 Determination Revenue'!I$29,2) -> 25.76 | O20: =ROUND(ROUND(J20*'2021 Determination Revenue'!$G$30,2)*'2021 Determination Revenue'!J$29,2) -> 25.76
B21: ='2021 Determination Revenue'!$B$45 -> Lachlan | C21: =Outputs!$C$33 -> $/ML | G21: 30.83070827 | H21: 30.83070827 | I21: 30.83070827 | J21: 30.83070827 | L21: =ROUND(G21*'2021 Determination Revenue'!$G$30,2) -> 31.17 | M21: =ROUND(ROUND(H21*'2021 Determination Revenue'!$G$30,2)*'2021 Determination Revenue'!H$29,2) -> 32.76 | N21: =ROUND(ROUND(I21*'2021 Determination Revenue'!$G$30,2)*'2021 Determination Revenue'!I$29,2) -> 32.76 | O21: =ROUND(ROUND(J21*'2021 Determination Revenue'!$G$30,2)*'2021 Determination Revenue'!J$29,2) -> 32.76
B22: ='2021 Determination Revenue'!$B$46 -> Macquarie | C22: =Outputs!$C$33 -> $/ML | G22: 21.40375101 | H22: 21.40375101 | I22: 21.40375101 | J22: 21.40375101 | L22: =ROUND(G22*'2021 Determination Revenue'!$G$30,2) -> 21.64 | M22: =ROUND(ROUND(H22*'2021 Determination Revenue'!$G$30,2)*'2021 Determination Revenue'!H$29,2) -> 22.74 | N22: =ROUND(ROUND(I22*'2021 Determination Revenue'!$G$30,2)*'2021 Determination Revenue'!I$29,2) -> 22.74 | O22: =ROUND(ROUND(J22*'2021 Determination Revenue'!$G$30,2)*'2021 Determination Revenue'!J$29,2) -> 22.74
B23: ='2021 Determination Revenue'!$B$47 -> Murray | C23: =Outputs!$C$33 -> $/ML | G23: 2.897196979 | H23: 2.897196979 | I23: 2.897196979 | J23: 2.897196979 | L23: =ROUND(G23*'2021 Determination Revenue'!$G$30,2) -> 2.93 | M23: =ROUND(ROUND(H23*'2021 Determination Revenue'!$G$30,2)*'2021 Determination Revenue'!H$29,2) -> 3.08 | N23: =ROUND(ROUND(I23*'2021 Determination Revenue'!$G$30,2)*'2021 Determination Revenue'!I$29,2) -> 3.08 | O23: =ROUND(ROUND(J23*'2021 Determination Revenue'!$G$30,2)*'2021 Determination Revenue'!J$29,2) -> 3.08
B24: ='2021 Determination Revenue'!$B$48 -> Murrumbidgee | C24: =Outputs!$C$33 -> $/ML | G24: 4.914336975 | H24: 4.914336975 | I24: 4.914336975 | J24: 4.914336975 | L24: =ROUND(G24*'2021 Determination Revenue'!$G$30,2) -> 4.97 | M24: =ROUND(ROUND(H24*'2021 Determination Revenue'!$G$30,2)*'2021 Determination Revenue'!H$29,2) -> 5.22 | N24: =ROUND(ROUND(I24*'2021 Determination Revenue'!$G$30,2)*'2021 Determination Revenue'!I$29,2) -> 5.22 | O24: =ROUND(ROUND(J24*'2021 Determination Revenue'!$G$30,2)*'2021 Determination Revenue'!J$29,2) -> 5.22
B25: ='2021 Determination Revenue'!$B$49 -> Lowbidgee | C25: =Outputs!$C$33 -> $/ML | G25: 0 | H25: 0 | I25: 0 | J25: 0 | L25: =ROUND(G25*'2021 Determination Revenue'!$G$30,2) -> 0 | M25: =ROUND(ROUND(H25*'2021 Determination Revenue'!$G$30,2)*'2021 Determination Revenue'!H$29,2) -> 0 | N25: =ROUND(ROUND(I25*'2021 Determination Revenue'!$G$30,2)*'2021 Determination Revenue'!I$29,2) -> 0 | O25: =ROUND(ROUND(J25*'2021 Determination Revenue'!$G$30,2)*'2021 Determination Revenue'!J$29,2) -> 0
B27: General Security Entitlement (fixed)
B28: ='2021 Determination Revenue'!$B$41 -> Border | C28: =Outputs!$C$33 -> $/ML | G28: 2.382754219 | H28: 2.382754219 | I28: 2.382754219 | J28: 2.382754219 | L28: =ROUND(G28*'2021 Determination Revenue'!$G$30,2) -> 2.41 | M28: =ROUND(ROUND(H28*'2021 Determination Revenue'!$G$30,2)*'2021 Determination Revenue'!H$29,2) -> 2.53 | N28: =ROUND(ROUND(I28*'2021 Determination Revenue'!$G$30,2)*'2021 Determination Revenue'!I$29,2) -> 2.53 | O28: =ROUND(ROUND(J28*'2021 Determination Revenue'!$G$30,2)*'2021 Determination Revenue'!J$29,2) -> 2.53
B29: ='2021 Determination Revenue'!$B$42 -> Gwydir | C29: =Outputs!$C$33 -> $/ML | G29: 3.995423207 | H29: 3.995423207 | I29: 3.995423207 | J29: 3.995423207 | L29: =ROUND(G29*'2021 Determination Revenue'!$G$30,2) -> 4.04 | M29: =ROUND(ROUND(H29*'2021 Determination Revenue'!$G$30,2)*'2021 Determination Revenue'!H$29,2) -> 4.25 | N29: =ROUND(ROUND(I29*'2021 Determination Revenue'!$G$30,2)*'2021 Determination Revenue'!I$29,2) -> 4.25 | O29: =ROUND(ROUND(J29*'2021 Determination Revenue'!$G$30,2)*'2021 Determination Revenue'!J$29,2) -> 4.25
B30: ='2021 Determination Revenue'!$B$43 -> Namoi | C30: =Outputs!$C$33 -> $/ML | G30: 9.98824506 | H30: 9.98824506 | I30: 9.98824506 | J30: 9.98824506 | L30: =ROUND(G30*'2021 Determination Revenue'!$G$30,2) -> 10.1 | M30: =ROUND(ROUND(H30*'2021 Determination Revenue'!$G$30,2)*'2021 Determination Revenue'!H$29,2) -> 10.62 | N30: =ROUND(ROUND(I30*'2021 Determination Revenue'!$G$30,2)*'2021 Determination Revenue'!I$29,2) -> 10.62 | O30: =ROUND(ROUND(J30*'2021 Determination Revenue'!$G$30,2)*'2021 Determination Revenue'!J$29,2) -> 10.62
B31: ='2021 Determination Revenue'!$B$44 -> Peel | C31: =Outputs!$C$33 -> $/ML | G31: 5.752000874 | H31: 5.752000874 | I31: 5.752000874 | J31: 5.752000874 | L31: =ROUND(G31*'2021 Determination Revenue'!$G$30,2) -> 5.82 | M31: =ROUND(ROUND(H31*'2021 Determination Revenue'!$G$30,2)*'2021 Determination Revenue'!H$29,2) -> 6.12 | N31: =ROUND(ROUND(I31*'2021 Determination Revenue'!$G$30,2)*'2021 Determination Revenue'!I$29,2) -> 6.12 | O31: =ROUND(ROUND(J31*'2021 Determination Revenue'!$G$30,2)*'2021 Determination Revenue'!J$29,2) -> 6.12
B32: ='2021 Determination Revenue'!$B$45 -> Lachlan | C32: =Outputs!$C$33 -> $/ML | G32: 3.670163327 | H32: 3.670163327 | I32: 3.670163327 | J32: 3.670163327 | L32: =ROUND(G32*'2021 Determination Revenue'!$G$30,2) -> 3.71 | M32: =ROUND(ROUND(H32*'2021 Determination Revenue'!$G$30,2)*'2021 Determination Revenue'!H$29,2) -> 3.9 | N32: =ROUND(ROUND(I32*'2021 Determination Revenue'!$G$30,2)*'2021 Determination Revenue'!I$29,2) -> 3.9 | O32: =ROUND(ROUND(J32*'2021 Determination Revenue'!$G$30,2)*'2021 Determination Revenue'!J$29,2) -> 3.9
B33: ='2021 Determination Revenue'!$B$46 -> Macquarie | C33: =Outputs!$C$33 -> $/ML | G33: 3.90190304 | H33: 3.90190304 | I33: 3.90190304 | J33: 3.90190304 | L33: =ROUND(G33*'2021 Determination Revenue'!$G$30,2) -> 3.94 | M33: =ROUND(ROUND(H33*'2021 Determination Revenue'!$G$30,2)*'2021 Determination Revenue'!H$29,2) -> 4.14 | N33: =ROUND(ROUND(I33*'2021 Determination Revenue'!$G$30,2)*'2021 Determination Revenue'!I$29,2) -> 4.14 | O33: =ROUND(ROUND(J33*'2021 Determination Revenue'!$G$30,2)*'2021 Determination Revenue'!J$29,2) -> 4.14
B34: ='2021 Determination Revenue'!$B$47 -> Murray | C34: =Outputs!$C$33 -> $/ML | G34: 0.9823326053 | H34: 0.9823326053 | I34: 0.9823326053 | J34: 0.9823326053 | L34: =ROUND(G34*'2021 Determination Revenue'!$G$30,2) -> 0.99 | M34: =ROUND(ROUND(H34*'2021 Determination Revenue'!$G$30,2)*'2021 Determination Revenue'!H$29,2) -> 1.04 | N34: =ROUND(ROUND(I34*'2021 Determination Revenue'!$G$30,2)*'2021 Determination Revenue'!I$29,2) -> 1.04 | O34: =ROUND(ROUND(J34*'2021 Determination Revenue'!$G$30,2)*'2021 Determination Revenue'!J$29,2) -> 1.04
B35: ='2021 Determination Revenue'!$B$48 -> Murrumbidgee | C35: =Outputs!$C$33 -> $/ML | G35: 1.417164848 | H35: 1.417164848 | I35: 1.417164848 | J35: 1.417164848 | L35: =ROUND(G35*'2021 Determination Revenue'!$G$30,2) -> 1.43 | M35: =ROUND(ROUND(H35*'2021 Determination Revenue'!$G$30,2)*'2021 Determination Revenue'!H$29,2) -> 1.5 | N35: =ROUND(ROUND(I35*'2021 Determination Revenue'!$G$30,2)*'2021 Determination Revenue'!I$29,2) -> 1.5 | O35: =ROUND(ROUND(J35*'2021 Determination Revenue'!$G$30,2)*'2021 Determination Revenue'!J$29,2) -> 1.5
B36: ='2021 Determination Revenue'!$B$49 -> Lowbidgee | C36: =Outputs!$C$33 -> $/ML | G36: 1.704125639 | H36: 1.704125639 | I36: 1.704125639 | J36: 1.704125639 | L36: =ROUND(G36*'2021 Determination Revenue'!$G$30,2) -> 1.72 | M36: =ROUND(ROUND(H36*'2021 Determination Revenue'!$G$30,2)*'2021 Determination Revenue'!H$29,2) -> 1.81 | N36: =ROUND(ROUND(I36*'2021 Determination Revenue'!$G$30,2)*'2021 Determination Revenue'!I$29,2) -> 1.81 | O36: =ROUND(ROUND(J36*'2021 Determination Revenue'!$G$30,2)*'2021 Determination Revenue'!J$29,2) -> 1.81
B38: High Security Entitlement (fixed)
B39: ='2021 Determination Revenue'!$B$41 -> Border | C39: =Outputs!$C$33 -> $/ML | G39: 6.508920069 | H39: 6.508920069 | I39: 6.508920069 | J39: 6.508920069 | L39: =ROUND(G39*'2021 Determination Revenue'!$G$30,2) -> 6.58 | M39: =ROUND(ROUND(H39*'2021 Determination Revenue'!$G$30,2)*'2021 Determination Revenue'!H$29,2) -> 6.92 | N39: =ROUND(ROUND(I39*'2021 Determination Revenue'!$G$30,2)*'2021 Determination Revenue'!I$29,2) -> 6.92 | O39: =ROUND(ROUND(J39*'2021 Determination Revenue'!$G$30,2)*'2021 Determination Revenue'!J$29,2) -> 6.92
B40: ='2021 Determination Revenue'!$B$42 -> Gwydir | C40: =Outputs!$C$33 -> $/ML | G40: 17.21468309 | H40: 17.21468309 | I40: 17.21468309 | J40: 17.21468309 | L40: =ROUND(G40*'2021 Determination Revenue'!$G$30,2) -> 17.4 | M40: =ROUND(ROUND(H40*'2021 Determination Revenue'!$G$30,2)*'2021 Determination Revenue'!H$29,2) -> 18.29 | N40: =ROUND(ROUND(I40*'2021 Determination Revenue'!$G$30,2)*'2021 Determination Revenue'!I$29,2) -> 18.29 | O40: =ROUND(ROUND(J40*'2021 Determination Revenue'!$G$30,2)*'2021 Determination Revenue'!J$29,2) -> 18.29
B41: ='2021 Determination Revenue'!$B$43 -> Namoi | C41: =Outputs!$C$33 -> $/ML | G41: 28.61710191 | H41: 28.61710191 | I41: 28.61710191 | J41: 28.61710191 | L41: =ROUND(G41*'2021 Determination Revenue'!$G$30,2) -> 28.93 | M41: =ROUND(ROUND(H41*'2021 Determination Revenue'!$G$30,2)*'2021 Determination Revenue'!H$29,2) -> 30.41 | N41: =ROUND(ROUND(I41*'2021 Determination Revenue'!$G$30,2)*'2021 Determination Revenue'!I$29,2) -> 30.41 | O41: =ROUND(ROUND(J41*'2021 Determination Revenue'!$G$30,2)*'2021 Determination Revenue'!J$29,2) -> 30.41
B42: ='2021 Determination Revenue'!$B$44 -> Peel | C42: =Outputs!$C$33 -> $/ML | G42: 60.69634946 | H42: 60.69634946 | I42: 60.69634946 | J42: 60.69634946 | L42: =ROUND(G42*'2021 Determination Revenue'!$G$30,2) -> 61.36 | M42: =ROUND(ROUND(H42*'2021 Determination Revenue'!$G$30,2)*'2021 Determination Revenue'!H$29,2) -> 64.49 | N42: =ROUND(ROUND(I42*'2021 Determination Revenue'!$G$30,2)*'2021 Determination Revenue'!I$29,2) -> 64.49 | O42: =ROUND(ROUND(J42*'2021 Determination Revenue'!$G$30,2)*'2021 Determination Revenue'!J$29,2) -> 64.49
B43: ='2021 Determination Revenue'!$B$45 -> Lachlan | C43: =Outputs!$C$33 -> $/ML | G43: 24.82310317 | H43: 24.82310317 | I43: 24.82310317 | J43: 24.82310317 | L43: =ROUND(G43*'2021 Determination Revenue'!$G$30,2) -> 25.1 | M43: =ROUND(ROUND(H43*'2021 Determination Revenue'!$G$30,2)*'2021 Determination Revenue'!H$29,2) -> 26.38 | N43: =ROUND(ROUND(I43*'2021 Determination Revenue'!$G$30,2)*'2021 Determination Revenue'!I$29,2) -> 26.38 | O43: =ROUND(ROUND(J43*'2021 Determination Revenue'!$G$30,2)*'2021 Determination Revenue'!J$29,2) -> 26.38
B44: ='2021 Determination Revenue'!$B$46 -> Macquarie | C44: =Outputs!$C$33 -> $/ML | G44: 19.95603855 | H44: 19.95603855 | I44: 19.95603855 | J44: 19.95603855 | L44: =ROUND(G44*'2021 Determination Revenue'!$G$30,2) -> 20.18 | M44: =ROUND(ROUND(H44*'2021 Determination Revenue'!$G$30,2)*'2021 Determination Revenue'!H$29,2) -> 21.21 | N44: =ROUND(ROUND(I44*'2021 Determination Revenue'!$G$30,2)*'2021 Determination Revenue'!I$29,2) -> 21.21 | O44: =ROUND(ROUND(J44*'2021 Determination Revenue'!$G$30,2)*'2021 Determination Revenue'!J$29,2) -> 21.21
B45: ='2021 Determination Revenue'!$B$47 -> Murray | C45: =Outputs!$C$33 -> $/ML | G45: 2.230521001 | H45: 2.230521001 | I45: 2.230521001 | J45: 2.230521001 | L45: =ROUND(G45*'2021 Determination Revenue'!$G$30,2) -> 2.26 | M45: =ROUND(ROUND(H45*'2021 Determination Revenue'!$G$30,2)*'2021 Determination Revenue'!H$29,2) -> 2.38 | N45: =ROUND(ROUND(I45*'2021 Determination Revenue'!$G$30,2)*'2021 Determination Revenue'!I$29,2) -> 2.38 | O45: =ROUND(ROUND(J45*'2021 Determination Revenue'!$G$30,2)*'2021 Determination Revenue'!J$29,2) -> 2.38
B46: ='2021 Determination Revenue'!$B$48 -> Murrumbidgee | C46: =Outputs!$C$33 -> $/ML | G46: 4.124045744 | H46: 4.124045744 | I46: 4.124045744 | J46: 4.124045744 | L46: =ROUND(G46*'2021 Determination Revenue'!$G$30,2) -> 4.17 | M46: =ROUND(ROUND(H46*'2021 Determination Revenue'!$G$30,2)*'2021 Determination Revenue'!H$29,2) -> 4.38 | N46: =ROUND(ROUND(I46*'2021 Determination Revenue'!$G$30,2)*'2021 Determination Revenue'!I$29,2) -> 4.38 | O46: =ROUND(ROUND(J46*'2021 Determination Revenue'!$G$30,2)*'2021 Determination Revenue'!J$29,2) -> 4.38
B47: ='2021 Determination Revenue'!$B$49 -> Lowbidgee | C47: =Outputs!$C$33 -> $/ML | G47: 0 | H47: 0 | I47: 0 | J47: 0 | L47: =ROUND(G47*'2021 Determination Revenue'!$G$30,2) -> 0 | M47: =ROUND(ROUND(H47*'2021 Determination Revenue'!$G$30,2)*'2021 Determination Revenue'!H$29,2) -> 0 | N47: =ROUND(ROUND(I47*'2021 Determination Revenue'!$G$30,2)*'2021 Determination Revenue'!I$29,2) -> 0 | O47: =ROUND(ROUND(J47*'2021 Determination Revenue'!$G$30,2)*'2021 Determination Revenue'!J$29,2) -> 0
B49: Source: | C49: 2021 Review pricing model, Price Scenario worksheet | H49: Table 11.3 (from row 162) | I49: D21/15629
B52: TABLE 3.2 - MDBA AND BRC USAGE AND ENTITLEMENT CHARGES
B53: ='2021 Determination Revenue'!B$20 -> Financial year | C53: ='2021 Determination Revenue'!C$36 -> Units | G53: =G$13 -> 2021-22 | H53: =H$13 -> 2022-23 | I53: 2023-24 | J53: 2024-25 | L53: =L$13 -> 2021-22 | M53: =M$13 -> 2022-23 | N53: =N$13 -> 2023-24 | O53: =O$13 -> 2024-25
G54: =G$14 -> $2020-21 | H54: =H$14 -> $2020-21 | I54: $2020-21 | J54: $2020-21 | L54: =L$14 -> $2021-22 | M54: =M$14 -> $2022-23 | N54: =N$14 -> $2023-24 | O54: =O$14 -> $2024-25
B56: Usage charges
B57: ='2021 Determination Revenue'!$B$41 -> Border | C57: =Outputs!$C$33 -> $/ML | G57: 0.8531212502 | H57: 0.8531212502 | I57: 0.8531212502 | J57: 0.8531212502 | L57: =ROUND(G57*'2021 Determination Revenue'!$G$30,2) -> 0.86 | M57: =ROUND(ROUND(H57*'2021 Determination Revenue'!$G$30,2)*'2021 Determination Revenue'!H$29,2) -> 0.9 | N57: =ROUND(ROUND(I57*'2021 Determination Revenue'!$G$30,2)*'2021 Determination Revenue'!I$29,2) -> 0.9 | O57: =ROUND(ROUND(J57*'2021 Determination Revenue'!$G$30,2)*'2021 Determination Revenue'!J$29,2) -> 0.9
B58: ='2021 Determination Revenue'!$B$47 -> Murray | C58: =Outputs!$C$33 -> $/ML | G58: 1.828758239 | H58: 1.828758239 | I58: 1.828758239 | J58: 1.828758239 | L58: =ROUND(G58*'2021 Determination Revenue'!$G$30,2) -> 1.85 | M58: =ROUND(ROUND(H58*'2021 Determination Revenue'!$G$30,2)*'2021 Determination Revenue'!H$29,2) -> 1.94 | N58: =ROUND(ROUND(I58*'2021 Determination Revenue'!$G$30,2)*'2021 Determination Revenue'!I$29,2) -> 1.94 | O58: =ROUND(ROUND(J58*'2021 Determination Revenue'!$G$30,2)*'2021 Determination Revenue'!J$29,2) -> 1.94
B59: ='2021 Determination Revenue'!$B$48 -> Murrumbidgee | C59: =Outputs!$C$33 -> $/ML | G59: 0.3653793286 | H59: 0.3653793286 | I59: 0.3653793286 | J59: 0.3653793286 | L59: =ROUND(G59*'2021 Determination Revenue'!$G$30,2) -> 0.37 | M59: =ROUND(ROUND(H59*'2021 Determination Revenue'!$G$30,2)*'2021 Determination Revenue'!H$29,2) -> 0.39 | N59: =ROUND(ROUND(I59*'2021 Determination Revenue'!$G$30,2)*'2021 Determination Revenue'!I$29,2) -> 0.39 | O59: =ROUND(ROUND(J59*'2021 Determination Revenue'!$G$30,2)*'2021 Determination Revenue'!J$29,2) -> 0.39
B61: General security entitlement
B62: ='2021 Determination Revenue'!$B$41 -> Border | C62: =Outputs!$C$33 -> $/ML | G62: 1.750815175 | H62: 1.750815175 | I62: 1.750815175 | J62: 1.750815175 | L62: =ROUND(G62*'2021 Determination Revenue'!$G$30,2) -> 1.77 | M62: =ROUND(ROUND(H62*'2021 Determination Revenue'!$G$30,2)*'2021 Determination Revenue'!H$29,2) -> 1.86 | N62: =ROUND(ROUND(I62*'2021 Determination Revenue'!$G$30,2)*'2021 Determination Revenue'!I$29,2) -> 1.86 | O62: =ROUND(ROUND(J62*'2021 Determination Revenue'!$G$30,2)*'2021 Determination Revenue'!J$29,2) -> 1.86
B63: ='2021 Determination Revenue'!$B$47 -> Murray | C63: =Outputs!$C$33 -> $/ML | G63: 3.762410717 | H63: 3.762410717 | I63: 3.762410717 | J63: 3.762410717 | L63: =ROUND(G63*'2021 Determination Revenue'!$G$30,2) -> 3.8 | M63: =ROUND(ROUND(H63*'2021 Determination Revenue'!$G$30,2)*'2021 Determination Revenue'!H$29,2) -> 3.99 | N63: =ROUND(ROUND(I63*'2021 Determination Revenue'!$G$30,2)*'2021 Determination Revenue'!I$29,2) -> 3.99 | O63: =ROUND(ROUND(J63*'2021 Determination Revenue'!$G$30,2)*'2021 Determination Revenue'!J$29,2) -> 3.99
B64: ='2021 Determination Revenue'!$B$48 -> Murrumbidgee | C64: =Outputs!$C$33 -> $/ML | G64: 0.6327081647 | H64: 0.6327081647 | I64: 0.6327081647 | J64: 0.6327081647 | L64: =ROUND(G64*'2021 Determination Revenue'!$G$30,2) -> 0.64 | M64: =ROUND(ROUND(H64*'2021 Determination Revenue'!$G$30,2)*'2021 Determination Revenue'!H$29,2) -> 0.67 | N64: =ROUND(ROUND(I64*'2021 Determination Revenue'!$G$30,2)*'2021 Determination Revenue'!I$29,2) -> 0.67 | O64: =ROUND(ROUND(J64*'2021 Determination Revenue'!$G$30,2)*'2021 Determination Revenue'!J$29,2) -> 0.67
B66: High security entitlement
B67: ='2021 Determination Revenue'!$B$41 -> Border | C67: =Outputs!$C$33 -> $/ML | G67: 4.782665345 | H67: 4.782665345 | I67: 4.782665345 | J67: 4.782665345 | L67: =ROUND(G67*'2021 Determination Revenue'!$G$30,2) -> 4.84 | M67: =ROUND(ROUND(H67*'2021 Determination Revenue'!$G$30,2)*'2021 Determination Revenue'!H$29,2) -> 5.09 | N67: =ROUND(ROUND(I67*'2021 Determination Revenue'!$G$30,2)*'2021 Determination Revenue'!I$29,2) -> 5.09 | O67: =ROUND(ROUND(J67*'2021 Determination Revenue'!$G$30,2)*'2021 Determination Revenue'!J$29,2) -> 5.09
B68: ='2021 Determination Revenue'!$B$47 -> Murray | C68: =Outputs!$C$33 -> $/ML | G68: 8.543069904 | H68: 8.543069904 | I68: 8.543069904 | J68: 8.543069904 | L68: =ROUND(G68*'2021 Determination Revenue'!$G$30,2) -> 8.64 | M68: =ROUND(ROUND(H68*'2021 Determination Revenue'!$G$30,2)*'2021 Determination Revenue'!H$29,2) -> 9.08 | N68: =ROUND(ROUND(I68*'2021 Determination Revenue'!$G$30,2)*'2021 Determination Revenue'!I$29,2) -> 9.08 | O68: =ROUND(ROUND(J68*'2021 Determination Revenue'!$G$30,2)*'2021 Determination Revenue'!J$29,2) -> 9.08
B69: ='2021 Determination Revenue'!$B$48 -> Murrumbidgee | C69: =Outputs!$C$33 -> $/ML | G69: 1.841223636 | H69: 1.841223636 | I69: 1.841223636 | J69: 1.841223636 | L69: =ROUND(G69*'2021 Determination Revenue'!$G$30,2) -> 1.86 | M69: =ROUND(ROUND(H69*'2021 Determination Revenue'!$G$30,2)*'2021 Determination Revenue'!H$29,2) -> 1.95 | N69: =ROUND(ROUND(I69*'2021 Determination Revenue'!$G$30,2)*'2021 Determination Revenue'!I$29,2) -> 1.95 | O69: =ROUND(ROUND(J69*'2021 Determination Revenue'!$G$30,2)*'2021 Determination Revenue'!J$29,2) -> 1.95
B72: Source: | C72: 2021 Review pricing model, Price Scenario worksheet | H72: Table 11.3 (from row 206) | I72: =$I$49 -> D21/15629
B75: TABLE 3.3 - FISH RIVER WATER SUPPLY SCHEME CHARGES
B76: ='2021 Determination Revenue'!B$20 -> Financial year | C76: ='2021 Determination Revenue'!C$36 -> Units | G76: =G$13 -> 2021-22 | H76: =H$13 -> 2022-23 | I76: 2023-24 | J76: 2024-25 | L76: =L13 -> 2021-22 | M76: =M13 -> 2022-23 | N76: 2023-24 | O76: 2024-25
G77: =G$14 -> $2020-21 | H77: =H$14 -> $2020-21 | I77: $2020-21 | J77: $2020-21 | L77: =$L$14 -> $2021-22 | M77: =$M$14 -> $2022-23 | N77: =N$14 -> $2023-24 | O77: =O$14 -> $2024-25
B79: Minimum Annual Quantity (MAQ)
B80: ='Updated Volumes'!B$31 -> Energy Australia | C80: =Outputs!$C$154 -> $/kL | G80: 0.4801026975 | H80: 0.4801026975 | I80: 0.4801026975 | J80: 0.4801026975 | L80: =ROUND(G80*'2021 Determination Revenue'!$G$30,2) -> 0.49 | M80: =ROUND(ROUND(H80*'2021 Determination Revenue'!$G$30,2)*'2021 Determination Revenue'!H$29,2) -> 0.51 | N80: =ROUND(ROUND(I80*'2021 Determination Revenue'!$G$30,2)*'2021 Determination Revenue'!I$29,2) -> 0.51 | O80: =ROUND(ROUND(J80*'2021 Determination Revenue'!$G$30,2)*'2021 Determination Revenue'!J$29,2) -> 0.51
B81: ='Updated Volumes'!B$32 -> Minor customers (raw) | C81: =Outputs!$C$154 -> $/kL | G81: 0.4801026975 | H81: 0.4801026975 | I81: 0.4801026975 | J81: 0.4801026975 | L81: =ROUND(G81*'2021 Determination Revenue'!$G$30,2) -> 0.49 | M81: =ROUND(ROUND(H81*'2021 Determination Revenue'!$G$30,2)*'2021 Determination Revenue'!H$29,2) -> 0.51 | N81: =ROUND(ROUND(I81*'2021 Determination Revenue'!$G$30,2)*'2021 Determination Revenue'!I$29,2) -> 0.51 | O81: =ROUND(ROUND(J81*'2021 Determination Revenue'!$G$30,2)*'2021 Determination Revenue'!J$29,2) -> 0.51
B82: ='Updated Volumes'!B$33 -> Minor customers (filtered) | C82: =Outputs!$C$154 -> $/kL | G82: 0.846921779 | H82: 0.846921779 | I82: 0.846921779 | J82: 0.846921779 | L82: =ROUND(G82*'2021 Determination Revenue'!$G$30,2) -> 0.86 | M82: =ROUND(ROUND(H82*'2021 Determination Revenue'!$G$30,2)*'2021 Determination Revenue'!H$29,2) -> 0.9 | N82: =ROUND(ROUND(I82*'2021 Determination Revenue'!$G$30,2)*'2021 Determination Revenue'!I$29,2) -> 0.9 | O82: =ROUND(ROUND(J82*'2021 Determination Revenue'!$G$30,2)*'2021 Determination Revenue'!J$29,2) -> 0.9
B84: Usage up to MAQ
B85: ='Updated Volumes'!B$31 -> Energy Australia | C85: =Outputs!$C$154 -> $/kL | G85: 0.3246381535 | H85: 0.3246381535 | I85: 0.3246381535 | J85: 0.3246381535 | L85: =ROUND(G85*'2021 Determination Revenue'!$G$30,2) -> 0.33 | M85: =ROUND(ROUND(H85*'2021 Determination Revenue'!$G$30,2)*'2021 Determination Revenue'!H$29,2) -> 0.35 | N85: =ROUND(ROUND(I85*'2021 Determination Revenue'!$G$30,2)*'2021 Determination Revenue'!I$29,2) -> 0.35 | O85: =ROUND(ROUND(J85*'2021 Determination Revenue'!$G$30,2)*'2021 Determination Revenue'!J$29,2) -> 0.35
B86: ='Updated Volumes'!B$32 -> Minor customers (raw) | C86: =Outputs!$C$154 -> $/kL | G86: 0.3246381535 | H86: 0.3246381535 | I86: 0.3246381535 | J86: 0.3246381535 | L86: =ROUND(G86*'2021 Determination Revenue'!$G$30,2) -> 0.33 | M86: =ROUND(ROUND(H86*'2021 Determination Revenue'!$G$30,2)*'2021 Determination Revenue'!H$29,2) -> 0.35 | N86: =ROUND(ROUND(I86*'2021 Determination Revenue'!$G$30,2)*'2021 Determination Revenue'!I$29,2) -> 0.35 | O86: =ROUND(ROUND(J86*'2021 Determination Revenue'!$G$30,2)*'2021 Determination Revenue'!J$29,2) -> 0.35
B87: ='Updated Volumes'!B$33 -> Minor customers (filtered) | C87: =Outputs!$C$154 -> $/kL | G87: 0.5246381535 | H87: 0.5246381535 | I87: 0.5246381535 | J87: 0.5246381535 | L87: =ROUND(G87*'2021 Determination Revenue'!$G$30,2) -> 0.53 | M87: =ROUND(ROUND(H87*'2021 Determination Revenue'!$G$30,2)*'2021 Determination Revenue'!H$29,2) -> 0.56 | N87: =ROUND(ROUND(I87*'2021 Determination Revenue'!$G$30,2)*'2021 Determination Revenue'!I$29,2) -> 0.56 | O87: =ROUND(ROUND(J87*'2021 Determination Revenue'!$G$30,2)*'2021 Determination Revenue'!J$29,2) -> 0.56
B89: Usage in excess of MAQ
B90: ='Updated Volumes'!B$31 -> Energy Australia | C90: =Outputs!$C$154 -> $/kL | G90: =G80+G85 -> 0.804740851 | H90: =H80+H85 -> 0.804740851 | I90: =I80+I85 -> 0.804740851 | J90: =J80+J85 -> 0.804740851 | L90: =L80+L85 -> 0.82 | M90: =M80+M85 -> 0.86 | N90: =N80+N85 -> 0.86 | O90: 0.86
B91: ='Updated Volumes'!B$32 -> Minor customers (raw) | C91: =Outputs!$C$154 -> $/kL | G91: =G81+G86 -> 0.804740851 | H91: =H81+H86 -> 0.804740851 | I91: 0.804740851 | J91: =J81+J86 -> 0.804740851 | L91: =L81+L86 -> 0.82 | M91: 0.86 | N91: =N81+N86 -> 0.86 | O91: 0.86
B92: ='Updated Volumes'!B$33 -> Minor customers (filtered) | C92: =Outputs!$C$154 -> $/kL | G92: 1.371559933 | H92: 1.371559933 | I92: 1.371559933 | J92: =J82+J87 -> 1.371559933 | L92: =L82+L87 -> 1.39 | M92: 1.46 | N92: =N82+N87 -> 1.46 | O92: 1.46
B94: Source: | C94: 2021 Review pricing model, Price Scenario worksheet | H94: Table 11.4

Sheet Updated Volumes
B2: 1 UPDATED VOLUMES PROVIDED BY WaterNSW
B3: This worksheet records the updated usage and entitlement volumes that are used to calculate updated prices for the Annual Review. WaterNSW provides the updated volumes.
B4: =" - Variable usage charges are calculated using rolling 20-year historical average volumes with a two year lag, eg, "&AB$16&" usage charges are calculated using "&$G$16&" to "&$Z$16&" volumes." -> - Variable usage charges are calculated using rolling 20-year historical average volumes with a two year lag, eg, 2022-23 usage charges are calculated using 2001-02 to 2020-21 volumes.
B5: =" - Entitlement charges are calculated using single year volumes with the same two year lag, eg. "&$AB$16&" entitlement charges are calculated using "&$Z$16&" entitlement volumes." -> - Entitlement charges are calculated using single year volumes with the same two year lag, eg. 2022-23 entitlement charges are calculated using 2020-21 entitlement volumes.
B7: List of tables | AC7: Row number
B8: =B14 -> TABLE 1.1 - USAGE VOLUMES | AC8: =ROW(B14) -> 14
B9: =B37 -> TABLE 1.2 - ENTITLEMENT VOLUMES | AC9: =ROW(B37) -> 37
B10: =B75 -> TABLE 1.3 - ACTUAL WATER ALLOCATIONS | AC10: =ROW(B75) -> 75
B11: =B115 -> TABLE 1.4 - FISH RIVER WATER SUPPLY SCHEME (FRWS) MINOR CUSTOMER NUMBERS AND MAQ ENTITLEMENT VOLUMES | AC11: =ROW(B115) -> 115
B14: TABLE 1.1 - USAGE VOLUMES
B15: Financial year ending 30 June | C15: Units | F15: =G15-1 -> 2001 | G15: 2002 | H15: 2003 | I15: 2004 | J15: 2005 | K15: 2006 | L15: 2007 | M15: 2008 | N15: 2009 | O15: 2010 | P15: 2011 | Q15: 2012 | R15: 2013 | S15: 2014 | T15: 2015 | U15: 2016 | V15: 2017 | W15: 2018 | X15: 2019 | Y15: 2020 | Z15: =AA15-1 -> 2021 | AA15: 2022 | AB15: 2023 | AC15: 2024 | AD15: 2025
B16: Financial year | F16: =F15-1&"-"&RIGHT(F15,2) -> 2000-01 | G16: 2001-02 | H16: 2002-03 | I16: 2003-04 | J16: 2004-05 | K16: 2005-06 | L16: 2006-07 | M16: 2007-08 | N16: 2008-09 | O16: 2009-10 | P16: 2010-11 | Q16: 2011-12 | R16: 2012-13 | S16: 2013-14 | T16: 2014-15 | U16: 2015-16 | V16: 2016-17 | W16: 2017-18 | X16: 2018-19 | Y16: 2019-20 | Z16: 2020-21 | AA16: =AA15-1&"-"&RIGHT(AA15,2) -> 2021-22 | AB16: =AB15-1&"-"&RIGHT(AB15,2) -> 2022-23 | AC16: 2023-24 | AD16: 2024-25
F17: Actual | G17: =$F$17 -> Actual | H17: =$F$17 -> Actual | I17: Actual | J17: Actual | K17: Actual | L17: Actual | M17: Actual | N17: Actual | O17: Actual | P17: Actual | Q17: Actual | R17: Actual | S17: Actual | T17: Actual | U17: Actual | V17: Actual | W17: Actual | X17: Actual | Y17: Actual | Z17: Actual | AA17: Estimate | AB17: Forecast | AC17: Forecast | AD17: Forecast
B19: Usage Volume
B20: Border | C20: ML | F20: 231793 | G20: 182622 | H20: 123803 | I20: 100542.36 | J20: 107564 | K20: 134417 | L20: 131934 | M20: 112269 | N20: 117688 | O20: 110391.2 | P20: 187024.6 | Q20: 160312 | R20: 220696 | S20: 197467.6 | T20: 41672.9 | U20: 100403.8 | V20: 232303.3 | W20: 139604.9 | X20: 145591.3 | Y20: ='WaterNSW data inputs'!AA51 -> 10963.5 | Z20: ='WaterNSW data inputs'!AB51 -> 109569.2 | AA20: ='WaterNSW data inputs'!AG66 -> 139453.173 | AB20: =AVERAGE(G20:Z20) -> 133341.983 | AG20: 2022-23 is equal to the 20-year rolling average of actual water sales (with a two year lag) from 2001-02 to 2020-21.
B21: Gwydir | C21: =C$20 -> ML | F21: 425315 | G21: 443145 | H21: 278986 | I21: 159250 | J21: 154840 | K21: 218496 | L21: 129467 | M21: 79132 | N21: 143199 | O21: 46959 | P21: 245148 | Q21: 200724.1 | R21: 428699.4 | S21: 408995.4 | T21: 153199.6 | U21: 85020.5 | V21: 332713 | W21: 315045.7 | X21: 121129.9 | Y21: ='WaterNSW data inputs'!AA52 -> 40316.9 | Z21: ='WaterNSW data inputs'!AB52 -> 202432.3 | AA21: ='WaterNSW data inputs'!AG67 -> 220489.075 | AB21: =AVERAGE(G21:Z21) -> 209344.94 | AG21: WaterNSW’s forecast of expected demand for the 2021-22 financial year is equivalent to the forecast included in IPART’s 2022 Determination. The recent severe rainfall and flood events in NSW has created significant uncertainty in 2021-22 demand. At this time, the Determination forecast is appropriate until the weather events are resolved, and more information is obtained. Usage from 2000-01 to 2003-04 for Murray and Murrumbidgee have been updated for an updated estimate of interstate trade usage.
B22: Namoi | C22: =C$20 -> ML | F22: 248842.49 | G22: 280339.88 | H22: 236853.11 | I22: 80652.71 | J22: 96650 | K22: 141325.3 | L22: 66558.5 | M22: 51211.6 | N22: 97482 | O22: 75152 | P22: 149958 | Q22: 128271.7 | R22: 281246.7 | S22: 271541.5 | T22: 66353.9 | U22: 38334.8 | V22: 213598 | W22: 180155.6 | X22: 47490.3 | Y22: ='WaterNSW data inputs'!AA53 -> 12800.9 | Z22: ='WaterNSW data inputs'!AB53 -> 118795.6 | AA22: ='WaterNSW data inputs'!AG68 -> 138240.9495 | AB22: 131738.605
B23: Peel | C23: ML | F23: 10241 | G23: 14671 | H23: 21805 | I23: 13325 | J23: 15165 | K23: 14753 | L23: 9718 | M23: 9080 | N23: 10183 | O23: 17517 | P23: 6915 | Q23: 4218.7 | R23: 13317.1 | S23: 17412.7 | T23: 6052.9 | U23: 11011.5 | V23: 10365.9 | W23: 22083.99 | X23: 18581.8 | Y23: ='WaterNSW data inputs'!AA54 -> 6081.5 | Z23: ='WaterNSW data inputs'!AB54 -> 6339.3 | AA23: ='WaterNSW data inputs'!AG69 -> 12624.9545 | AB23: 12429.8695
B24: Lachlan | C24: ML | F24: 407000 | G24: 439572.22 | H24: 237252.44 | I24: 43509.97 | J24: 21164.7 | K24: 112435.93 | L24: 57260.2 | M24: 30776.5 | N24: 27797.6 | O24: 11786.7 | P24: 85698.8 | Q24: 212768.7 | R24: 394082.4 | S24: 248401.7 | T24: 178283.2 | U24: 199222.9 | V24: 206757.9 | W24: 347405.7 | X24: 278111.3 | Y24: ='WaterNSW data inputs'!AA55 -> 102717.6 | Z24: ='WaterNSW data inputs'!AB55 -> 151636.8 | AA24: ='WaterNSW data inputs'!AG70 -> 182100.323 | AB24: 169332.163
B25: Macquarie | C25: ML | F25: 464188 | G25: 545663.54 | H25: 375914.33 | I25: 174168.35 | J25: 63783.6 | K25: 180723 | L25: 204745 | M25: 30867 | N25: 65439 | O25: 73820 | P25: 203146 | Q25: 296617.9 | R25: 558856.4 | S25: 268934.1 | T25: 90827.3 | U25: 109532.9 | V25: 232194 | W25: 399824.6 | X25: 255839.3 | Y25: ='WaterNSW data inputs'!AA56 -> 55808.4 | Z25: ='WaterNSW data inputs'!AB56 -> 147647 | AA25: ='WaterNSW data inputs'!AG71 -> 232544.636 | AB25: 216717.586
B26: Murray | C26: ML | F26: ='WaterNSW data inputs'!H57 -> 2415247.418 | G26: ='WaterNSW data inputs'!I57 -> 2266393.418 | H26: ='WaterNSW data inputs'!J57 -> 1159554.418 | I26: ='WaterNSW data inputs'!K57 -> 1497066.418 | J26: 1284123.7 | K26: 1692042.2 | L26: 602536.1 | M26: 289197.3 | N26: 501322.4 | O26: 679952.1 | P26: 960984.6 | Q26: 1848920.7 | R26: 2514563.7 | S26: 2056232.1 | T26: 1764682.1 | U26: 1103217.1 | V26: 1877178.8 | W26: 1701381.1 | X26: 768313.3 | Y26: ='WaterNSW data inputs'!AA57 -> 634902.8 | Z26: ='WaterNSW data inputs'!AB57 -> 1482786.1 | AA26: ='WaterNSW data inputs'!AG72 -> 1379454.1 | AB26: 1334267.523
B27: Murrumbidgee | C27: ML | F27: ='WaterNSW data inputs'!H58 -> 2258081.365 | G27: ='WaterNSW data inputs'!I58 -> 2314081.365 | H27: ='WaterNSW data inputs'!J58 -> 1790081.365 | I27: ='WaterNSW data inputs'!K58 -> 1715081.365 | J27: 1534368.1 | K27: 1938642.7 | L27: 952257.7 | M27: 566132.6 | N27: 929755.5 | O27: 893689.5 | P27: 1364777.6 | Q27: 1739421.3 | R27: 2353487.6 | S27: 1777486.6 | T27: 1883941.8 | U27: 1419128.5 | V27: 1902516.4 | W27: 1715237.9 | X27: 1012155.8 | Y27: ='WaterNSW data inputs'!AA58 -> 558857.8 | Z27: ='WaterNSW data inputs'!AB58 -> 1971831.5 | AA27: ='WaterNSW data inputs'!AG73 -> 1531632.031 | AB27: 1516646.65
B28: Lowbidgee | C28: ML | R28: 92544 | S28: 8392 | T28: 82587 | U28: 12840 | V28: 59350 | W28: 0 | AG28: Lowbidgee volumes are not used to set variable charges
B30: Fish River Water Supply Scheme
B31: Energy Australia | C31: kL | F31: 2466600 | G31: 3215700 | H31: 2318514 | I31: 571786 | J31: 1496500 | K31: 962500 | L31: 2726200 | M31: 1291700 | N31: 630600 | O31: 394900 | P31: 2046800 | Q31: 612100 | R31: 1336800 | S31: 1643600 | T31: 755130 | U31: 2179600 | V31: 1539580 | W31: 5512622 | X31: 4090029 | Y31: ='WaterNSW data inputs'!AA169*1000 -> 1204987 | Z31: ='WaterNSW data inputs'!AB169*1000 -> 1092208 | AA31: 1849811.3 | AB31: =AVERAGE(G31:Z31) -> 1781092.8 | AG31: Note: this excludes estimated usage from Wallarawang Power Station, as per the 2017 Rural Valley Determination. 2022-23 is equal to the 20-year rolling average of actual water sales (with a two year lag) from 2001-02 to 2020-21.
B32: Minor customers (raw) | C32: ML | F32: 50 | G32: 50 | H32: 66 | I32: 60 | J32: 45 | K32: 64 | L32: 47 | M32: 40 | N32: 42 | O32: 40 | P32: 30 | Q32: 36 | R32: 41 | S32: 54 | T32: 65 | U32: 51.097 | V32: 70.8 | W32: 56.5 | X32: 61.56 | Y32: ='WaterNSW data inputs'!AA172 -> 53.261 | Z32: ='WaterNSW data inputs'!AB172 -> 52.74 | AA32: 51.1608 | AB32: =AVERAGE(G32:Z32) -> 51.2979 | AG32: 2022-23 is equal to the 20-year rolling average of actual water sales (with a two year lag) from 2001-02 to 2020-21.
B33: Minor customers (filtered) | C33: ML | F33: 129 | G33: 129 | H33: 170 | I33: 155 | J33: 116 | K33: 164 | L33: 112 | M33: 110 | N33: 104 | O33: 88 | P33: 97 | Q33: 92 | R33: 65 | S33: 66 | T33: 80 | U33: 73.824 | V33: 65.659 | W33: ='WaterNSW data inputs'!Y176 -> 75.3 | X33: 82.214 | Y33: ='WaterNSW data inputs'!AA176 -> 80.654 | Z33: ='WaterNSW data inputs'!AB176 -> 77.14 | AA33: 102.73255 | AB33: =AVERAGE(G33:Z33) -> 100.13955 | AG33: 2022-23 is equal to the 20-year rolling average of actual water sales (with a two year lag) from 2001-02 to 2020-21. 2017-18 volumes in this row have been amended, as IPART's value was previously referring to 2016-17 values.
B37: TABLE 1.2 - ENTITLEMENT VOLUMES
B38: Financial year | C38: Units | F38: =F$16 -> 2000-01 | G38: 2001-02 | H38: 2002-03 | I38: 2003-04 | J38: 2004-05 | K38: 2005-06 | L38: 2006-07 | M38: 2007-08 | N38: 2008-09 | O38: 2009-10 | P38: 2010-11 | Q38: 2011-12 | R38: 2012-13 | S38: 2013-14 | T38: 2014-15 | U38: 2015-16 | V38: 2016-17 | W38: 2017-18 | X38: 2018-19 | Y38: 2019-20 | Z38: 2020-21 | AA38: =AA$16 -> 2021-22 | AB38: =AB$16 -> 2022-23 | AC38: =AC$16 -> 2023-24 | AD38: =AD$16 -> 2024-25
F39: =F$17 -> Actual | G39: Actual | H39: Actual | I39: Actual | J39: Actual | K39: Actual | L39: Actual | M39: Actual | N39: Actual | O39: Actual | P39: Actual | Q39: Actual | R39: Actual | S39: Actual | T39: Actual | U39: Actual | V39: Actual | W39: Actual | X39: Actual | Y39: Actual | Z39: Actual | AA39: Estimate | AB39: Forecast | AC39: Forecast | AD39: Forecast
B40: General security entitlements | AG40: 2021-22 estimates are YTD January values
B41: Border | C41: =C$20 -> ML | T41: 263238 | U41: 263238 | V41: 263218 | W41: 263281 | X41: 263218 | Y41: ='WaterNSW data inputs'!AA21 -> 263218 | Z41: ='WaterNSW data inputs'!AB21 -> 263218 | AA41: ='WaterNSW data inputs'!AC21 -> 263218 | AB41: =Z41 -> 263218 | AG41: 2022-23 Forecast is latest full year set of actuals (2020-21), as per IPART's methodology.
B42: Gwydir | C42: ML | T42: 509665 | U42: 509665 | V42: 509665 | W42: 509665 | X42: 509665 | Y42: ='WaterNSW data inputs'!AA22 -> 509665 | Z42: ='WaterNSW data inputs'!AB22 -> 509665 | AA42: ='WaterNSW data inputs'!AC22 -> 509665 | AB42: =Z42 -> 509665
B43: Namoi | C43: ML | T43: 256211.5 | U43: 256211.5 | V43: 256211.5 | W43: 256528.7 | X43: 256529 | Y43: ='WaterNSW data inputs'!AA23 -> 256529 | Z43: ='WaterNSW data inputs'!AB23 -> 256690.7 | AA43: ='WaterNSW data inputs'!AC23 -> 256691 | AB43: 256690.7
B44: Peel | C44: ML | T44: 30428 | U44: 30428 | V44: 30428 | W44: 29635 | X44: 29635 | Y44: ='WaterNSW data inputs'!AA24 -> 29635 | Z44: ='WaterNSW data inputs'!AB24 -> 29311 | AA44: ='WaterNSW data inputs'!AC24 -> 29311 | AB44: 29311
B45: Lachlan | C45: ML | T45: 633346.4 | U45: 633166.4 | V45: 633166.4 | W45: 633166.4 | X45: 633166 | Y45: ='WaterNSW data inputs'!AA25 -> 633166 | Z45: ='WaterNSW data inputs'!AB25 -> 633166 | AA45: ='WaterNSW data inputs'!AC25 -> 633166 | AB45: 633166
B46: Macquarie | C46: ML | T46: 632466 | U46: 632466.1 | V46: 632466.1 | W46: 632466.1 | X46: 632466 | Y46: ='WaterNSW data inputs'!AA26 -> 632466 | Z46: ='WaterNSW data inputs'!AB26 -> 632466 | AA46: ='WaterNSW data inputs'!AC26 -> 632466 | AB46: 632466
B47: Murray | C47: ML | T47: 2081289.1 | U47: 2083271.1 | V47: 2083271.1 | W47: 2083271.1 | X47: 2083603 | Y47: ='WaterNSW data inputs'!AA27 -> 2083603 | Z47: ='WaterNSW data inputs'!AB27 -> 2083603 | AA47: ='WaterNSW data inputs'!AC27 -> 2083603 | AB47: 2083603
B48: Murrumbidgee | C48: ML | T48: 2267962.6 | U48: 2267962.6 | V48: 2267962.6 | W48: 2267962.6 | X48: 2267963 | Y48: ='WaterNSW data inputs'!AA28 -> 2264995 | Z48: ='WaterNSW data inputs'!AB28 -> 2264995 | AA48: ='WaterNSW data inputs'!AC28 -> 2264995 | AB48: 2264995
B49: Lowbidgee | C49: ML
B51: High security entitlements
B52: Border | C52: =C$20 -> ML | T52: 3122 | U52: 3121 | V52: 3141 | W52: 3141 | X52: 3141 | Y52: ='WaterNSW data inputs'!AA6 -> 3141 | Z52: ='WaterNSW data inputs'!AB6 -> 3141 | AA52: ='WaterNSW data inputs'!AC6 -> 3141 | AB52: =Z52 -> 3141
B53: Gwydir | C53: ML | T53: 26839.9 | U53: 26919.9 | V53: 26919.9 | W53: 26919.9 | X53: 26920 | Y53: ='WaterNSW data inputs'!AA7 -> 26920 | Z53: ='WaterNSW data inputs'!AB7 -> 27219.9 | AA53: ='WaterNSW data inputs'!AC7 -> 27220 | AB53: 27219.9
B54: Namoi | C54: ML | T54: 8882 | U54: 8866 | V54: 8866 | W54: 8866 | X54: 8866 | Y54: ='WaterNSW data inputs'!AA8 -> 8859 | Z54: ='WaterNSW data inputs'!AB8 -> 8841 | AA54: ='WaterNSW data inputs'!AC8 -> 8841 | AB54: 8841
B55: Peel | C55: ML | T55: 17367 | U55: 17367 | V55: 17367 | W55: 17367 | X55: 17367 | Y55: ='WaterNSW data inputs'!AA9 -> 17367 | Z55: ='WaterNSW data inputs'!AB9 -> 17367 | AA55: ='WaterNSW data inputs'!AC9 -> 17367 | AB55: 17367
B56: Lachlan | C56: ML | T56: 57512 | U56: 57304 | V56: 57301 | W56: 57302 | X56: 57252 | Y56: ='WaterNSW data inputs'!AA10 -> 57269 | Z56: ='WaterNSW data inputs'!AB10 -> 57269 | AA56: ='WaterNSW data inputs'!AC10 -> 57269 | AB56: 57269
B57: Macquarie | C57: ML | T57: 42720.5 | U57: 42712 | V57: 42688 | W57: 42688 | X57: 42691 | Y57: ='WaterNSW data inputs'!AA11 -> 42672 | Z57: ='WaterNSW data inputs'!AB11 -> 42669 | AA57: ='WaterNSW data inputs'!AC11 -> 42663 | AB57: 42669
B58: Murray | C58: ML | T58: 261515 | U58: 263603.1 | V58: 263590.1 | W58: 263555.1 | X58: 263575 | Y58: ='WaterNSW data inputs'!AA12 -> 276920 | Z58: ='WaterNSW data inputs'!AB12 -> 276894.3 | AA58: ='WaterNSW data inputs'!AC12 -> 267182 | AB58: 276894.3
B59: Murrumbidgee | C59: ML | T59: 438310.6 | U59: 438327.6 | V59: 438327.6 | W59: 438327.6 | X59: 438328 | Y59: ='WaterNSW data inputs'!AA13 -> 440472 | Z59: ='WaterNSW data inputs'!AB13 -> 440475 | AA59: ='WaterNSW data inputs'!AC13 -> 440472 | AB59: 440475
B60: Lowbidgee | C60: ML
B62: Supplementary entitlements | AG62: WNSW: WaterNSW is not required to report number of supplementary entitlements for the Annual Review. Besides the Lowbidgee fixed charge, it is noted that this information does not form an input into regulated charges.
B63: Border | C63: =C$20 -> ML | T63: 0 | U63: 0 | V63: 0 | W63: 0 | X63: 0 | Y63: 0 | Z63: 0 | AA63: 0 | AB63: =Z63 -> 0
B64: Gwydir | C64: ML | T64: 0 | U64: 0 | V64: 0 | W64: 0 | X64: 0 | Y64: 0 | Z64: 0 | AA64: 0 | AB64: 0
B65: Namoi | C65: ML | T65: 0 | U65: 0 | V65: 0 | W65: 0 | X65: 0 | Y65: 0 | Z65: 0 | AA65: 0 | AB65: 0
B66: Peel | C66: ML | T66: 0 | U66: 0 | V66: 0 | W66: 0 | X66: 0 | Y66: 0 | Z66: 0 | AA66: 0 | AB66: 0
B67: Lachlan | C67: ML | T67: 0 | U67: 0 | V67: 0 | W67: 0 | X67: 0 | Y67: 0 | Z67: 0 | AA67: 0 | AB67: 0
B68: Macquarie | C68: ML | T68: 0 | U68: 0 | V68: 0 | W68: 0 | X68: 0 | Y68: 0 | Z68: 0 | AA68: 0 | AB68: 0
B69: Murray | C69: ML | T69: 0 | U69: 0 | V69: 0 | W69: 0 | X69: 0 | Y69: 0 | Z69: 0 | AA69: 0 | AB69: 0
B70: Murrumbidgee | C70: ML | T70: 0 | U70: 0 | V70: 0 | W70: 0 | X70: 0 | Y70: 0 | Z70: 0 | AA70: 0 | AB70: 0
B71: Lowbidgee | C71: ML | T71: 747000 | U71: 747000 | V71: 747000 | W71: 747000 | X71: 747000 | Y71: 747000 | Z71: 747000 | AA71: 747000 | AB71: 747000
B75: TABLE 1.3 - ACTUAL WATER ALLOCATIONS
B76: Financial year | C76: Units | F76: =F$16 -> 2000-01 | G76: 2001-02 | H76: 2002-03 | I76: 2003-04 | J76: 2004-05 | K76: 2005-06 | L76: 2006-07 | M76: 2007-08 | N76: 2008-09 | O76: 2009-10 | P76: 2010-11 | Q76: 2011-12 | R76: 2012-13 | S76: 2013-14 | T76: 2014-15 | U76: 2015-16 | V76: 2016-17 | W76: 2017-18 | X76: 2018-19 | Y76: 2019-20 | Z76: 2020-21 | AA76: =AA$16 -> 2021-22 | AB76: =AB$16 -> 2022-23 | AC76: =AC$16 -> 2023-24 | AD76: =AD$16 -> 2024-25
F77: =F39 -> Actual | G77: =G39 -> Actual | H77: Actual | I77: Actual | J77: Actual | K77: Actual | L77: Actual | M77: Actual | N77: Actual | O77: Actual | P77: Actual | Q77: Actual | R77: Actual | S77: Actual | T77: Actual | U77: Actual | V77: Actual | W77: Actual | X77: Actual | Y77: Actual | Z77: Actual | AA77: Estimate | AB77: =AB$17 -> Forecast | AC77: =AC39 -> Forecast | AD77: =AD39 -> Forecast
B78: Note: 'Water allocations' refer to the proportion of their entitlement volumes that licence holders are permitted to extract each year
B79: General security entitlements | AG79: 2021-22 estimates are YTD January values
B80: Border | C80: % | F80: 0.4 | G80: 0.9616007471 | H80: 0.1383938411 | I80: 0.5394395847 | J80: 0.1667033994 | K80: 0.3804940351 | L80: 0.2518418989 | M80: 0.2534980989 | N80: 0.2374144487 | O80: 0.02688212928 | P80: 1 | Q80: 1 | R80: 1 | S80: 0.3519 | T80: 0.1 | U80: 0.3270538448 | V80: 1.123804603 | W80: 0.263 | X80: 0.03 | Y80: ='WaterNSW data inputs'!AA140 -> 0 | Z80: ='WaterNSW data inputs'!AB140 -> 0.51 | AA80: ='WaterNSW data inputs'!AC140 -> 1.26 | AB80: =AVERAGE(G80:Z80) -> 0.4331013315 | AG80: 2022-23 Forecast is equal to the 20 year rolling average, as per IPART's methodology.
B81: Gwydir | C81: % | F81: 0.4469803922 | G81: 0.2662352941 | H81: 0 | I81: 0.3071568627 | J81: 0.04598039216 | K81: 0.2188263003 | L81: 0 | M81: 0.2424509804 | N81: 0 | O81: 0 | P81: 0.829 | Q81: 1 | R81: 1.62 | S81: 0 | T81: 0 | U81: 0.05281508442 | V81: 0.7863017865 | W81: 0.176 | X81: 0 | Y81: ='WaterNSW data inputs'!AA141 -> 0.02 | Z81: ='WaterNSW data inputs'!AB141 -> 0.58 | AA81: ='WaterNSW data inputs'!AC141 -> 1.6 | AB81: =AVERAGE(G81:Z81) -> 0.307238335
B82: Namoi | C82: % | F82: 1.226720648 | G82: 0.2980161943 | H82: 0 | I82: 0.4646963563 | J82: 0.1413360324 | K82: 0.299757195 | L82: 0 | M82: 0.1362753036 | N82: 0.2373279352 | O82: 0.005748987854 | P82: 1.093 | Q82: 1.165 | R82: 1 | S82: 0.5318 | T82: 0.04 | U82: 0.02296149861 | V82: 1.236868369 | W82: 0.11 | X82: 0.05 | Y82: ='WaterNSW data inputs'!AA142 -> 0.02 | Z82: ='WaterNSW data inputs'!AB142 -> 0.91 | AA82: ='WaterNSW data inputs'!AC142 -> 0.82 | AB82: =AVERAGE(G82:Z82) -> 0.3881393936
B83: Peel | C83: % | F83: 1 | G83: 1 | H83: 0.6 | I83: 0.35 | J83: 0.65 | K83: 0.45 | L83: 0 | M83: 0.5 | N83: 0.8 | O83: 0 | P83: 1 | Q83: 1 | R83: 0.83 | S83: 0.45 | T83: 0 | U83: 0.170004601 | V83: 0.9999967136 | W83: 1.027 | X83: 0.38 | Y83: ='WaterNSW data inputs'!AA143 -> 0 | Z83: ='WaterNSW data inputs'!AB143 -> 0.85 | AA83: ='WaterNSW data inputs'!AC143 -> 1 | AB83: 0.5528500657
B84: Lachlan | C84: % | F84: 0.84 | G84: 0.58 | H84: 0.03 | I84: 0 | J84: 0 | K84: 0.19 | L84: 0 | M84: 0 | N84: 0 | O84: 0 | P84: 1 | Q84: 1 | R84: 0 | S84: 0 | T84: 0.02 | U84: 0.2586422779 | V84: 1.38 | W84: 0.05 | X84: 0 | Y84: ='WaterNSW data inputs'!AA144 -> 0.01 | Z84: ='WaterNSW data inputs'!AB144 -> 0.68 | AA84: ='WaterNSW data inputs'!AC144 -> 1.68 | AB84: 0.2599321139
B85: Macquarie | C85: % | F85: 1 | G85: 0.9 | H85: 0 | I85: 0.19 | J85: 0.09 | K85: 0.44 | L85: 0 | M85: 0.05 | N85: 0.1 | O85: 0 | P85: 1 | Q85: 0.49 | R85: 0.64 | S85: 0.0006 | T85: 0.02 | U85: 0.07000375198 | V85: 1 | W85: 0.38 | X85: 0 | Y85: ='WaterNSW data inputs'!AA145 -> 0 | Z85: ='WaterNSW data inputs'!AB145 -> 0.68 | AA85: ='WaterNSW data inputs'!AC145 -> 0.77 | AB85: 0.3025301876
B86: Murray | C86: % | F86: 0.95 | G86: 1.05 | H86: 0.1 | I86: 0.55 | J86: 0.49 | K86: 0.63 | L86: 0 | M86: 0 | N86: 0.09 | O86: 0.27 | P86: 1 | Q86: 1 | R86: 1 | S86: 1 | T86: 0.65 | U86: 0.278087859 | V86: 1 | W86: 0.51 | X86: 0 | Y86: ='WaterNSW data inputs'!AA146 -> 0.12 | Z86: ='WaterNSW data inputs'!AB146 -> 0.55 | AA86: ='WaterNSW data inputs'!AC146 -> 1.08 | AB86: 0.514404393
B87: Murrumbidgee | C87: % | F87: 0.9 | G87: 0.72 | H87: 0.38 | I87: 0.41 | J87: 0.4 | K87: 0.54 | L87: 0.1 | M87: 0.13 | N87: 0.21 | O87: 0.27 | P87: 1 | Q87: 1 | R87: 1 | S87: 0.7998 | T87: 0.59 | U87: 0.4424602064 | V87: 1.000000441 | W87: 0.517 | X87: 0.07 | Y87: ='WaterNSW data inputs'!AA147 -> 0.21 | Z87: ='WaterNSW data inputs'!AB147 -> 1 | AA87: ='WaterNSW data inputs'!AC147 -> 1 | AB87: =AVERAGE(G87:Z87) -> 0.5394630324
B88: Lowbidgee | C88: %
B90: High security entitlements
B91: Border | C91: % | F91: 1 | G91: 1 | H91: 1 | I91: 1 | J91: 1 | K91: 1 | L91: 1 | M91: 1 | N91: 1 | O91: 1 | P91: 1 | Q91: 1 | R91: 1 | S91: 1 | T91: 1 | U91: 1.00032041 | V91: 1 | W91: 1 | X91: 1 | Y91: ='WaterNSW data inputs'!AA126 -> 1 | Z91: ='WaterNSW data inputs'!AB126 -> 1 | AA91: ='WaterNSW data inputs'!AC126 -> 1 | AB91: =AVERAGE(G91:Z91) -> 1.000016021
B92: Gwydir | C92: % | F92: 1 | G92: 1 | H92: 1 | I92: 1 | J92: 1 | K92: 1 | L92: 1 | M92: 1 | N92: 1 | O92: 1 | P92: 1 | Q92: 1 | R92: 1 | S92: 1 | T92: 1 | U92: 0.9975482821 | V92: 1 | W92: 1 | X92: 1 | Y92: ='WaterNSW data inputs'!AA127 -> 1 | Z92: ='WaterNSW data inputs'!AB127 -> 1 | AA92: ='WaterNSW data inputs'!AC127 -> 1 | AB92: 0.9998774141
B93: Namoi | C93: % | F93: 1 | G93: 1 | H93: 1 | I93: 1 | J93: 1 | K93: 1 | L93: 1 | M93: 1 | N93: 1 | O93: 1 | P93: 1 | Q93: 1 | R93: 1 | S93: 1 | T93: 1 | U93: 1.001804647 | V93: 1 | W93: 1 | X93: 1 | Y93: ='WaterNSW data inputs'!AA128 -> 1 | Z93: ='WaterNSW data inputs'!AB128 -> 1 | AA93: ='WaterNSW data inputs'!AC128 -> 1 | AB93: 1.000090232
B94: Peel | C94: % | F94: 1 | G94: 1 | H94: 1 | I94: 1 | J94: 1 | K94: 1 | L94: 1 | M94: 1 | N94: 1 | O94: 1 | P94: 1 | Q94: 1 | R94: 1 | S94: 1 | T94: 0.69 | U94: 1 | V94: 1 | W94: 1 | X94: 1 | Y94: ='WaterNSW data inputs'!AA129 -> 0.69 | Z94: ='WaterNSW data inputs'!AB129 -> 1 | AA94: ='WaterNSW data inputs'!AC129 -> 1 | AB94: 0.969
B95: Lachlan | C95: % | F95: 1 | G95: 1 | H95: 1 | I95: 0.7 | J95: 0.3 | K95: 1 | L95: 0.8 | M95: 0.3 | N95: 0.3 | O95: 0.1 | P95: 1 | Q95: 1 | R95: 1 | S95: 1 | T95: 1 | U95: 1.00365943 | V95: 1.000092494 | W95: 1 | X95: 1 | Y95: ='WaterNSW data inputs'!AA130 -> 0.94 | Z95: ='WaterNSW data inputs'!AB130 -> 1 | AA95: ='WaterNSW data inputs'!AC130 -> 1 | AB95: 0.8221875962
B96: Macquarie | C96: % | F96: 1 | G96: 1 | H96: 1 | I96: 1 | J96: 1 | K96: 1 | L96: 1 | M96: 1 | N96: 1 | O96: 1 | P96: 1 | Q96: 1 | R96: 1 | S96: 1 | T96: 1 | U96: 0.9993233752 | V96: 1.000569247 | W96: 1 | X96: 1 | Y96: ='WaterNSW data inputs'!AA131 -> 1 | Z96: ='WaterNSW data inputs'!AB131 -> 1 | AA96: ='WaterNSW data inputs'!AC131 -> 1 | AB96: 0.9999946311
B97: Murray | C97: % | F97: 1 | G97: 1 | H97: 1 | I97: 1 | J97: 0.97 | K97: 0.97 | L97: 0.69 | M97: 0.5 | N97: 0.95 | O97: 0.97 | P97: 1 | Q97: 1 | R97: 1 | S97: 1 | T97: 0.98 | U97: 0.9562482384 | V97: 1 | W97: 0.99 | X97: 0.97 | Y97: ='WaterNSW data inputs'!AA132 -> 0.97 | Z97: ='WaterNSW data inputs'!AB132 -> 0.98 | AA97: ='WaterNSW data inputs'!AC132 -> 1.02 | AB97: 0.9448124119
B98: Murrumbidgee | C98: % | F98: 1 | G98: 1 | H98: 1 | I98: 0.95 | J98: 0.95 | K98: 0.95 | L98: 0.9 | M98: 0.9 | N98: 0.95 | O98: 0.95 | P98: 0.9996 | Q98: 1 | R98: 1 | S98: 0.975 | T98: 0.96 | U98: 0.9590313273 | V98: 1.000066292 | W98: 0.96 | X98: 0.95 | Y98: ='WaterNSW data inputs'!AA133 -> 0.97 | Z98: ='WaterNSW data inputs'!AB133 -> 1 | AA98: ='WaterNSW data inputs'!AC133 -> 1 | AB98: 0.9661848809
B99: Lowbidgee | C99: % | F99: 0 | G99: 0 | H99: 0 | I99: 0 | J99: 0 | K99: 0 | L99: 0 | M99: 0 | N99: 0 | O99: 0 | P99: 0 | Q99: 0 | R99: 0 | S99: 0 | T99: 0 | U99: 0
B101: Supplementary entitlements | AG101: WNSW: WaterNSW is not required to report % of allocation of supplementary entitlements. This does not form an input into prices.
B102: Border | C102: % | F102: 0 | G102: 0 | H102: 0 | I102: 0 | J102: 0 | K102: 0 | L102: 0 | M102: 0 | N102: 0 | O102: 0 | P102: 0 | Q102: 0 | R102: 0 | S102: 0 | T102: 0 | U102: 0 | V102: 0 | W102: 0 | X102: 0
B103: Gwydir | C103: % | F103: 0 | G103: 0 | H103: 0 | I103: 0 | J103: 0 | K103: 0 | L103: 0 | M103: 0 | N103: 0 | O103: 0 | P103: 0 | Q103: 0 | R103: 0 | S103: 0 | T103: 0 | U103: 0 | V103: 0 | W103: 0 | X103: 0
B104: Namoi | C104: % | F104: 0 | G104: 0 | H104: 0 | I104: 0 | J104: 0 | K104: 0 | L104: 0 | M104: 0 | N104: 0 | O104: 0 | P104: 0 | Q104: 0 | R104: 0 | S104: 0 | T104: 0 | U104: 0 | V104: 0 | W104: 0 | X104: 0
B105: Peel | C105: % | F105: 0 | G105: 0 | H105: 0 | I105: 0 | J105: 0 | K105: 0 | L105: 0 | M105: 0 | N105: 0 | O105: 0 | P105: 0 | Q105: 0 | R105: 0 | S105: 0 | T105: 0 | U105: 0 | V105: 0 | W105: 0 | X105: 0
B106: Lachlan | C106: % | F106: 0 | G106: 0 | H106: 0 | I106: 0 | J106: 0 | K106: 0 | L106: 0 | M106: 0 | N106: 0 | O106: 0 | P106: 0 | Q106: 0 | R106: 0 | S106: 0 | T106: 0 | U106: 0 | V106: 0 | W106: 0 | X106: 0
B107: Macquarie | C107: % | F107: 0 | G107: 0 | H107: 0 | I107: 0 | J107: 0 | K107: 0 | L107: 0 | M107: 0 | N107: 0 | O107: 0 | P107: 0 | Q107: 0 | R107: 0 | S107: 0 | T107: 0 | U107: 0 | V107: 0 | W107: 0 | X107: 0
B108: Murray | C108: % | F108: 0 | G108: 0 | H108: 0 | I108: 0 | J108: 0 | K108: 0 | L108: 0 | M108: 0 | N108: 0 | O108: 0 | P108: 0 | Q108: 0 | R108: 0 | S108: 0 | T108: 0 | U108: 0 | V108: 0 | W108: 0 | X108: 0
B109: Murrumbidgee | C109: % | F109: 0 | G109: 0 | H109: 0 | I109: 0 | J109: 0 | K109: 0 | L109: 0 | M109: 0 | N109: 0 | O109: 0 | P109: 0 | Q109: 0 | R109: 0 | S109: 0 | T109: 0 | U109: 0 | V109: 0 | W109: 0 | X109: 0
B110: Lowbidgee | C110: % | F110: 1 | G110: 1 | H110: 1 | I110: 1 | J110: 1 | K110: 1 | L110: 1 | M110: 1 | N110: 1 | O110: 1 | P110: 1 | Q110: 1 | R110: 1 | S110: 1 | T110: 1 | U110: 1 | V110: 1 | W110: 1 | X110: =V110 -> 1
B115: TABLE 1.4 - FISH RIVER WATER SUPPLY SCHEME (FRWS) MINOR CUSTOMER NUMBERS AND MAQ ENTITLEMENT VOLUMES
B116: Financial year | C116: Units | F116: =F$16 -> 2000-01 | G116: 2001-02 | H116: 2002-03 | I116: 2003-04 | J116: 2004-05 | K116: 2005-06 | L116: 2006-07 | M116: 2007-08 | N116: 2008-09 | O116: 2009-10 | P116: 2010-11 | Q116: 2011-12 | R116: 2012-13 | S116: 2013-14 | T116: 2014-15 | U116: 2015-16 | V116: 2016-17 | W116: 2017-18 | X116: 2018-19 | Y116: 2019-20 | Z116: 2020-21 | AA116: =AA$16 -> 2021-22 | AB116: 2022-23 | AC116: 2023-24 | AD116: 2024-25
Z117: na | AA117: =AA17 -> Estimate | AB117: =AB$17 -> Forecast | AC117: Forecast | AD117: Forecast
B119: Minor customer numbers | AG119: 2021-22 estimates are YTD January values
B120: ='Updated Volumes'!B$32 -> Minor customers (raw) | C120: # | F120: na | G120: na | H120: na | I120: na | J120: na | K120: na | L120: na | M120: na | N120: na | O120: na | P120: na | Q120: na | R120: na | S120: na | T120: na | U120: na | V120: na | W120: na | X120: na | Y120: na | Z120: na | AA120: ='WaterNSW data inputs'!AB179 -> 87 | AB120: =AA120 -> 87 | AG120: 2022-23 Forecast is equal to the most recent available information (2021-22 YTD January values)
B121: ='Updated Volumes'!B$33 -> Minor customers (filtered) | C121: # | F121: na | G121: na | H121: na | I121: na | J121: na | K121: na | L121: na | M121: na | N121: na | O121: na | P121: na | Q121: na | R121: na | S121: na | T121: na | U121: na | V121: na | W121: na | X121: na | Y121: na | Z121: na | AA121: ='WaterNSW data inputs'!AB180 -> 233 | AB121: =AA121 -> 233
B123: FRWS MAQ
B124: =B$31 -> Energy Australia | C124: =C$20 -> ML | AA124: ='WaterNSW data inputs'!AC158 -> 8184 | AB124: =AA124 -> 8184 | AG124: Minimum Annual Quantity (MAQ) levels as defined in WaterNSW’s licence to operate the FRWS issued under the Water Act 1912 NSW.
B125: =B$32 -> Minor customers (raw) | C125: =C$20 -> ML | AA125: =0.2*AA120 -> 17.4 | AB125: =0.2*AB120 -> 17.4 | AG125: MAQ (Minimum Annual Quantity) for minor customers is 200KLs for each minor customer multiplied by the number of minor customers. For instance, 17.4 MAQ MLs is derived by multiplying 87 raw water customers by 200Kls per customer. 46.60 MAQ is derived by multiplying 233 filtered water customers by 200KLs per customer
B126: =B$33 -> Minor customers (filtered) | C126: =C$20 -> ML | AA126: =0.2*AA121 -> 46.6 | AB126: =0.2*AB121 -> 46.6 | AG126: MAQ (Minimum Annual Quantity) for minor customers is 200KLs for each minor customer multiplied by the number of minor customers. For instance, 17.4 MAQ MLs is derived by multiplying 87 raw water customers by 200Kls per customer. 46.60 MAQ is derived by multiplying 233 filtered water customers by 200KLs per customer

Sheet Outputs
B2: 4 OUTPUTS
B3: This worksheet produces the model outputs ie. Water tariffs for usage and entitlements.
B5: List of tables | K5: Row number
B6: =B20 -> CHARGES
B7: =B28 -> TABLE 4.1 - TOTAL CHARGES FOR MDB CUSTOMERS | K7: =ROW(B28) -> 28
B8: =B69 -> TABLE 4.2 - WaterNSW CHARGES | K8: =ROW(B69) -> 69
B9: =B109 -> TABLE 4.3 - MDBA/BRC CHARGES | K9: =ROW(B109) -> 109
B10: =B149 -> TABLE 4.4 - FISH RIVER WATER SUPPLY SCHEME CHARGES | K10: =ROW(B149) -> 149
B11: =B173 -> CUSTOMER BILLS
B12: =B175 -> TABLE 4.5 - INDICATIVE BILLS FOR HIGH SECURITY CUSTOMERS - WaterNSW CHARGES | K12: =ROW(B175) -> 175
B13: =B214 -> TABLE 4.6 - INDICATIVE BILLS FOR GENERAL SECURITY CUSTOMERS - WaterNSW CHARGES | K13: =ROW(B214) -> 214
B14: =B253 -> TABLE 4.7 - INDICATIVE BILLS FOR HIGH SECURITY AND GENERAL SECURITY CUSTOMERS - MDBA/BRC CHARGES | K14: =ROW(B253) -> 253
B15: =B290 -> TABLE 4.8 - INDICATIVE BILLS FOR CUSTOMERS IN THE FRWS | K15: =ROW(B290) -> 290
B16: =B301 -> REVENUE FORECASTS
B17: =B304 -> TABLE 4.9 - Comparison of WaterNSW'S Forecast Revenue in 2022-23 under different scenarios ($'000, $2020-21) | K17: =ROW(B304) -> 304
B20: CHARGES
B23: Analyse charges for determination year | C23: 2022-23
B24: Prices calculated using 20 year average volumes to | C24: =LEFT(C23,4)-2&"-"&RIGHT(C23,2)-2 -> 2020-21
B25: ="Inflator from "&$G$31&" to $"&G29&" prices" -> Inflator from $2020-21 to $2021-22 prices | C25: ='2021 Determination Revenue'!$G$30 -> 1.011
B26: ="Inflator from $"&$G$29&" to $"&$C$23&" prices" -> Inflator from $2021-22 to $2022-23 prices | C26: =LOOKUP($C$23,'2021 Determination Revenue'!$H$20:$J$20,'2021 Determination Revenue'!$H$29:$J$29) -> 1.051
B28: TABLE 4.1 - TOTAL CHARGES FOR MDB CUSTOMERS
B29: ='2021 Determination Revenue'!B$20 -> Financial year | C29: ='2021 Determination Revenue'!C$36 -> Units | G29: ='2021 Determination Revenue'!G$20 -> 2021-22 | H29: ='2021 Determination Revenue'!H$20 -> 2022-23 | I29: ='2021 Determination Revenue'!I$20 -> 2023-24 | J29: ='2021 Determination Revenue'!J$20 -> 2024-25 | M29: ="Analysis of "&$C$23&" Charges based on ∆ in demand and CPI (expressed in $"&$C$23&")" -> Analysis of 2022-23 Charges based on ∆ in demand and CPI (expressed in $2022-23) | Q29: ="Analysis of "&$C$23&" Charges based on ∆ in demand and CPI (expressed in "&G31&")" -> Analysis of 2022-23 Charges based on ∆ in demand and CPI (expressed in $2020-21)
G30: ="As per "&'2021 Determination Revenue'!$F$19&" Price Review" -> As per 2021 Price Review | H30: Re-calculated using updated demand | I30: Re-calculated using updated demand | J30: Re-calculated using updated demand | K30: ="Prices for selected year (ie "&$C$23&")" -> Prices for selected year (ie 2022-23) | M30: =G30 -> As per 2021 Price Review | N30: =H30 -> Re-calculated using updated demand | O30: Difference | Q30: =M30 -> As per 2021 Price Review | R30: =N30 -> Re-calculated using updated demand | S30: Difference
G31: ='2021 Determination Revenue'!$G$37 -> $2020-21 | H31: ='2021 Determination Revenue'!$G$37 -> $2020-21 | I31: ='2021 Determination Revenue'!$G$37 -> $2020-21 | J31: ='2021 Determination Revenue'!$G$37 -> $2020-21 | K31: =J31 -> $2020-21 | M31: ="$"&$C$23 -> $2022-23 | N31: =M31 -> $2022-23 | O31: % | Q31: =G31 -> $2020-21 | R31: =Q31 -> $2020-21 | S31: %
B32: Usage charges
B33: ='2021 Determination Revenue'!B$41 -> Border | C33: $/ML | G33: =(G74+G114) -> 7.805084264 | H33: =(H74+H114) -> 8.162778545 | I33: =(I74+I114) -> 8.297085627 | J33: =(J74+J114) -> 8.267028866 | K33: =LOOKUP($C$23,$H$70:$J$70,$H33:$J33) -> 8.162778545 | M33: =(M74+M114) -> 8.29 | N33: =(N74+N114) -> 8.67 | O33: =IF(M33=0,"na",N33/M33-1) -> 0.04583835947 | Q33: =(Q74+Q114) -> 7.805084264 | R33: 8.162778545 | S33: =IF(Q33=0,"na",R33/Q33-1) -> 0.04582836896
B34: ='2021 Determination Revenue'!B$42 -> Gwydir | C34: =$C$33 -> $/ML | G34: =(G75+G115) -> 17.00032167 | H34: 17.90530595 | I34: 18.91097654 | J34: =(J75+J115) -> 19.24913189 | K34: 17.90530595 | M34: =(M75+M115) -> 18.07 | N34: 19.02 | O34: 0.05257332595 | Q34: 17.00032167 | R34: 17.90530595 | S34: =IF(Q34=0,"na",R34/Q34-1) -> 0.05323336212
B35: ='2021 Determination Revenue'!B$43 -> Namoi | C35: =$C$33 -> $/ML | G35: 30.541139 | H35: 32.04858632 | I35: 33.87556866 | J35: =(J76+J116) -> 35.36697227 | K35: 32.04858632 | M35: 32.45 | N35: 34.05 | O35: 0.04930662558 | Q35: 30.541139 | R35: 32.04858632 | S35: 0.04935792739
B36: ='2021 Determination Revenue'!B$44 -> Peel | C36: $/ML | G36: 24.24338547 | H36: 24.62388189 | I36: 24.82822708 | J36: =(J77+J117) -> 25.80964029 | K36: 24.62388189 | M36: 25.76 | N36: 26.16 | O36: 0.01552795031 | Q36: 24.24338547 | R36: 24.62388189 | S36: 0.01569485504
B37: ='2021 Determination Revenue'!B$45 -> Lachlan | C37: $/ML | G37: 30.83070827 | H37: 33.15543743 | I37: 35.88350578 | J37: =(J78+J118) -> 36.67965663 | K37: 33.15543743 | M37: 32.76 | N37: 35.23 | O37: 0.0753968254 | Q37: 30.83070827 | R37: 33.15543743 | S37: 0.07540304083
B38: ='2021 Determination Revenue'!B$46 -> Macquarie | C38: $/ML | G38: 21.40375101 | H38: 22.96688321 | I38: 24.75523162 | J38: =(J79+J119) -> 25.77566545 | K38: 22.96688321 | M38: 22.74 | N38: 24.4 | O38: 0.07299912049 | Q38: 21.40375101 | R38: 22.96688321 | S38: 0.07303075995
B39: ='2021 Determination Revenue'!B$47 -> Murray | C39: $/ML | G39: 4.725955218 | H39: 4.886059004 | I39: 5.054039808 | J39: =(J80+J120) -> 5.020042858 | K39: 4.886059004 | M39: 5.02 | N39: 5.19 | O39: 0.03386454183 | Q39: 4.725955218 | R39: 4.886059004 | S39: 0.03387755042
B40: ='2021 Determination Revenue'!B$48 -> Murrumbidgee | C40: $/ML | G40: 5.279716303 | H40: 5.330663339 | I40: 5.47181074 | J40: =(J81+J121) -> 5.522915037 | K40: 5.330663339 | M40: 5.61 | N40: 5.67 | O40: 0.01069518717 | Q40: 5.279716303 | R40: 5.330663339 | S40: 0.009649578146
B41: ='2021 Determination Revenue'!B$49 -> Lowbidgee | C41: $/ML | G41: 0 | H41: 0 | I41: 0 | J41: =(J82+J122) -> 0 | K41: 0 | M41: 0 | N41: 0 | O41: na | Q41: 0 | R41: 0 | S41: na
B42: Check=0 | G42: =SUM(G33:G41)-SUM(G74:G82)-SUM(G114:G121) -> -1.376676551e-14 | H42: =SUM(H33:H41)-SUM(H74:H82)-SUM(H114:H121) -> 2.042810365e-14 | I42: =SUM(I33:I41)-SUM(I74:I82)-SUM(I114:I121) -> 1.953992523e-14 | J42: =SUM(J33:J41)-SUM(J74:J82)-SUM(J114:J121) -> -1.998401444e-14 | M42: =SUM(M33:M41)-SUM(M74:M82)-SUM(M114:M121) -> 1.82076576e-14 | N42: =SUM(N33:N41)-SUM(N74:N82)-SUM(N114:N121) -> -5.773159728e-15 | Q42: =SUM(Q33:Q41)-SUM(Q74:Q82)-SUM(Q114:Q121) -> -1.376676551e-14 | R42: =SUM(R33:R41)-SUM(R74:R82)-SUM(R114:R121) -> 2.042810365e-14
B43: General security entitlement charges
B44: ='2021 Determination Revenue'!B$41 -> Border | C44: =$C$33 -> $/ML | G44: =(G85+G125) -> 4.133569395 | H44: 4.126210786 | I44: 4.130790899 | J44: =(J85+J125) -> 4.135033416 | K44: =LOOKUP($C$23,$H$70:$J$70,$H44:$J44) -> 4.126210786 | M44: =(M85+M125) -> 4.39 | N44: 4.38 | O44: =IF(M44=0,"na",N44/M44-1) -> -0.002277904328 | Q44: =(Q85+Q125) -> 4.133569395 | R44: 4.126210786 | S44: =IF(Q44=0,"na",R44/Q44-1) -> -0.0017802069
B45: ='2021 Determination Revenue'!B$42 -> Gwydir | C45: =$C$33 -> $/ML | G45: 3.995423207 | H45: 3.946262725 | I45: 4.088757958 | J45: =(J86+J126) -> 4.115780823 | K45: 3.946262725 | M45: 4.25 | N45: 4.19 | O45: -0.01411764706 | Q45: 3.995423207 | R45: 3.946262725 | S45: -0.01230419902
B46: ='2021 Determination Revenue'!B$43 -> Namoi | C46: $/ML | G46: 9.98824506 | H46: 9.874930053 | I46: 9.937449718 | J46: =(J87+J127) -> 9.979496517 | K46: 9.874930053 | M46: 10.62 | N46: 10.49 | O46: -0.01224105461 | Q46: 9.98824506 | R46: 9.874930053 | S46: -0.01134483646
B47: ='2021 Determination Revenue'!B$44 -> Peel | C47: $/ML | G47: 5.752000874 | H47: 5.360447401 | I47: 5.360447401 | J47: =(J88+J128) -> 5.347972041 | K47: 5.360447401 | M47: 6.12 | N47: 5.7 | O47: -0.06862745098 | Q47: 5.752000874 | R47: 5.360447401 | S47: -0.06807256833
B48: ='2021 Determination Revenue'!B$45 -> Lachlan | C48: $/ML | G48: 3.670163327 | H48: 3.45107825 | I48: 3.721812257 | J48: =(J89+J129) -> 3.785890701 | K48: 3.45107825 | M48: 3.9 | N48: 3.67 | O48: -0.05897435897 | Q48: 3.670163327 | R48: 3.45107825 | S48: -0.05969354945
B49: ='2021 Determination Revenue'!B$46 -> Macquarie | C49: $/ML | G49: 3.90190304 | H49: 3.695597083 | I49: 3.671893837 | J49: =(J90+J130) -> 3.726168429 | K49: 3.695597083 | M49: 4.14 | N49: 3.93 | O49: -0.05072463768 | Q49: 3.90190304 | R49: 3.695597083 | S49: -0.05287316345
B50: ='2021 Determination Revenue'!B$47 -> Murray | C50: $/ML | G50: 4.744743322 | H50: 4.629109394 | I50: 4.670787613 | J50: =(J91+J131) -> 4.67802075 | K50: 4.629109394 | M50: 5.03 | N50: 4.92 | O50: -0.02186878728 | Q50: 4.744743322 | R50: 4.629109394 | S50: -0.02437095547
B51: ='2021 Determination Revenue'!B$48 -> Murrumbidgee | C51: $/ML | G51: 2.049873013 | H51: 2.01383063 | I51: 2.032910216 | J51: =(J92+J132) -> 2.044791059 | K51: 2.01383063 | M51: 2.17 | N51: 2.14 | O51: -0.01382488479 | Q51: 2.049873013 | R51: 2.01383063 | S51: -0.0175827395
B52: ='2021 Determination Revenue'!B$49 -> Lowbidgee | C52: =$C$33 -> $/ML | G52: 1.704125639 | H52: 1.704125639 | I52: 1.704125639 | J52: =(J93+J133) -> 1.704125639 | K52: 1.704125639 | M52: 1.81 | N52: 1.81 | O52: 0 | Q52: 1.704125639 | R52: 1.704125639 | S52: 0
B53: Check=0 | G53: =SUM(G44:G52)-SUM(G85:G93)-SUM(G125:G132) -> 0 | H53: =SUM(H44:H52)-SUM(H85:H93)-SUM(H125:H132) -> 0 | I53: =SUM(I44:I52)-SUM(I85:I93)-SUM(I125:I132) -> 8.881784197e-15 | J53: =SUM(J44:J52)-SUM(J85:J93)-SUM(J125:J132) -> 0 | M53: =SUM(M44:M52)-SUM(M85:M93)-SUM(M125:M132) -> 0 | N53: =SUM(N44:N52)-SUM(N85:N93)-SUM(N125:N132) -> 0 | Q53: =SUM(Q44:Q52)-SUM(Q85:Q93)-SUM(Q125:Q132) -> 0 | R53: =SUM(R44:R52)-SUM(R85:R93)-SUM(R125:R132) -> 0
B54: High security entitlement charges
B55: ='2021 Determination Revenue'!B$41 -> Border | C55: =$C$33 -> $/ML | G55: =G96+G136 -> 11.29158541 | H55: 11.90909779 | I55: 11.52528108 | J55: =J96+J136 -> 11.16975522 | K55: =LOOKUP($C$23,$H$70:$J$70,$H55:$J55) -> 11.90909779 | M55: =M96+M136 -> 12.01 | N55: 12.65 | O55: =IF(M55=0,"na",N55/M55-1) -> 0.0532889259 | Q55: =Q96+Q136 -> 11.29158541 | R55: 11.90909779 | S55: =IF(Q55=0,"na",R55/Q55-1) -> 0.05468783683
B56: ='2021 Determination Revenue'!B$42 -> Gwydir | C56: =$C$33 -> $/ML | G56: 17.21468309 | H56: 17.94543152 | I56: 15.27736271 | J56: =J97+J137 -> 14.77138884 | K56: 17.94543152 | M56: 18.29 | N56: 19.07 | O56: 0.04264625478 | Q56: 17.21468309 | R56: 17.94543152 | S56: 0.04244913642
B57: ='2021 Determination Revenue'!B$43 -> Namoi | C57: $/ML | G57: 28.61710191 | H57: 31.8050076 | I57: 29.98980172 | J57: =J98+J138 -> 28.76900827 | K57: 31.8050076 | M57: 30.41 | N57: 33.79 | O57: 0.1111476488 | Q57: 28.61710191 | R57: 31.8050076 | S57: 0.1113986211
B58: ='2021 Determination Revenue'!B$44 -> Peel | C58: $/ML | G58: 60.69634946 | H58: 61.4645001 | I58: 61.4645001 | J58: =J99+J139 -> 61.48555528 | K58: 61.4645001 | M58: 64.49 | N58: 65.31 | O58: 0.01271514964 | Q58: 60.69634946 | R58: 61.4645001 | S58: 0.01265563158
B59: ='2021 Determination Revenue'!B$45 -> Lachlan | C59: $/ML | G59: 24.82310317 | H59: 27.23793892 | I59: 24.24470405 | J59: =J100+J140 -> 23.53625284 | K59: 27.23793892 | M59: 26.38 | N59: 28.94 | O59: 0.09704321456 | Q59: 24.82310317 | R59: 27.23793892 | S59: 0.09728178352
B60: ='2021 Determination Revenue'!B$46 -> Macquarie | C60: $/ML | G60: 19.95603855 | H60: 23.02432083 | I60: 23.37895232 | J60: =J101+J141 -> 22.57117365 | K60: 23.02432083 | M60: 21.21 | N60: 24.47 | O60: 0.1537010844 | Q60: 19.95603855 | R60: 23.02432083 | S60: 0.1537520719
B61: ='2021 Determination Revenue'!B$47 -> Murray | C61: $/ML | G61: 10.7735909 | H61: 11.12524244 | I61: 11.20461715 | J61: =J102+J142 -> 10.75718879 | K61: 11.12524244 | M61: 11.46 | N61: 11.82 | O61: 0.03141361257 | Q61: 10.7735909 | R61: 11.12524244 | S61: 0.03264014223
B62: ='2021 Determination Revenue'!B$48 -> Murrumbidgee | C62: $/ML | G62: 5.96526938 | H62: 6.106192819 | I62: 6.008123365 | J62: =J103+J143 -> 5.946989191 | K62: 6.106192819 | M62: 6.33 | N62: 6.5 | O62: 0.02685624013 | Q62: 5.96526938 | R62: 6.106192819 | S62: 0.02362398573
B63: ='2021 Determination Revenue'!B$49 -> Lowbidgee | C63: =$C$33 -> $/ML | G63: 0 | H63: 0 | I63: 0 | J63: =J104+J144 -> 0 | K63: 0 | M63: 0 | N63: 0 | O63: na | Q63: 0 | R63: 0 | S63: na
B64: Check=0 | G64: =SUM(G55:G63)-SUM(G96:G104)-SUM(G136:G143) -> 0 | H64: =SUM(H55:H63)-SUM(H96:H104)-SUM(H136:H143) -> 2.309263891e-14 | I64: =SUM(I55:I63)-SUM(I96:I104)-SUM(I136:I143) -> 0 | J64: =SUM(J55:J63)-SUM(J96:J104)-SUM(J136:J143) -> 0 | M64: =SUM(M55:M63)-SUM(M96:M104)-SUM(M136:M143) -> 0 | N64: =SUM(N55:N63)-SUM(N96:N104)-SUM(N136:N143) -> 0 | Q64: =SUM(Q55:Q63)-SUM(Q96:Q104)-SUM(Q136:Q143) -> 0 | R64: =SUM(R55:R63)-SUM(R96:R104)-SUM(R136:R143) -> 2.309263891e-14
B69: TABLE 4.2 - WaterNSW CHARGES
B70: ='2021 Determination Revenue'!B$20 -> Financial year | C70: ='2021 Determination Revenue'!C$36 -> Units | G70: =G$29 -> 2021-22 | H70: =H$29 -> 2022-23 | I70: 2023-24 | J70: 2024-25 | M70: =M$29 -> Analysis of 2022-23 Charges based on ∆ in demand and CPI (expressed in $2022-23) | Q70: =Q29 -> Analysis of 2022-23 Charges based on ∆ in demand and CPI (expressed in $2020-21)
G71: =G$30 -> As per 2021 Price Review | H71: =H$30 -> Re-calculated using updated demand | I71: =I$30 -> Re-calculated using updated demand | J71: =J$30 -> Re-calculated using updated demand | K71: =K$30 -> Prices for selected year (ie 2022-23) | M71: =M$30 -> As per 2021 Price Review | N71: Re-calculated using updated demand | O71: Difference | Q71: As per 2021 Price Review | R71: Re-calculated using updated demand | S71: Difference
G72: =G$31 -> $2020-21 | H72: =H$31 -> $2020-21 | I72: $2020-21 | J72: $2020-21 | K72: $2020-21 | M72: =M$31 -> $2022-23 | N72: =N$31 -> $2022-23 | O72: =$O$31 -> % | Q72: =Q$31 -> $2020-21 | R72: =R$31 -> $2020-21 | S72: =S$31 -> %
B73: =B$32 -> Usage charges
B74: ='2021 Determination Revenue'!B$41 -> Border | C74: =$C$33 -> $/ML | G74: ='2021 Determination Charges'!G17 -> 6.951963013 | H74: =(('MDB calcs'!H170/'MDB calcs'!H21)*1000) -> 7.270578095 | I74: =(('MDB calcs'!I170/'MDB calcs'!I21)*1000) -> 7.39020527 | J74: =(('MDB calcs'!J170/'MDB calcs'!J21)*1000) -> 7.363433745 | K74: =LOOKUP($C$23,$H$70:$J$70,$H74:$J74) -> 7.270578095 | M74: =LOOKUP($C$23,'2021 Determination Charges'!$M$13:$O$13,'2021 Determination Charges'!$M17:$O17) -> 7.39 | N74: =ROUND(ROUND(K74*$C$25,2)*$C$26,2) -> 7.72 | O74: =IF(M74=0,"na",N74/M74-1) -> 0.04465493911 | Q74: =LOOKUP($C$23,'2021 Determination Charges'!$H$13:$J$13,'2021 Determination Charges'!$H17:$J17) -> 6.951963013 | R74: =K74 -> 7.270578095 | S74: =IF(Q74=0,"na",R74/Q74-1) -> 0.04583095183
B75: ='2021 Determination Revenue'!B$42 -> Gwydir | C75: =$C$33 -> $/ML | G75: ='2021 Determination Charges'!G18 -> 17.00032167 | H75: =(('MDB calcs'!H171/'MDB calcs'!H22)*1000) -> 17.90530595 | I75: =(('MDB calcs'!I171/'MDB calcs'!I22)*1000) -> 18.91097654 | J75: =(('MDB calcs'!J171/'MDB calcs'!J22)*1000) -> 19.24913189 | K75: 17.90530595 | M75: =LOOKUP($C$23,'2021 Determination Charges'!$M$13:$O$13,'2021 Determination Charges'!$M18:$O18) -> 18.07 | N75: 19.02 | O75: 0.05257332595 | Q75: =LOOKUP($C$23,'2021 Determination Charges'!$H$13:$J$13,'2021 Determination Charges'!$H18:$J18) -> 17.00032167 | R75: =K75 -> 17.90530595 | S75: 0.05323336212
B76: ='2021 Determination Revenue'!B$43 -> Namoi | C76: $/ML | G76: ='2021 Determination Charges'!G19 -> 30.541139 | H76: =(('MDB calcs'!H172/'MDB calcs'!H23)*1000) -> 32.04858632 | I76: =(('MDB calcs'!I172/'MDB calcs'!I23)*1000) -> 33.87556866 | J76: =(('MDB calcs'!J172/'MDB calcs'!J23)*1000) -> 35.36697227 | K76: 32.04858632 | M76: =LOOKUP($C$23,'2021 Determination Charges'!$M$13:$O$13,'2021 Determination Charges'!$M19:$O19) -> 32.45 | N76: 34.05 | O76: 0.04930662558 | Q76: =LOOKUP($C$23,'2021 Determination Charges'!$H$13:$J$13,'2021 Determination Charges'!$H19:$J19) -> 30.541139 | R76: 32.04858632 | S76: 0.04935792739
B77: ='2021 Determination Revenue'!B$44 -> Peel | C77: $/ML | G77: ='2021 Determination Charges'!G20 -> 24.24338547 | H77: =(('MDB calcs'!H173/'MDB calcs'!H24)*1000) -> 24.62388189 | I77: =(('MDB calcs'!I173/'MDB calcs'!I24)*1000) -> 24.82822708 | J77: =(('MDB calcs'!J173/'MDB calcs'!J24)*1000) -> 25.80964029 | K77: 24.62388189 | M77: =LOOKUP($C$23,'2021 Determination Charges'!$M$13:$O$13,'2021 Determination Charges'!$M20:$O20) -> 25.76 | N77: 26.16 | O77: 0.01552795031 | Q77: =LOOKUP($C$23,'2021 Determination Charges'!$H$13:$J$13,'2021 Determination Charges'!$H20:$J20) -> 24.24338547 | R77: 24.62388189 | S77: 0.01569485504
B78: ='2021 Determination Revenue'!B$45 -> Lachlan | C78: $/ML | G78: ='2021 Determination Charges'!G21 -> 30.83070827 | H78: =(('MDB calcs'!H174/'MDB calcs'!H25)*1000) -> 33.15543743 | I78: =(('MDB calcs'!I174/'MDB calcs'!I25)*1000) -> 35.88350578 | J78: =(('MDB calcs'!J174/'MDB calcs'!J25)*1000) -> 36.67965663 | K78: 33.15543743 | M78: =LOOKUP($C$23,'2021 Determination Charges'!$M$13:$O$13,'2021 Determination Charges'!$M21:$O21) -> 32.76 | N78: 35.23 | O78: 0.0753968254 | Q78: =LOOKUP($C$23,'2021 Determination Charges'!$H$13:$J$13,'2021 Determination Charges'!$H21:$J21) -> 30.83070827 | R78: 33.15543743 | S78: 0.07540304083
B79: ='2021 Determination Revenue'!B$46 -> Macquarie | C79: $/ML | G79: ='2021 Determination Charges'!G22 -> 21.40375101 | H79: =(('MDB calcs'!H175/'MDB calcs'!H26)*1000) -> 22.96688321 | I79: =(('MDB calcs'!I175/'MDB calcs'!I26)*1000) -> 24.75523162 | J79: =(('MDB calcs'!J175/'MDB calcs'!J26)*1000) -> 25.77566545 | K79: 22.96688321 | M79: =LOOKUP($C$23,'2021 Determination Charges'!$M$13:$O$13,'2021 Determination Charges'!$M22:$O22) -> 22.74 | N79: 24.4 | O79: 0.07299912049 | Q79: =LOOKUP($C$23,'2021 Determination Charges'!$H$13:$J$13,'2021 Determination Charges'!$H22:$J22) -> 21.40375101 | R79: 22.96688321 | S79: 0.07303075995
B80: ='2021 Determination Revenue'!B$47 -> Murray | C80: $/ML | G80: ='2021 Determination Charges'!G23 -> 2.897196979 | H80: =(('MDB calcs'!H176/'MDB calcs'!H27)*1000) -> 2.995314046 | I80: =(('MDB calcs'!I176/'MDB calcs'!I27)*1000) -> 3.098291775 | J80: =(('MDB calcs'!J176/'MDB calcs'!J27)*1000) -> 3.077450533 | K80: 2.995314046 | M80: =LOOKUP($C$23,'2021 Determination Charges'!$M$13:$O$13,'2021 Determination Charges'!$M23:$O23) -> 3.08 | N80: =ROUND(ROUND(K80*$C$25,2)*$C$26,2) -> 3.18 | O80: 0.03246753247 | Q80: =LOOKUP($C$23,'2021 Determination Charges'!$H$13:$J$13,'2021 Determination Charges'!$H23:$J23) -> 2.897196979 | R80: 2.995314046 | S80: 0.03386620493
B81: ='2021 Determination Revenue'!B$48 -> Murrumbidgee | C81: $/ML | G81: ='2021 Determination Charges'!G24 -> 4.914336975 | H81: =(('MDB calcs'!H177/'MDB calcs'!H28)*1000) -> 4.961749768 | I81: =(('MDB calcs'!I177/'MDB calcs'!I28)*1000) -> 5.093128931 | J81: =(('MDB calcs'!J177/'MDB calcs'!J28)*1000) -> 5.140696507 | K81: 4.961749768 | M81: =LOOKUP($C$23,'2021 Determination Charges'!$M$13:$O$13,'2021 Determination Charges'!$M24:$O24) -> 5.22 | N81: 5.28 | O81: 0.01149425287 | Q81: =LOOKUP($C$23,'2021 Determination Charges'!$H$13:$J$13,'2021 Determination Charges'!$H24:$J24) -> 4.914336975 | R81: 4.961749768 | S81: 0.009647851427
B82: ='2021 Determination Revenue'!B$49 -> Lowbidgee | C82: =$C$33 -> $/ML | G82: 0 | H82: =(('MDB calcs'!H178/'MDB calcs'!H29)*1000) -> 0 | I82: =(('MDB calcs'!I178/'MDB calcs'!I29)*1000) -> 0 | J82: =(('MDB calcs'!J178/'MDB calcs'!J29)*1000) -> 0 | K82: 0 | M82: =LOOKUP($C$23,'2021 Determination Charges'!$M$13:$O$13,'2021 Determination Charges'!$M25:$O25) -> 0 | N82: 0 | O82: na | Q82: =LOOKUP($C$23,'2021 Determination Charges'!$H$13:$J$13,'2021 Determination Charges'!$H25:$J25) -> 0 | R82: 0 | S82: na
B83: Check=0 | H83: =SUM(H74:H81)-((SUMPRODUCT('MDB calcs'!H170:H177/'MDB calcs'!H21:H28))*1000) -> 0 | I83: =SUM(I74:I81)-((SUMPRODUCT('MDB calcs'!I170:I177/'MDB calcs'!I21:I28))*1000) -> 0 | J83: =SUM(J74:J81)-((SUMPRODUCT('MDB calcs'!J170:J177/'MDB calcs'!J21:J28))*1000) -> 0
B84: =B$43 -> General security entitlement charges
B85: ='2021 Determination Revenue'!B$41 -> Border | C85: =$C$33 -> $/ML | G85: ='2021 Determination Charges'!G28 -> 2.382754219 | H85: =IF('MDB calcs'!H129=0,0,(('MDB calcs'!H158/'MDB calcs'!H129)*1000)) -> 2.378506733 | I85: =IF('MDB calcs'!I129=0,0,(('MDB calcs'!I158/'MDB calcs'!I129)*1000)) -> 2.381146887 | J85: =IF('MDB calcs'!J129=0,0,(('MDB calcs'!J158/'MDB calcs'!J129)*1000)) -> 2.383592437 | K85: =LOOKUP($C$23,$H$70:$J$70,$H85:$J85) -> 2.378506733 | M85: =LOOKUP($C$23,'2021 Determination Charges'!$M$13:$O$13,'2021 Determination Charges'!$M28:$O28) -> 2.53 | N85: =ROUND(ROUND(K85*$C$25,2)*$C$26,2) -> 2.52 | O85: =IF(M85=0,"na",N85/M85-1) -> -0.00395256917 | Q85: =LOOKUP($C$23,'2021 Determination Charges'!$H$13:$J$13,'2021 Determination Charges'!$H28:$J28) -> 2.382754219 | R85: =K85 -> 2.378506733 | S85: =IF(Q85=0,"na",R85/Q85-1) -> -0.001782595261
B86: ='2021 Determination Revenue'!B$42 -> Gwydir | C86: =$C$33 -> $/ML | G86: ='2021 Determination Charges'!G29 -> 3.995423207 | H86: =IF('MDB calcs'!H130=0,0,(('MDB calcs'!H159/'MDB calcs'!H130)*1000)) -> 3.946262725 | I86: =IF('MDB calcs'!I130=0,0,(('MDB calcs'!I159/'MDB calcs'!I130)*1000)) -> 4.088757958 | J86: =IF('MDB calcs'!J130=0,0,(('MDB calcs'!J159/'MDB calcs'!J130)*1000)) -> 4.115780823 | K86: 3.946262725 | M86: =LOOKUP($C$23,'2021 Determination Charges'!$M$13:$O$13,'2021 Determination Charges'!$M29:$O29) -> 4.25 | N86: =ROUND(ROUND(K86*$C$25,2)*$C$26,2) -> 4.19 | O86: -0.01411764706 | Q86: =LOOKUP($C$23,'2021 Determination Charges'!$H$13:$J$13,'2021 Determination Charges'!$H29:$J29) -> 3.995423207 | R86: 3.946262725 | S86: -0.01230419902
B87: ='2021 Determination Revenue'!B$43 -> Namoi | C87: $/ML | G87: ='2021 Determination Charges'!G30 -> 9.98824506 | H87: =IF('MDB calcs'!H131=0,0,(('MDB calcs'!H160/'MDB calcs'!H131)*1000)) -> 9.874930053 | I87: =IF('MDB calcs'!I131=0,0,(('MDB calcs'!I160/'MDB calcs'!I131)*1000)) -> 9.937449718 | J87: =IF('MDB calcs'!J131=0,0,(('MDB calcs'!J160/'MDB calcs'!J131)*1000)) -> 9.979496517 | K87: 9.874930053 | M87: =LOOKUP($C$23,'2021 Determination Charges'!$M$13:$O$13,'2021 Determination Charges'!$M30:$O30) -> 10.62 | N87: 10.49 | O87: -0.01224105461 | Q87: =LOOKUP($C$23,'2021 Determination Charges'!$H$13:$J$13,'2021 Determination Charges'!$H30:$J30) -> 9.98824506 | R87: 9.874930053 | S87: -0.01134483646
B88: ='2021 Determination Revenue'!B$44 -> Peel | C88: $/ML | G88: ='2021 Determination Charges'!G31 -> 5.752000874 | H88: =IF('MDB calcs'!H132=0,0,(('MDB calcs'!H161/'MDB calcs'!H132)*1000)) -> 5.360447401 | I88: =IF('MDB calcs'!I132=0,0,(('MDB calcs'!I161/'MDB calcs'!I132)*1000)) -> 5.360447401 | J88: =IF('MDB calcs'!J132=0,0,(('MDB calcs'!J161/'MDB calcs'!J132)*1000)) -> 5.347972041 | K88: 5.360447401 | M88: =LOOKUP($C$23,'2021 Determination Charges'!$M$13:$O$13,'2021 Determination Charges'!$M31:$O31) -> 6.12 | N88: =ROUND(ROUND(K88*$C$25,2)*$C$26,2) -> 5.7 | O88: -0.06862745098 | Q88: =LOOKUP($C$23,'2021 Determination Charges'!$H$13:$J$13,'2021 Determination Charges'!$H31:$J31) -> 5.752000874 | R88: 5.360447401 | S88: -0.06807256833
B89: ='2021 Determination Revenue'!B$45 -> Lachlan | C89: $/ML | G89: ='2021 Determination Charges'!G32 -> 3.670163327 | H89: =IF('MDB calcs'!H133=0,0,(('MDB calcs'!H162/'MDB calcs'!H133)*1000)) -> 3.45107825 | I89: =IF('MDB calcs'!I133=0,0,(('MDB calcs'!I162/'MDB calcs'!I133)*1000)) -> 3.721812257 | J89: =IF('MDB calcs'!J133=0,0,(('MDB calcs'!J162/'MDB calcs'!J133)*1000)) -> 3.785890701 | K89: 3.45107825 | M89: =LOOKUP($C$23,'2021 Determination Charges'!$M$13:$O$13,'2021 Determination Charges'!$M32:$O32) -> 3.9 | N89: 3.67 | O89: -0.05897435897 | Q89: =LOOKUP($C$23,'2021 Determination Charges'!$H$13:$J$13,'2021 Determination Charges'!$H32:$J32) -> 3.670163327 | R89: 3.45107825 | S89: -0.05969354945
B90: ='2021 Determination Revenue'!B$46 -> Macquarie | C90: $/ML | G90: ='2021 Determination Charges'!G33 -> 3.90190304 | H90: =IF('MDB calcs'!H134=0,0,(('MDB calcs'!H163/'MDB calcs'!H134)*1000)) -> 3.695597083 | I90: =IF('MDB calcs'!I134=0,0,(('MDB calcs'!I163/'MDB calcs'!I134)*1000)) -> 3.671893837 | J90: =IF('MDB calcs'!J134=0,0,(('MDB calcs'!J163/'MDB calcs'!J134)*1000)) -> 3.726168429 | K90: 3.695597083 | M90: =LOOKUP($C$23,'2021 Determination Charges'!$M$13:$O$13,'2021 Determination Charges'!$M33:$O33) -> 4.14 | N90: 3.93 | O90: -0.05072463768 | Q90: =LOOKUP($C$23,'2021 Determination Charges'!$H$13:$J$13,'2021 Determination Charges'!$H33:$J33) -> 3.90190304 | R90: 3.695597083 | S90: -0.05287316345
B91: ='2021 Determination Revenue'!B$47 -> Murray | C91: $/ML | G91: ='2021 Determination Charges'!G34 -> 0.9823326053 | H91: =IF('MDB calcs'!H135=0,0,(('MDB calcs'!H164/'MDB calcs'!H135)*1000)) -> 0.958397609 | I91: =IF('MDB calcs'!I135=0,0,(('MDB calcs'!I164/'MDB calcs'!I135)*1000)) -> 0.9670265486 | J91: =IF('MDB calcs'!J135=0,0,(('MDB calcs'!J164/'MDB calcs'!J135)*1000)) -> 0.9685240767 | K91: 0.958397609 | M91: =LOOKUP($C$23,'2021 Determination Charges'!$M$13:$O$13,'2021 Determination Charges'!$M34:$O34) -> 1.04 | N91: 1.02 | O91: -0.01923076923 | Q91: =LOOKUP($C$23,'2021 Determination Charges'!$H$13:$J$13,'2021 Determination Charges'!$H34:$J34) -> 0.9823326053 | R91: 0.958397609 | S91: -0.02436547071
B92: ='2021 Determination Revenue'!B$48 -> Murrumbidgee | C92: $/ML | G92: ='2021 Determination Charges'!G35 -> 1.417164848 | H92: =IF('MDB calcs'!H136=0,0,(('MDB calcs'!H165/'MDB calcs'!H136)*1000)) -> 1.392249863 | I92: =IF('MDB calcs'!I136=0,0,(('MDB calcs'!I165/'MDB calcs'!I136)*1000)) -> 1.405440421 | J92: =IF('MDB calcs'!J136=0,0,(('MDB calcs'!J165/'MDB calcs'!J136)*1000)) -> 1.413654172 | K92: 1.392249863 | M92: =LOOKUP($C$23,'2021 Determination Charges'!$M$13:$O$13,'2021 Determination Charges'!$M35:$O35) -> 1.5 | N92: 1.48 | O92: -0.01333333333 | Q92: =LOOKUP($C$23,'2021 Determination Charges'!$H$13:$J$13,'2021 Determination Charges'!$H35:$J35) -> 1.417164848 | R92: 1.392249863 | S92: -0.01758086615
B93: ='2021 Determination Revenue'!B$49 -> Lowbidgee | C93: =$C$33 -> $/ML | G93: ='2021 Determination Charges'!G36 -> 1.704125639 | H93: =IF('MDB calcs'!H137=0,0,(('MDB calcs'!H154/'MDB calcs'!H137)*1000)) -> 1.704125639 | I93: =IF('MDB calcs'!I137=0,0,(('MDB calcs'!I154/'MDB calcs'!I137)*1000)) -> 1.704125639 | J93: =IF('MDB calcs'!J137=0,0,(('MDB calcs'!J154/'MDB calcs'!J137)*1000)) -> 1.704125639 | K93: 1.704125639 | M93: =LOOKUP($C$23,'2021 Determination Charges'!$M$13:$O$13,'2021 Determination Charges'!$M36:$O36) -> 1.81 | N93: 1.81 | O93: 0 | Q93: =LOOKUP($C$23,'2021 Determination Charges'!$H$13:$J$13,'2021 Determination Charges'!$H36:$J36) -> 1.704125639 | R93: 1.704125639 | S93: 0
B95: =B$54 -> High security entitlement charges
B96: ='2021 Determination Revenue'!B$41 -> Border | C96: =$C$33 -> $/ML | G96: ='2021 Determination Charges'!G39 -> 6.508920069 | H96: =(H85*'MDB calcs'!H112) -> 6.864862403 | I96: =(I85*'MDB calcs'!I112) -> 6.643615674 | J96: =(J85*'MDB calcs'!J112) -> 6.438676883 | K96: =LOOKUP($C$23,$H$70:$J$70,$H96:$J96) -> 6.864862403 | M96: =LOOKUP($C$23,'2021 Determination Charges'!$M$13:$O$13,'2021 Determination Charges'!$M39:$O39) -> 6.92 | N96: =ROUND(ROUND(K96*$C$25,2)*$C$26,2) -> 7.29 | O96: =IF(M96=0,"na",N96/M96-1) -> 0.05346820809 | Q96: =LOOKUP($C$23,'2021 Determination Charges'!$H$13:$J$13,'2021 Determination Charges'!$H39:$J39) -> 6.508920069 | R96: =K96 -> 6.864862403 | S96: =IF(Q96=0,"na",R96/Q96-1) -> 0.05468531337
B97: ='2021 Determination Revenue'!B$42 -> Gwydir | C97: =$C$33 -> $/ML | G97: ='2021 Determination Charges'!G40 -> 17.21468309 | H97: =(H86*'MDB calcs'!H113) -> 17.94543152 | I97: =(I86*'MDB calcs'!I113) -> 15.27736271 | J97: =(J86*'MDB calcs'!J113) -> 14.77138884 | K97: 17.94543152 | M97: =LOOKUP($C$23,'2021 Determination Charges'!$M$13:$O$13,'2021 Determination Charges'!$M40:$O40) -> 18.29 | N97: 19.07 | O97: 0.04264625478 | Q97: =LOOKUP($C$23,'2021 Determination Charges'!$H$13:$J$13,'2021 Determination Charges'!$H40:$J40) -> 17.21468309 | R97: 17.94543152 | S97: 0.04244913642
B98: ='2021 Determination Revenue'!B$43 -> Namoi | C98: $/ML | G98: ='2021 Determination Charges'!G41 -> 28.61710191 | H98: =(H87*'MDB calcs'!H114) -> 31.8050076 | I98: =(I87*'MDB calcs'!I114) -> 29.98980172 | J98: =(J87*'MDB calcs'!J114) -> 28.76900827 | K98: 31.8050076 | M98: =LOOKUP($C$23,'2021 Determination Charges'!$M$13:$O$13,'2021 Determination Charges'!$M41:$O41) -> 30.41 | N98: =ROUND(ROUND(K98*$C$25,2)*$C$26,2) -> 33.79 | O98: 0.1111476488 | Q98: =LOOKUP($C$23,'2021 Determination Charges'!$H$13:$J$13,'2021 Determination Charges'!$H41:$J41) -> 28.61710191 | R98: 31.8050076 | S98: 0.1113986211
B99: ='2021 Determination Revenue'!B$44 -> Peel | C99: $/ML | G99: ='2021 Determination Charges'!G42 -> 60.69634946 | H99: =(H88*'MDB calcs'!H115) -> 61.4645001 | I99: =(I88*'MDB calcs'!I115) -> 61.4645001 | J99: =(J88*'MDB calcs'!J115) -> 61.48555528 | K99: 61.4645001 | M99: =LOOKUP($C$23,'2021 Determination Charges'!$M$13:$O$13,'2021 Determination Charges'!$M42:$O42) -> 64.49 | N99: 65.31 | O99: 0.01271514964 | Q99: =LOOKUP($C$23,'2021 Determination Charges'!$H$13:$J$13,'2021 Determination Charges'!$H42:$J42) -> 60.69634946 | R99: 61.4645001 | S99: 0.01265563158
B100: ='2021 Determination Revenue'!B$45 -> Lachlan | C100: $/ML | G100: ='2021 Determination Charges'!G43 -> 24.82310317 | H100: =(H89*'MDB calcs'!H116) -> 27.23793892 | I100: =(I89*'MDB calcs'!I116) -> 24.24470405 | J100: =(J89*'MDB calcs'!J116) -> 23.53625284 | K100: 27.23793892 | M100: =LOOKUP($C$23,'2021 Determination Charges'!$M$13:$O$13,'2021 Determination Charges'!$M43:$O43) -> 26.38 | N100: 28.94 | O100: 0.09704321456 | Q100: =LOOKUP($C$23,'2021 Determination Charges'!$H$13:$J$13,'2021 Determination Charges'!$H43:$J43) -> 24.82310317 | R100: 27.23793892 | S100: 0.09728178352
B101: ='2021 Determination Revenue'!B$46 -> Macquarie | C101: $/ML | G101: ='2021 Determination Charges'!G44 -> 19.95603855 | H101: =(H90*'MDB calcs'!H117) -> 23.02432083 | I101: =(I90*'MDB calcs'!I117) -> 23.37895232 | J101: =(J90*'MDB calcs'!J117) -> 22.57117365 | K101: 23.02432083 | M101: =LOOKUP($C$23,'2021 Determination Charges'!$M$13:$O$13,'2021 Determination Charges'!$M44:$O44) -> 21.21 | N101: 24.47 | O101: 0.1537010844 | Q101: =LOOKUP($C$23,'2021 Determination Charges'!$H$13:$J$13,'2021 Determination Charges'!$H44:$J44) -> 19.95603855 | R101: 23.02432083 | S101: 0.1537520719
B102: ='2021 Determination Revenue'!B$47 -> Murray | C102: $/ML | G102: ='2021 Determination Charges'!G45 -> 2.230521001 | H102: =(H91*'MDB calcs'!H118) -> 2.303338472 | I102: =(I91*'MDB calcs'!I118) -> 2.319771984 | J102: =(J91*'MDB calcs'!J118) -> 2.227137693 | K102: 2.303338472 | M102: =LOOKUP($C$23,'2021 Determination Charges'!$M$13:$O$13,'2021 Determination Charges'!$M45:$O45) -> 2.38 | N102: 2.45 | O102: 0.02941176471 | Q102: =LOOKUP($C$23,'2021 Determination Charges'!$H$13:$J$13,'2021 Determination Charges'!$H45:$J45) -> 2.230521001 | R102: 2.303338472 | S102: 0.03264594749
B103: ='2021 Determination Revenue'!B$48 -> Murrumbidgee | C103: $/ML | G103: ='2021 Determination Charges'!G46 -> 4.124045744 | H103: =(H92*'MDB calcs'!H119) -> 4.221480192 | I103: =(I92*'MDB calcs'!I119) -> 4.153680457 | J103: =(J92*'MDB calcs'!J119) -> 4.111415708 | K103: 4.221480192 | M103: =LOOKUP($C$23,'2021 Determination Charges'!$M$13:$O$13,'2021 Determination Charges'!$M46:$O46) -> 4.38 | N103: 4.49 | O103: 0.02511415525 | Q103: =LOOKUP($C$23,'2021 Determination Charges'!$H$13:$J$13,'2021 Determination Charges'!$H46:$J46) -> 4.124045744 | R103: 4.221480192 | S103: 0.02362593766
B104: ='2021 Determination Revenue'!B$49 -> Lowbidgee | C104: =$C$33 -> $/ML | G104: 0 | H104: 0 | I104: 0 | J104: 0 | K104: 0 | M104: =LOOKUP($C$23,'2021 Determination Charges'!$M$13:$O$13,'2021 Determination Charges'!$M47:$O47) -> 0 | N104: 0 | O104: na | Q104: =LOOKUP($C$23,'2021 Determination Charges'!$H$13:$J$13,'2021 Determination Charges'!$H47:$J47) -> 0 | R104: 0 | S104: na
B105: Check=0 | H105: =SUMPRODUCT(H85:H93,'MDB calcs'!H112:H120)-SUM(H96:H104) -> 0 | I105: =SUMPRODUCT(I85:I93,'MDB calcs'!I112:I120)-SUM(I96:I104) -> 0 | J105: =SUMPRODUCT(J85:J93,'MDB calcs'!J112:J120)-SUM(J96:J104) -> 0
B109: TABLE 4.3 - MDBA/BRC CHARGES
B110: ='2021 Determination Revenue'!B$20 -> Financial year | C110: ='2021 Determination Revenue'!C$36 -> Units | G110: ='2021 Determination Revenue'!G$20 -> 2021-22 | H110: ='2021 Determination Revenue'!H$20 -> 2022-23 | I110: ='2021 Determination Revenue'!I$20 -> 2023-24 | J110: ='2021 Determination Revenue'!J$20 -> 2024-25 | M110: =M$29 -> Analysis of 2022-23 Charges based on ∆ in demand and CPI (expressed in $2022-23) | Q110: =Q70 -> Analysis of 2022-23 Charges based on ∆ in demand and CPI (expressed in $2020-21)
G111: =G$30 -> As per 2021 Price Review | H111: =H$30 -> Re-calculated using updated demand | I111: =I$30 -> Re-calculated using updated demand | J111: =J$30 -> Re-calculated using updated demand | K111: =K$30 -> Prices for selected year (ie 2022-23) | M111: =M$30 -> As per 2021 Price Review | N111: =N$30 -> Re-calculated using updated demand | O111: =O$30 -> Difference | Q111: =Q$30 -> As per 2021 Price Review | R111: =R$30 -> Re-calculated using updated demand | S111: =S$30 -> Difference
G112: ='2021 Determination Revenue'!$G$37 -> $2020-21 | H112: ='2021 Determination Revenue'!$G$37 -> $2020-21 | I112: ='2021 Determination Revenue'!$G$37 -> $2020-21 | J112: ='2021 Determination Revenue'!$G$37 -> $2020-21 | K112: ='2021 Determination Revenue'!$G$37 -> $2020-21 | M112: =M$31 -> $2022-23 | N112: =N$31 -> $2022-23 | O112: =$O$31 -> % | Q112: =Q$31 -> $2020-21 | R112: =R$31 -> $2020-21 | S112: =S$31 -> %
B113: =B$32 -> Usage charges
B114: ='2021 Determination Revenue'!B$41 -> Border | C114: =$C$33 -> $/ML | G114: ='2021 Determination Charges'!G57 -> 0.8531212502 | H114: =(('MDB calcs'!H200/'MDB calcs'!H21)*1000) -> 0.8922004497 | I114: =(('MDB calcs'!I200/'MDB calcs'!I21)*1000) -> 0.9068803578 | J114: =(('MDB calcs'!J200/'MDB calcs'!J21)*1000) -> 0.9035951216 | K114: =LOOKUP($C$23,$H$70:$J$70,$H114:$J114) -> 0.8922004497 | M114: =LOOKUP($C$23,'2021 Determination Charges'!$M$13:$O$13,'2021 Determination Charges'!$M57:$O57) -> 0.9 | N114: =ROUND(ROUND(K114*$C$25,2)*$C$26,2) -> 0.95 | O114: =IF(M114=0,"na",N114/M114-1) -> 0.05555555556 | Q114: ='2021 Determination Charges'!I57 -> 0.8531212502 | R114: =K114 -> 0.8922004497 | S114: =IF(Q114=0,"na",R114/Q114-1) -> 0.04580732154
B115: ='2021 Determination Revenue'!B$42 -> Gwydir | C115: =$C$33 -> $/ML | G115: 0 | H115: =(('MDB calcs'!H201/'MDB calcs'!H22)*1000) -> 0 | I115: =(('MDB calcs'!I201/'MDB calcs'!I22)*1000) -> 0 | J115: =(('MDB calcs'!J201/'MDB calcs'!J22)*1000) -> 0 | K115: 0 | M115: 0 | N115: 0 | O115: na | Q115: =G115 -> 0 | R115: 0 | S115: na
B116: ='2021 Determination Revenue'!B$43 -> Namoi | C116: $/ML | G116: 0 | H116: =(('MDB calcs'!H202/'MDB calcs'!H23)*1000) -> 0 | I116: =(('MDB calcs'!I202/'MDB calcs'!I23)*1000) -> 0 | J116: =(('MDB calcs'!J202/'MDB calcs'!J23)*1000) -> 0 | K116: 0 | M116: 0 | N116: 0 | O116: na | Q116: =G116 -> 0 | R116: 0 | S116: na
B117: ='2021 Determination Revenue'!B$44 -> Peel | C117: $/ML | G117: 0 | H117: =(('MDB calcs'!H203/'MDB calcs'!H24)*1000) -> 0 | I117: =(('MDB calcs'!I203/'MDB calcs'!I24)*1000) -> 0 | J117: =(('MDB calcs'!J203/'MDB calcs'!J24)*1000) -> 0 | K117: 0 | M117: 0 | N117: 0 | O117: na | Q117: =G117 -> 0 | R117: 0 | S117: na
B118: ='2021 Determination Revenue'!B$45 -> Lachlan | C118: $/ML | G118: 0 | H118: =(('MDB calcs'!H204/'MDB calcs'!H25)*1000) -> 0 | I118: =(('MDB calcs'!I204/'MDB calcs'!I25)*1000) -> 0 | J118: =(('MDB calcs'!J204/'MDB calcs'!J25)*1000) -> 0 | K118: 0 | M118: 0 | N118: 0 | O118: na | Q118: =G118 -> 0 | R118: 0 | S118: na
B119: ='2021 Determination Revenue'!B$46 -> Macquarie | C119: $/ML | G119: 0 | H119: =(('MDB calcs'!H205/'MDB calcs'!H26)*1000) -> 0 | I119: =(('MDB calcs'!I205/'MDB calcs'!I26)*1000) -> 0 | J119: =(('MDB calcs'!J205/'MDB calcs'!J26)*1000) -> 0 | K119: 0 | M119: 0 | N119: 0 | O119: na | Q119: =G119 -> 0 | R119: 0 | S119: na
B120: ='2021 Determination Revenue'!B$47 -> Murray | C120: $/ML | G120: ='2021 Determination Charges'!G58 -> 1.828758239 | H120: =(('MDB calcs'!H206/'MDB calcs'!H27)*1000) -> 1.890744958 | I120: =(('MDB calcs'!I206/'MDB calcs'!I27)*1000) -> 1.955748033 | J120: =(('MDB calcs'!J206/'MDB calcs'!J27)*1000) -> 1.942592326 | K120: 1.890744958 | M120: =LOOKUP($C$23,'2021 Determination Charges'!$M$13:$O$13,'2021 Determination Charges'!$M58:$O58) -> 1.94 | N120: 2.01 | O120: 0.03608247423 | Q120: ='2021 Determination Charges'!J58 -> 1.828758239 | R120: 1.890744958 | S120: 0.03389552442
B121: ='2021 Determination Revenue'!B$48 -> Murrumbidgee | C121: $/ML | G121: ='2021 Determination Charges'!G59 -> 0.3653793286 | H121: =(('MDB calcs'!H207/'MDB calcs'!H28)*1000) -> 0.3689135706 | I121: =(('MDB calcs'!I207/'MDB calcs'!I28)*1000) -> 0.3786818093 | J121: =(('MDB calcs'!J207/'MDB calcs'!J28)*1000) -> 0.3822185303 | K121: 0.3689135706 | M121: =LOOKUP($C$23,'2021 Determination Charges'!$M$13:$O$13,'2021 Determination Charges'!$M59:$O59) -> 0.39 | N121: 0.39 | O121: 0 | Q121: ='2021 Determination Charges'!J59 -> 0.3653793286 | R121: 0.3689135706 | S121: 0.00967280244
B122: ='2021 Determination Revenue'!B$49 -> Lowbidgee | C122: =$C$33 -> $/ML | G122: 0 | H122: =(('MDB calcs'!H208/'MDB calcs'!H29)*1000) -> 0 | I122: =(('MDB calcs'!I208/'MDB calcs'!I29)*1000) -> 0 | J122: =(('MDB calcs'!J208/'MDB calcs'!J29)*1000) -> 0 | K122: 0 | M122: 0 | N122: 0 | O122: na | Q122: =G122 -> 0 | R122: 0 | S122: na
B123: Check=0 | H123: =SUM(H114:H121)-((SUMPRODUCT('MDB calcs'!H200:H207/'MDB calcs'!H21:H28))*1000) -> 0 | I123: =SUM(I114:I121)-((SUMPRODUCT('MDB calcs'!I200:I207/'MDB calcs'!I21:I28))*1000) -> 0 | J123: =SUM(J114:J121)-((SUMPRODUCT('MDB calcs'!J200:J207/'MDB calcs'!J21:J28))*1000) -> 0
B124: =B$43 -> General security entitlement charges
B125: ='2021 Determination Revenue'!B$41 -> Border | C125: =$C$33 -> $/ML | G125: ='2021 Determination Charges'!G62 -> 1.750815175 | H125: =IF('MDB calcs'!H129=0,0,(('MDB calcs'!H188/'MDB calcs'!H129)*1000)) -> 1.747704053 | I125: =IF('MDB calcs'!I129=0,0,(('MDB calcs'!I188/'MDB calcs'!I129)*1000)) -> 1.749644013 | J125: =IF('MDB calcs'!J129=0,0,(('MDB calcs'!J188/'MDB calcs'!J129)*1000)) -> 1.751440979 | K125: =LOOKUP($C$23,$H$70:$J$70,$H125:$J125) -> 1.747704053 | M125: =LOOKUP($C$23,'2021 Determination Charges'!$M$13:$O$13,'2021 Determination Charges'!$M62:$O62) -> 1.86 | N125: =ROUND(ROUND(K125*$C$25,2)*$C$26,2) -> 1.86 | O125: =IF(M125=0,"na",N125/M125-1) -> 0 | Q125: ='2021 Determination Charges'!J62 -> 1.750815175 | R125: =K125 -> 1.747704053 | S125: =IF(Q125=0,"na",R125/Q125-1) -> -0.001776956484
B126: ='2021 Determination Revenue'!B$42 -> Gwydir | C126: =$C$33 -> $/ML | G126: 0 | H126: =IF('MDB calcs'!H130=0,0,(('MDB calcs'!H189/'MDB calcs'!H130)*1000)) -> 0 | I126: =IF('MDB calcs'!I130=0,0,(('MDB calcs'!I189/'MDB calcs'!I130)*1000)) -> 0 | J126: =IF('MDB calcs'!J130=0,0,(('MDB calcs'!J189/'MDB calcs'!J130)*1000)) -> 0 | K126: 0 | M126: 0 | N126: 0 | O126: na | Q126: =G126 -> 0 | R126: 0 | S126: na
B127: ='2021 Determination Revenue'!B$43 -> Namoi | C127: $/ML | G127: 0 | H127: =IF('MDB calcs'!H131=0,0,(('MDB calcs'!H190/'MDB calcs'!H131)*1000)) -> 0 | I127: =IF('MDB calcs'!I131=0,0,(('MDB calcs'!I190/'MDB calcs'!I131)*1000)) -> 0 | J127: =IF('MDB calcs'!J131=0,0,(('MDB calcs'!J190/'MDB calcs'!J131)*1000)) -> 0 | K127: 0 | M127: 0 | N127: 0 | O127: na | Q127: =G127 -> 0 | R127: 0 | S127: na
B128: ='2021 Determination Revenue'!B$44 -> Peel | C128: $/ML | G128: 0 | H128: =IF('MDB calcs'!H132=0,0,(('MDB calcs'!H191/'MDB calcs'!H132)*1000)) -> 0 | I128: =IF('MDB calcs'!I132=0,0,(('MDB calcs'!I191/'MDB calcs'!I132)*1000)) -> 0 | J128: =IF('MDB calcs'!J132=0,0,(('MDB calcs'!J191/'MDB calcs'!J132)*1000)) -> 0 | K128: 0 | M128: 0 | N128: 0 | O128: na | Q128: =G128 -> 0 | R128: 0 | S128: na
B129: ='2021 Determination Revenue'!B$45 -> Lachlan | C129: $/ML | G129: 0 | H129: =IF('MDB calcs'!H133=0,0,(('MDB calcs'!H192/'MDB calcs'!H133)*1000)) -> 0 | I129: =IF('MDB calcs'!I133=0,0,(('MDB calcs'!I192/'MDB calcs'!I133)*1000)) -> 0 | J129: =IF('MDB calcs'!J133=0,0,(('MDB calcs'!J192/'MDB calcs'!J133)*1000)) -> 0 | K129: 0 | M129: 0 | N129: 0 | O129: na | Q129: =G129 -> 0 | R129: 0 | S129: na
B130: ='2021 Determination Revenue'!B$46 -> Macquarie | C130: $/ML | G130: 0 | H130: =IF('MDB calcs'!H134=0,0,(('MDB calcs'!H193/'MDB calcs'!H134)*1000)) -> 0 | I130: =IF('MDB calcs'!I134=0,0,(('MDB calcs'!I193/'MDB calcs'!I134)*1000)) -> 0 | J130: =IF('MDB calcs'!J134=0,0,(('MDB calcs'!J193/'MDB calcs'!J134)*1000)) -> 0 | K130: 0 | M130: 0 | N130: 0 | O130: na | Q130: =G130 -> 0 | R130: 0 | S130: na
B131: ='2021 Determination Revenue'!B$47 -> Murray | C131: $/ML | G131: ='2021 Determination Charges'!G63 -> 3.762410717 | H131: =IF('MDB calcs'!H135=0,0,(('MDB calcs'!H194/'MDB calcs'!H135)*1000)) -> 3.670711785 | I131: =IF('MDB calcs'!I135=0,0,(('MDB calcs'!I194/'MDB calcs'!I135)*1000)) -> 3.703761064 | J131: =IF('MDB calcs'!J135=0,0,(('MDB calcs'!J194/'MDB calcs'!J135)*1000)) -> 3.709496673 | K131: 3.670711785 | M131: =LOOKUP($C$23,'2021 Determination Charges'!$M$13:$O$13,'2021 Determination Charges'!$M63:$O63) -> 3.99 | N131: 3.9 | O131: -0.02255639098 | Q131: ='2021 Determination Charges'!J63 -> 3.762410717 | R131: 3.670711785 | S131: -0.02437238749
B132: ='2021 Determination Revenue'!B$48 -> Murrumbidgee | C132: $/ML | G132: ='2021 Determination Charges'!G64 -> 0.6327081647 | H132: =IF('MDB calcs'!H136=0,0,(('MDB calcs'!H195/'MDB calcs'!H136)*1000)) -> 0.6215807671 | I132: =IF('MDB calcs'!I136=0,0,(('MDB calcs'!I195/'MDB calcs'!I136)*1000)) -> 0.6274697945 | J132: =IF('MDB calcs'!J136=0,0,(('MDB calcs'!J195/'MDB calcs'!J136)*1000)) -> 0.6311368872 | K132: 0.6215807671 | M132: =LOOKUP($C$23,'2021 Determination Charges'!$M$13:$O$13,'2021 Determination Charges'!$M64:$O64) -> 0.67 | N132: 0.66 | O132: -0.01492537313 | Q132: ='2021 Determination Charges'!J64 -> 0.6327081647 | R132: 0.6215807671 | S132: -0.0175869355
B133: ='2021 Determination Revenue'!B$49 -> Lowbidgee | C133: =$C$33 -> $/ML | G133: 0 | H133: =IF('MDB calcs'!H137=0,0,(('MDB calcs'!H196/'MDB calcs'!H137)*1000)) -> 0 | I133: =IF('MDB calcs'!I137=0,0,(('MDB calcs'!I196/'MDB calcs'!I137)*1000)) -> 0 | J133: =IF('MDB calcs'!J137=0,0,(('MDB calcs'!J196/'MDB calcs'!J137)*1000)) -> 0 | K133: 0 | M133: 0 | N133: 0 | O133: na | Q133: =G133 -> 0 | R133: 0 | S133: na
B135: =B$54 -> High security entitlement charges
B136: ='2021 Determination Revenue'!B$41 -> Border | C136: =$C$33 -> $/ML | G136: ='2021 Determination Charges'!G67 -> 4.782665345 | H136: =(H125*'MDB calcs'!H112) -> 5.044235392 | I136: =(I125*'MDB calcs'!I112) -> 4.881665407 | J136: =(J125*'MDB calcs'!J112) -> 4.731078339 | K136: =LOOKUP($C$23,$H$70:$J$70,$H136:$J136) -> 5.044235392 | M136: =LOOKUP($C$23,'2021 Determination Charges'!$M$13:$O$13,'2021 Determination Charges'!$M67:$O67) -> 5.09 | N136: =ROUND(ROUND(K136*$C$25,2)*$C$26,2) -> 5.36 | O136: =IF(M136=0,"na",N136/M136-1) -> 0.05304518664 | Q136: ='2021 Determination Charges'!J67 -> 4.782665345 | R136: =K136 -> 5.044235392 | S136: =IF(Q136=0,"na",R136/Q136-1) -> 0.05469127112
B137: ='2021 Determination Revenue'!B$42 -> Gwydir | C137: =$C$33 -> $/ML | G137: 0 | H137: =(H126*'MDB calcs'!H113) -> 0 | I137: =(I126*'MDB calcs'!I113) -> 0 | J137: =(J126*'MDB calcs'!J113) -> 0 | K137: 0 | M137: 0 | N137: 0 | O137: na | Q137: =G137 -> 0 | R137: 0 | S137: na
B138: ='2021 Determination Revenue'!B$43 -> Namoi | C138: $/ML | G138: 0 | H138: =(H127*'MDB calcs'!H114) -> 0 | I138: =(I127*'MDB calcs'!I114) -> 0 | J138: =(J127*'MDB calcs'!J114) -> 0 | K138: 0 | M138: 0 | N138: 0 | O138: na | Q138: =G138 -> 0 | R138: 0 | S138: na
B139: ='2021 Determination Revenue'!B$44 -> Peel | C139: $/ML | G139: 0 | H139: =(H128*'MDB calcs'!H115) -> 0 | I139: =(I128*'MDB calcs'!I115) -> 0 | J139: =(J128*'MDB calcs'!J115) -> 0 | K139: 0 | M139: 0 | N139: 0 | O139: na | Q139: =G139 -> 0 | R139: 0 | S139: na
B140: ='2021 Determination Revenue'!B$45 -> Lachlan | C140: $/ML | G140: 0 | H140: =(H129*'MDB calcs'!H116) -> 0 | I140: =(I129*'MDB calcs'!I116) -> 0 | J140: =(J129*'MDB calcs'!J116) -> 0 | K140: 0 | M140: 0 | N140: 0 | O140: na | Q140: =G140 -> 0 | R140: 0 | S140: na
B141: ='2021 Determination Revenue'!B$46 -> Macquarie | C141: $/ML | G141: 0 | H141: =(H130*'MDB calcs'!H117) -> 0 | I141: =(I130*'MDB calcs'!I117) -> 0 | J141: =(J130*'MDB calcs'!J117) -> 0 | K141: 0 | M141: 0 | N141: 0 | O141: na | Q141: =G141 -> 0 | R141: 0 | S141: na
B142: ='2021 Determination Revenue'!B$47 -> Murray | C142: $/ML | G142: ='2021 Determination Charges'!G68 -> 8.543069904 | H142: =(H131*'MDB calcs'!H118) -> 8.821903972 | I142: =(I131*'MDB calcs'!I118) -> 8.884845163 | J142: =(J131*'MDB calcs'!J118) -> 8.530051097 | K142: 8.821903972 | M142: =LOOKUP($C$23,'2021 Determination Charges'!$M$13:$O$13,'2021 Determination Charges'!$M68:$O68) -> 9.08 | N142: 9.37 | O142: 0.03193832599 | Q142: ='2021 Determination Charges'!J68 -> 8.543069904 | R142: 8.821903972 | S142: 0.03263862653
B143: ='2021 Determination Revenue'!B$48 -> Murrumbidgee | C143: $/ML | G143: ='2021 Determination Charges'!G69 -> 1.841223636 | H143: =(H132*'MDB calcs'!H119) -> 1.884712627 | I143: =(I132*'MDB calcs'!I119) -> 1.854442908 | J143: =(J132*'MDB calcs'!J119) -> 1.835573483 | K143: 1.884712627 | M143: =LOOKUP($C$23,'2021 Determination Charges'!$M$13:$O$13,'2021 Determination Charges'!$M69:$O69) -> 1.95 | N143: 2.01 | O143: 0.03076923077 | Q143: ='2021 Determination Charges'!J69 -> 1.841223636 | R143: 1.884712627 | S143: 0.02361961374
B144: ='2021 Determination Revenue'!B$49 -> Lowbidgee | C144: =$C$33 -> $/ML | G144: 0 | H144: =(H133*'MDB calcs'!H120) -> 0 | I144: =(I133*'MDB calcs'!I120) -> 0 | J144: =(J133*'MDB calcs'!J120) -> 0 | K144: 0 | M144: 0 | N144: 0 | O144: na | Q144: =G144 -> 0 | R144: 0 | S144: na
B145: Check=0 | H145: =SUMPRODUCT(H125:H133,'MDB calcs'!H112:H120)-SUM(H136:H144) -> 0 | I145: =SUMPRODUCT(I125:I133,'MDB calcs'!I112:I120)-SUM(I136:I144) -> 0 | J145: =SUMPRODUCT(J125:J133,'MDB calcs'!J112:J120)-SUM(J136:J144) -> 0
B149: TABLE 4.4 - FISH RIVER WATER SUPPLY SCHEME CHARGES
B150: ='2021 Determination Revenue'!B$20 -> Financial year | C150: ='2021 Determination Revenue'!C$36 -> Units | G150: ='2021 Determination Revenue'!G$20 -> 2021-22 | H150: ='2021 Determination Revenue'!H$20 -> 2022-23 | I150: ='2021 Determination Revenue'!I$20 -> 2023-24 | J150: ='2021 Determination Revenue'!J$20 -> 2024-25 | M150: =M$29 -> Analysis of 2022-23 Charges based on ∆ in demand and CPI (expressed in $2022-23) | Q150: =Q110 -> Analysis of 2022-23 Charges based on ∆ in demand and CPI (expressed in $2020-21)
G151: =G$30 -> As per 2021 Price Review | H151: =H$30 -> Re-calculated using updated demand | I151: =I$30 -> Re-calculated using updated demand | J151: =J$30 -> Re-calculated using updated demand | K151: =K$30 -> Prices for selected year (ie 2022-23) | M151: =G151 -> As per 2021 Price Review | N151: =H151 -> Re-calculated using updated demand | O151: =$O$30 -> Difference | Q151: =Q111 -> As per 2021 Price Review | R151: =R111 -> Re-calculated using updated demand | S151: =S111 -> Difference
G152: ='2021 Determination Revenue'!$G$37 -> $2020-21 | H152: ='2021 Determination Revenue'!$G$37 -> $2020-21 | I152: ='2021 Determination Revenue'!$G$37 -> $2020-21 | J152: ='2021 Determination Revenue'!$G$37 -> $2020-21 | K152: ='2021 Determination Revenue'!$G$37 -> $2020-21 | M152: =M$31 -> $2022-23 | N152: =N$31 -> $2022-23 | O152: =$O$31 -> % | Q152: =Q$31 -> $2020-21 | R152: =R$31 -> $2020-21 | S152: =S$31 -> %
B153: MAQ
B154: ='Updated Volumes'!B$31 -> Energy Australia | C154: $/kL | G154: ='2021 Determination Charges'!G80 -> 0.4801026975 | H154: =IF('FRWS calcs'!H14=0,0,('FRWS calcs'!H43/'FRWS calcs'!H14)) -> 0.4801026975 | I154: =IF('FRWS calcs'!I14=0,0,('FRWS calcs'!I43/'FRWS calcs'!I14)) -> 0 | J154: =IF('FRWS calcs'!J14=0,0,('FRWS calcs'!J43/'FRWS calcs'!J14)) -> 0 | K154: =LOOKUP($C$23,$H$70:$J$70,$H154:$J154) -> 0.4801026975 | M154: =LOOKUP($C$23,'2021 Determination Charges'!$M$13:$O$13,'2021 Determination Charges'!$M80:$O80) -> 0.51 | N154: =ROUND(ROUND(K154*$C$25,2)*$C$26,2) -> 0.51 | O154: =IF(M154=0,"na",N154/M154-1) -> 0 | Q154: ='2021 Determination Charges'!J80 -> 0.4801026975 | R154: =K154 -> 0.4801026975 | S154: =IF(Q154=0,"na",R154/Q154-1) -> 0
B155: ='Updated Volumes'!B$32 -> Minor customers (raw) | C155: =Outputs!$C$154 -> $/kL | G155: ='2021 Determination Charges'!G81 -> 0.4801026975 | H155: =IF('FRWS calcs'!H15=0,0,('FRWS calcs'!H44/'FRWS calcs'!H15)) -> 0.4801026975 | I155: =IF('FRWS calcs'!I15=0,0,('FRWS calcs'!I44/'FRWS calcs'!I15)) -> 0 | J155: =IF('FRWS calcs'!J15=0,0,('FRWS calcs'!J44/'FRWS calcs'!J15)) -> 0 | K155: =LOOKUP($C$23,$H$70:$J$70,$H155:$J155) -> 0.4801026975 | M155: =LOOKUP($C$23,'2021 Determination Charges'!$M$13:$O$13,'2021 Determination Charges'!$M81:$O81) -> 0.51 | N155: =ROUND(ROUND(K155*$C$25,2)*$C$26,2) -> 0.51 | O155: =IF(M155=0,"na",N155/M155-1) -> 0 | Q155: ='2021 Determination Charges'!J81 -> 0.4801026975 | R155: 0.4801026975 | S155: -1.110223025e-16
B156: ='Updated Volumes'!B$33 -> Minor customers (filtered) | C156: =Outputs!$C$154 -> $/kL | G156: ='2021 Determination Charges'!G82 -> 0.846921779 | H156: =IF('FRWS calcs'!H16=0,0,('FRWS calcs'!H45/'FRWS calcs'!H16)) -> 0.846921779 | I156: =IF('FRWS calcs'!I16=0,0,('FRWS calcs'!I45/'FRWS calcs'!I16)) -> 0 | J156: =IF('FRWS calcs'!J16=0,0,('FRWS calcs'!J45/'FRWS calcs'!J16)) -> 0 | K156: =LOOKUP($C$23,$H$70:$J$70,$H156:$J156) -> 0.846921779 | M156: =LOOKUP($C$23,'2021 Determination Charges'!$M$13:$O$13,'2021 Determination Charges'!$M82:$O82) -> 0.9 | N156: =ROUND(ROUND(K156*$C$25,2)*$C$26,2) -> 0.9 | O156: =IF(M156=0,"na",N156/M156-1) -> 0 | Q156: ='2021 Determination Charges'!J82 -> 0.846921779 | R156: 0.846921779 | S156: 0
B158: Usage up to MAQ
B159: ='Updated Volumes'!B$31 -> Energy Australia | C159: =Outputs!$C$154 -> $/kL | G159: ='2021 Determination Charges'!G85 -> 0.3246381535 | H159: =IF('FRWS calcs'!H14=0,0,(IF('FRWS calcs'!H20<='FRWS calcs'!H14,(('FRWS calcs'!H58-'FRWS calcs'!H43)/'FRWS calcs'!H20),((('FRWS calcs'!H58-'FRWS calcs'!H43)-(('FRWS calcs'!H20-'FRWS calcs'!H14)*H154))/'FRWS calcs'!H20)))) -> 0.337163612 | I159: =IF('FRWS calcs'!I14=0,0,(IF('FRWS calcs'!I20<='FRWS calcs'!I14,(('FRWS calcs'!I58-'FRWS calcs'!I43)/'FRWS calcs'!I20),((('FRWS calcs'!I58-'FRWS calcs'!I43)-(('FRWS calcs'!I20-'FRWS calcs'!I14)*I154))/'FRWS calcs'!I20)))) -> 0 | J159: =IF('FRWS calcs'!J14=0,0,(IF('FRWS calcs'!J20<='FRWS calcs'!J14,(('FRWS calcs'!J58-'FRWS calcs'!J43)/'FRWS calcs'!J20),((('FRWS calcs'!J58-'FRWS calcs'!J43)-(('FRWS calcs'!J20-'FRWS calcs'!J14)*J154))/'FRWS calcs'!J20)))) -> 0 | K159: =LOOKUP($C$23,$H$70:$J$70,$H159:$J159) -> 0.337163612 | M159: =LOOKUP($C$23,'2021 Determination Charges'!$M$13:$O$13,'2021 Determination Charges'!$M85:$O85) -> 0.35 | N159: =ROUND(ROUND(K159*$C$25,2)*$C$26,2) -> 0.36 | O159: =IF(M159=0,"na",N159/M159-1) -> 0.02857142857 | Q159: ='2021 Determination Charges'!J85 -> 0.3246381535 | R159: =K159 -> 0.337163612 | S159: =IF(Q159=0,"na",R159/Q159-1) -> 0.0385828296
B160: ='Updated Volumes'!B$32 -> Minor customers (raw) | C160: =Outputs!$C$154 -> $/kL | G160: ='2021 Determination Charges'!G86 -> 0.3246381535 | H160: =IF('FRWS calcs'!H15=0,0,(IF('FRWS calcs'!H21<='FRWS calcs'!H15,(('FRWS calcs'!H59-'FRWS calcs'!H44)/'FRWS calcs'!H21),((('FRWS calcs'!H59-'FRWS calcs'!H44)-(('FRWS calcs'!H21-'FRWS calcs'!H15)*H155))/'FRWS calcs'!H21)))) -> 0.3224889525 | I160: =IF('FRWS calcs'!I15=0,0,(IF('FRWS calcs'!I21<='FRWS calcs'!I15,(('FRWS calcs'!I59-'FRWS calcs'!I44)/'FRWS calcs'!I21),((('FRWS calcs'!I59-'FRWS calcs'!I44)-(('FRWS calcs'!I21-'FRWS calcs'!I15)*I155))/'FRWS calcs'!I21)))) -> 0 | J160: =IF('FRWS calcs'!J15=0,0,(IF('FRWS calcs'!J21<='FRWS calcs'!J15,(('FRWS calcs'!J59-'FRWS calcs'!J44)/'FRWS calcs'!J21),((('FRWS calcs'!J59-'FRWS calcs'!J44)-(('FRWS calcs'!J21-'FRWS calcs'!J15)*J155))/'FRWS calcs'!J21)))) -> 0 | K160: =LOOKUP($C$23,$H$70:$J$70,$H160:$J160) -> 0.3224889525 | M160: =LOOKUP($C$23,'2021 Determination Charges'!$M$13:$O$13,'2021 Determination Charges'!$M86:$O86) -> 0.35 | N160: =ROUND(ROUND(K160*$C$25,2)*$C$26,2) -> 0.35 | O160: =IF(M160=0,"na",N160/M160-1) -> 0 | Q160: ='2021 Determination Charges'!J86 -> 0.3246381535 | R160: 0.3224889525 | S160: -0.006620296936
B161: ='Updated Volumes'!B$33 -> Minor customers (filtered) | C161: =Outputs!$C$154 -> $/kL | G161: ='2021 Determination Charges'!G87 -> 0.5246381535 | H161: =IF('FRWS calcs'!H16=0,0,(IF('FRWS calcs'!H22<='FRWS calcs'!H16,(('FRWS calcs'!H60-'FRWS calcs'!H45)/'FRWS calcs'!H22),((('FRWS calcs'!H60-'FRWS calcs'!H45)-(('FRWS calcs'!H22-'FRWS calcs'!H16)*H156))/'FRWS calcs'!H22)))) -> 0.5601531414 | I161: =IF('FRWS calcs'!I16=0,0,(IF('FRWS calcs'!I22<='FRWS calcs'!I16,(('FRWS calcs'!I60-'FRWS calcs'!I45)/'FRWS calcs'!I22),((('FRWS calcs'!I60-'FRWS calcs'!I45)-(('FRWS calcs'!I22-'FRWS calcs'!I16)*I156))/'FRWS calcs'!I22)))) -> 0 | J161: =IF('FRWS calcs'!J16=0,0,(IF('FRWS calcs'!J22<='FRWS calcs'!J16,(('FRWS calcs'!J60-'FRWS calcs'!J45)/'FRWS calcs'!J22),((('FRWS calcs'!J60-'FRWS calcs'!J45)-(('FRWS calcs'!J22-'FRWS calcs'!J16)*J156))/'FRWS calcs'!J22)))) -> 0 | K161: =LOOKUP($C$23,$H$70:$J$70,$H161:$J161) -> 0.5601531414 | M161: =LOOKUP($C$23,'2021 Determination Charges'!$M$13:$O$13,'2021 Determination Charges'!$M87:$O87) -> 0.56 | N161: =ROUND(ROUND(K161*$C$25,2)*$C$26,2) -> 0.6 | O161: =IF(M161=0,"na",N161/M161-1) -> 0.07142857143 | Q161: ='2021 Determination Charges'!J87 -> 0.5246381535 | R161: 0.5601531414 | S161: 0.06769425298
B163: Usage in excess of MAQ
B164: ='Updated Volumes'!B$31 -> Energy Australia | C164: =Outputs!$C$154 -> $/kL | G164: =(G154+G159) -> 0.804740851 | H164: =(H154+H159) -> 0.8172663095 | I164: 0 | J164: =(J154+J159) -> 0 | K164: =LOOKUP($C$23,$H$70:$J$70,$H164:$J164) -> 0.8172663095 | M164: =LOOKUP($C$23,'2021 Determination Charges'!$M$13:$O$13,'2021 Determination Charges'!$M90:$O90) -> 0.86 | N164: =ROUND(ROUND(K164*$C$25,2)*$C$26,2) -> 0.87 | O164: =IF(M164=0,"na",N164/M164-1) -> 0.01162790698 | Q164: ='2021 Determination Charges'!J90 -> 0.804740851 | R164: 0.8172663095 | S164: =IF(Q164=0,"na",R164/Q164-1) -> 0.01556458646
B165: ='Updated Volumes'!B$32 -> Minor customers (raw) | C165: =Outputs!$C$154 -> $/kL | G165: =(G155+G160) -> 0.804740851 | H165: 0.80259165 | I165: 0 | J165: =(J155+J160) -> 0 | K165: =LOOKUP($C$23,$H$70:$J$70,$H165:$J165) -> 0.80259165 | M165: =LOOKUP($C$23,'2021 Determination Charges'!$M$13:$O$13,'2021 Determination Charges'!$M91:$O91) -> 0.86 | N165: =ROUND(ROUND(K165*$C$25,2)*$C$26,2) -> 0.85 | O165: =IF(M165=0,"na",N165/M165-1) -> -0.01162790698 | Q165: ='2021 Determination Charges'!J91 -> 0.804740851 | R165: 0.80259165 | S165: -0.002670674628
B166: ='Updated Volumes'!B$33 -> Minor customers (filtered) | C166: =Outputs!$C$154 -> $/kL | G166: =(G156+G161) -> 1.371559933 | H166: 1.40707492 | I166: 0 | J166: =(J156+J161) -> 0 | K166: =LOOKUP($C$23,$H$70:$J$70,$H166:$J166) -> 1.40707492 | M166: =LOOKUP($C$23,'2021 Determination Charges'!$M$13:$O$13,'2021 Determination Charges'!$M92:$O92) -> 1.46 | N166: =ROUND(ROUND(K166*$C$25,2)*$C$26,2) -> 1.49 | O166: =IF(M166=0,"na",N166/M166-1) -> 0.02054794521 | Q166: ='2021 Determination Charges'!J92 -> 1.371559933 | R166: 1.40707492 | S166: 0.02589386511
B173: CUSTOMER BILLS
B175: TABLE 4.5 - INDICATIVE BILLS FOR HIGH SECURITY CUSTOMERS - WaterNSW CHARGES
B176: ='2021 Determination Revenue'!B$20 -> Financial year | C176: ='2021 Determination Revenue'!C$36 -> Units | D176: Volumes | I176: =C23 -> 2022-23 | J176: =I176 -> 2022-23 | K176: Bill analysis of based on ∆ in demand and CPI
D177: Entitle-ment | E177: Usage | I177: =G151 -> As per 2021 Price Review | J177: =H151 -> Re-calculated using updated demand | K177: Difference
I178: =$M$31 -> $2022-23 | J178: =I178 -> $2022-23 | K178: =$O$31 -> %
B179: ='2021 Determination Revenue'!B$126 -> Small consumption customers | C179: ="Entitlement = "&'2021 Determination Revenue'!H$126&" kL pa, Usage = "&'2021 Determination Revenue'!H$131*'2021 Determination Revenue'!H$126&" kL pa" -> Entitlement = 100 kL pa, Usage = 100 kL pa
B180: ='2021 Determination Revenue'!B$41 -> Border | C180: $ | D180: ='2021 Determination Revenue'!G$136 -> 100 | E180: =D180*'2021 Determination Revenue'!G$131 -> 100 | I180: =$E180*M74+$D180*M96 -> 1431 | J180: =$E180*N74+$D180*N96 -> 1501 | K180: =IFERROR(J180/I180-1,"na") -> 0.04891684137
B181: ='2021 Determination Revenue'!B$42 -> Gwydir | C181: =C$180 -> $ | D181: =D180 -> 100 | E181: =E180 -> 100 | I181: 3636 | J181: 3809 | K181: 0.04757975798
B182: ='2021 Determination Revenue'!B$43 -> Namoi | C182: $ | D182: =D181 -> 100 | E182: =E181 -> 100 | I182: 6286 | J182: 6784 | K182: 0.07922367165
B183: ='2021 Determination Revenue'!B$44 -> Peel | C183: $ | D183: 100 | E183: 100 | I183: 9025 | J183: 9147 | K183: 0.01351800554
B184: ='2021 Determination Revenue'!B$45 -> Lachlan | C184: $ | D184: 100 | E184: 100 | I184: 5914 | J184: 6417 | K184: 0.08505241799
B185: ='2021 Determination Revenue'!B$46 -> Macquarie | C185: $ | D185: 100 | E185: 100 | I185: 4395 | J185: 4887 | K185: 0.1119453925
B186: ='2021 Determination Revenue'!B$47 -> Murray | C186: $ | D186: 100 | E186: 100 | I186: 546 | J186: 563 | K186: 0.03113553114
B187: ='2021 Determination Revenue'!B$48 -> Murrumbidgee | C187: $ | D187: 100 | E187: 100 | I187: 960 | J187: 977 | K187: 0.01770833333
B188: ='2021 Determination Revenue'!B$49 -> Lowbidgee | C188: $ | D188: 100 | E188: 100 | I188: 0 | J188: 0 | K188: na
B190: ='2021 Determination Revenue'!B$127 -> Medium consumption customers | C190: ="Entitlement = "&'2021 Determination Revenue'!H$127&" kL pa, Usage = "&'2021 Determination Revenue'!H$132*'2021 Determination Revenue'!H$127&" kL pa" -> Entitlement = 500 kL pa, Usage = 500 kL pa
B191: ='2021 Determination Revenue'!B$41 -> Border | C191: =C$180 -> $ | D191: ='2021 Determination Revenue'!G$137 -> 500 | E191: =D191*'2021 Determination Revenue'!G$132 -> 500 | I191: =$E191*M74+$D191*M96 -> 7155 | J191: =$E191*N74+$D191*N96 -> 7505 | K191: =IFERROR(J191/I191-1,"na") -> 0.04891684137
B192: ='2021 Determination Revenue'!B$42 -> Gwydir | C192: $ | D192: =D191 -> 500 | E192: =E191 -> 500 | I192: 18180 | J192: 19045 | K192: 0.04757975798
B193: ='2021 Determination Revenue'!B$43 -> Namoi | C193: $ | D193: =D192 -> 500 | E193: =E192 -> 500 | I193: 31430 | J193: 33920 | K193: 0.07922367165
B194: ='2021 Determination Revenue'!B$44 -> Peel | C194: $ | D194: 500 | E194: 500 | I194: 45125 | J194: 45735 | K194: 0.01351800554
B195: ='2021 Determination Revenue'!B$45 -> Lachlan | C195: $ | D195: 500 | E195: 500 | I195: 29570 | J195: 32085 | K195: 0.08505241799
B196: ='2021 Determination Revenue'!B$46 -> Macquarie | C196: $ | D196: 500 | E196: 500 | I196: 21975 | J196: 24435 | K196: 0.1119453925
B197: ='2021 Determination Revenue'!B$47 -> Murray | C197: $ | D197: 500 | E197: 500 | I197: 2730 | J197: 2815 | K197: 0.03113553114
B198: ='2021 Determination Revenue'!B$48 -> Murrumbidgee | C198: $ | D198: 500 | E198: 500 | I198: 4800 | J198: 4885 | K198: 0.01770833333
B199: ='2021 Determination Revenue'!B$49 -> Lowbidgee | C199: $ | D199: 500 | E199: 500 | I199: 0 | J199: 0 | K199: na
B201: ='2021 Determination Revenue'!B$128 -> Large consumption customers | C201: ="Entitlement = "&'2021 Determination Revenue'!H$128&" kL pa, Usage = "&'2021 Determination Revenue'!H$133*'2021 Determination Revenue'!H$128&" kL pa" -> Entitlement = 1000 kL pa, Usage = 1000 kL pa
B202: ='2021 Determination Revenue'!B$41 -> Border | C202: =C$180 -> $ | D202: ='2021 Determination Revenue'!G$138 -> 1000 | E202: =D202*'2021 Determination Revenue'!G$133 -> 1000 | I202: =$E202*M74+$D202*M96 -> 14310 | J202: =$E202*N74+$D202*N96 -> 15010 | K202: =IFERROR(J202/I202-1,"na") -> 0.04891684137
B203: ='2021 Determination Revenue'!B$42 -> Gwydir | C203: $ | D203: =D202 -> 1000 | E203: =E202 -> 1000 | I203: 36360 | J203: 38090 | K203: 0.04757975798
B204: ='2021 Determination Revenue'!B$43 -> Namoi | C204: $ | D204: =D203 -> 1000 | E204: =E203 -> 1000 | I204: 62860 | J204: 67840 | K204: 0.07922367165
B205: ='2021 Determination Revenue'!B$44 -> Peel | C205: $ | D205: 1000 | E205: 1000 | I205: 90250 | J205: 91470 | K205: 0.01351800554
B206: ='2021 Determination Revenue'!B$45 -> Lachlan | C206: $ | D206: 1000 | E206: 1000 | I206: 59140 | J206: 64170 | K206: 0.08505241799
B207: ='2021 Determination Revenue'!B$46 -> Macquarie | C207: $ | D207: 1000 | E207: 1000 | I207: 43950 | J207: 48870 | K207: 0.1119453925
B208: ='2021 Determination Revenue'!B$47 -> Murray | C208: $ | D208: 1000 | E208: 1000 | I208: 5460 | J208: 5630 | K208: 0.03113553114
B209: ='2021 Determination Revenue'!B$48 -> Murrumbidgee | C209: $ | D209: 1000 | E209: 1000 | I209: 9600 | J209: 9770 | K209: 0.01770833333
B210: ='2021 Determination Revenue'!B$49 -> Lowbidgee | C210: $ | D210: 1000 | E210: 1000 | I210: 0 | J210: 0 | K210: na
B214: TABLE 4.6 - INDICATIVE BILLS FOR GENERAL SECURITY CUSTOMERS - WaterNSW CHARGES
B215: ='2021 Determination Revenue'!B$20 -> Financial year | C215: ='2021 Determination Revenue'!C$36 -> Units | D215: Volumes | I215: =$I$176 -> 2022-23 | J215: 2022-23 | K215: Bill analysis of based on ∆ in demand and CPI
D216: Entitle-ment | E216: Usage | I216: =I$177 -> As per 2021 Price Review | J216: =J$177 -> Re-calculated using updated demand | K216: Difference
I217: =$M$31 -> $2022-23 | J217: =I217 -> $2022-23 | K217: =$O$31 -> %
B218: ='2021 Determination Revenue'!B$126 -> Small consumption customers | C218: ="Entitlement = "&'2021 Determination Revenue'!H$136&" kL pa, Usage = "&'2021 Determination Revenue'!H$141*'2021 Determination Revenue'!H$136&" kL pa" -> Entitlement = 100 kL pa, Usage = 60 kL pa
B219: ='2021 Determination Revenue'!B$41 -> Border | C219: =C$180 -> $ | D219: ='2021 Determination Revenue'!G136 -> 100 | E219: =D219*'2021 Determination Revenue'!G141 -> 60 | I219: =M74*$E219+M85*$D219 -> 696.4 | J219: =N74*$E219+N85*$D219 -> 715.2 | K219: =IFERROR(J219/I219-1,"na") -> 0.02699597932
B220: ='2021 Determination Revenue'!B$42 -> Gwydir | C220: $ | D220: =D219 -> 100 | E220: =E219 -> 60 | I220: 1509.2 | J220: 1560.2 | K220: 0.03379273787
B221: ='2021 Determination Revenue'!B$43 -> Namoi | C221: $ | D221: =D220 -> 100 | E221: =E220 -> 60 | I221: 3009 | J221: 3092 | K221: 0.02758391492
B222: ='2021 Determination Revenue'!B$44 -> Peel | C222: $ | D222: 100 | E222: 60 | I222: 2157.6 | J222: 2139.6 | K222: -0.008342602892
B223: ='2021 Determination Revenue'!B$45 -> Lachlan | C223: $ | D223: 100 | E223: 60 | I223: 2355.6 | J223: 2480.8 | K223: 0.05314994057
B224: ='2021 Determination Revenue'!B$46 -> Macquarie | C224: $ | D224: 100 | E224: 60 | I224: 1778.4 | J224: 1857 | K224: 0.04419703104
B225: ='2021 Determination Revenue'!B$47 -> Murray | C225: $ | D225: 100 | E225: 60 | I225: 288.8 | J225: 292.8 | K225: 0.01385041551
B226: ='2021 Determination Revenue'!B$48 -> Murrumbidgee | C226: $ | D226: 100 | E226: 60 | I226: 463.2 | J226: 464.8 | K226: 0.003454231434
B227: ='2021 Determination Revenue'!B$49 -> Lowbidgee | C227: $ | D227: 100 | E227: 60 | I227: 181 | J227: 181 | K227: 0
B229: ='2021 Determination Revenue'!B$127 -> Medium consumption customers | C229: ="Entitlement = "&'2021 Determination Revenue'!H$137&" kL pa, Usage = "&'2021 Determination Revenue'!H$142*'2021 Determination Revenue'!H$137&" kL pa" -> Entitlement = 500 kL pa, Usage = 300 kL pa
B230: ='2021 Determination Revenue'!B$41 -> Border | C230: =C$180 -> $ | D230: ='2021 Determination Revenue'!G137 -> 500 | E230: =D230*'2021 Determination Revenue'!G142 -> 300 | I230: =M74*$E230+M85*$D230 -> 3482 | J230: =N74*$E230+N85*$D230 -> 3576 | K230: =IFERROR(J230/I230-1,"na") -> 0.02699597932
B231: ='2021 Determination Revenue'!B$42 -> Gwydir | C231: $ | D231: =D230 -> 500 | E231: =E230 -> 300 | I231: 7546 | J231: 7801 | K231: 0.03379273787
B232: ='2021 Determination Revenue'!B$43 -> Namoi | C232: $ | D232: =D231 -> 500 | E232: =E231 -> 300 | I232: 15045 | J232: 15460 | K232: 0.02758391492
B233: ='2021 Determination Revenue'!B$44 -> Peel | C233: $ | D233: 500 | E233: 300 | I233: 10788 | J233: 10698 | K233: -0.008342602892
B234: ='2021 Determination Revenue'!B$45 -> Lachlan | C234: $ | D234: 500 | E234: 300 | I234: 11778 | J234: 12404 | K234: 0.05314994057
... 116 more rows

Sheet Calculations>>
D5: Page intentionally left blank

Sheet FRWS calcs
B2: 6 FISH RIVER WATER SUPPLY SCHEME (FRWS) CALCULATIONS
B3: This worksheet calculates the usage, MAQ and required revenue components needed to calculate the FRWS charges for each customer type and each water type.
B5: List of tables | F5: Row number
B6: =B10 -> TABLE 6.1 - FISH RIVER USAGE AND MAQ VALUES | F6: =ROW(B10) -> 10
B7: =B39 -> TABLE 6.2 - FISH RIVER REQUIRED REVENUE CALCULATIONS | F7: =ROW(B39) -> 39
B10: TABLE 6.1 - FISH RIVER USAGE AND MAQ VALUES
B11: ='2021 Determination Revenue'!B$19 -> Financial year ending 30 June | C11: ='2021 Determination Revenue'!C$19 -> Units | G11: ='2021 Determination Revenue'!G$20 -> 2021-22 | H11: ='2021 Determination Revenue'!H$20 -> 2022-23 | I11: ='2021 Determination Revenue'!I$20 -> 2023-24 | J11: ='2021 Determination Revenue'!J$20 -> 2024-25
B13: MAQ Level
B14: ='Updated Volumes'!B$31 -> Energy Australia | C14: ='Updated Volumes'!$C$20 -> ML | G14: ='Updated Volumes'!AA124 -> 8184 | H14: ='Updated Volumes'!AB124 -> 8184 | I14: ='Updated Volumes'!AC124 -> 0 | J14: ='Updated Volumes'!AD124 -> 0
B15: ='Updated Volumes'!B$32 -> Minor customers (raw) | C15: ='Updated Volumes'!$C$20 -> ML | G15: ='Updated Volumes'!AA125 -> 17.4 | H15: ='Updated Volumes'!AB125 -> 17.4 | I15: ='Updated Volumes'!AC125 -> 0 | J15: ='Updated Volumes'!AD125 -> 0
B16: ='Updated Volumes'!B$33 -> Minor customers (filtered) | C16: ='Updated Volumes'!$C$20 -> ML | G16: ='Updated Volumes'!AA126 -> 46.6 | H16: ='Updated Volumes'!AB126 -> 46.6 | I16: ='Updated Volumes'!AC126 -> 0 | J16: ='Updated Volumes'!AD126 -> 0
B18: Total usage
B19: Note: these averages are lagged by 2 years.
B20: ='Updated Volumes'!B$31 -> Energy Australia | C20: ML | G20: =AVERAGE('Updated Volumes'!F31:Y31)/1000 -> 1849.8124 | H20: =AVERAGE('Updated Volumes'!G31:Z31)/1000 -> 1781.0928 | I20: =AVERAGE('Updated Volumes'!H31:AA31)/1000 -> 1712.798365 | J20: =AVERAGE('Updated Volumes'!I31:AB31)/1000 -> 1685.927305
B21: ='Updated Volumes'!B$32 -> Minor customers (raw) | C21: ='Updated Volumes'!$C$20 -> ML | G21: =AVERAGE('Updated Volumes'!F32:Y32) -> 51.1609 | H21: =AVERAGE('Updated Volumes'!G32:Z32) -> 51.2979 | I21: =AVERAGE('Updated Volumes'!H32:AA32) -> 51.35594 | J21: =AVERAGE('Updated Volumes'!I32:AB32) -> 50.620835
B22: ='Updated Volumes'!B$33 -> Minor customers (filtered) | C22: ='Updated Volumes'!$C$20 -> ML | G22: =AVERAGE('Updated Volumes'!F33:Y33) -> 102.73255 | H22: =AVERAGE('Updated Volumes'!G33:Z33) -> 100.13955 | I22: =AVERAGE('Updated Volumes'!H33:AA33) -> 98.8261775 | J22: =AVERAGE('Updated Volumes'!I33:AB33) -> 95.333155
B24: Usage up to MAQ
B25: ='Updated Volumes'!B$31 -> Energy Australia | C25: ='Updated Volumes'!$C$20 -> ML | G25: =IF(G20>G14,G14,G20) -> 1849.8124 | H25: 1781.0928 | I25: =IF(I20>I14,I14,I20) -> 0 | J25: 0
B26: ='Updated Volumes'!B$32 -> Minor customers (raw) | C26: ='Updated Volumes'!$C$20 -> ML | G26: 17.4 | H26: 17.4 | I26: 0 | J26: 0
B27: ='Updated Volumes'!B$33 -> Minor customers (filtered) | C27: ='Updated Volumes'!$C$20 -> ML | G27: 46.6 | H27: 46.6 | I27: 0 | J27: 0
B29: Usage In excess of MAQ
B30: ='Updated Volumes'!B$31 -> Energy Australia | C30: ='Updated Volumes'!$C$20 -> ML | G30: =IF(G20<G14,0,G20-G14) -> 0 | H30: 0 | I30: =IF(I20<I14,0,I20-I14) -> 1712.798365 | J30: 1685.927305
B31: ='Updated Volumes'!B$32 -> Minor customers (raw) | C31: ='Updated Volumes'!$C$20 -> ML | G31: 33.7609 | H31: 33.8979 | I31: 51.35594 | J31: 50.620835
B32: ='Updated Volumes'!B$33 -> Minor customers (filtered) | C32: ='Updated Volumes'!$C$20 -> ML | G32: 56.13255 | H32: 53.53955 | I32: 98.8261775 | J32: 95.333155
B33: Check=0 | G33: =G25+G30-G20 -> 0 | H33: =H25+H30-H20 -> 0 | I33: =I25+I30-I20 -> 0 | J33: =J25+J30-J20 -> 0
B34: Check=0 | G34: =G27+G32-G22 -> 0 | H34: =H27+H32-H22 -> 0 | I34: =I27+I32-I22 -> 0 | J34: =J27+J32-J22 -> 0
B35: Check=0 | G35: =G26+G31-G21 -> 0 | H35: =H26+H31-H21 -> 0 | I35: =I26+I31-I21 -> 0 | J35: =J26+J31-J21 -> 0
B39: TABLE 6.2 - FISH RIVER REQUIRED REVENUE CALCULATIONS
B40: ='2021 Determination Revenue'!B$19 -> Financial year ending 30 June | C40: ='2021 Determination Revenue'!C$19 -> Units | G40: ='2021 Determination Revenue'!G$20 -> 2021-22 | H40: ='2021 Determination Revenue'!H$20 -> 2022-23 | I40: ='2021 Determination Revenue'!I$20 -> 2023-24 | J40: ='2021 Determination Revenue'!J$20 -> 2024-25
B42: Revenue to be recovered from MAQ (fixed) charge
B43: ='Updated Volumes'!B$31 -> Energy Australia | C43: ='2021 Determination Revenue'!$C$41 -> $'000 | G43: =G14*Outputs!G154 -> 3929.160476 | H43: =G43 -> 3929.160476 | I43: 3929.160476 | J43: 3929.160476
B44: ='Updated Volumes'!B$32 -> Minor customers (raw) | C44: ='2021 Determination Revenue'!$C$41 -> $'000 | G44: =G15*Outputs!G155 -> 8.353786936 | H44: 8.353786936 | I44: 8.353786936 | J44: 8.353786936
B45: ='Updated Volumes'!B$33 -> Minor customers (filtered) | C45: ='2021 Determination Revenue'!$C$41 -> $'000 | G45: =G16*Outputs!G156 -> 39.4665549 | H45: 39.4665549 | I45: 39.4665549 | J45: 39.4665549
B47: Revenue to be recovered from Usage up to MAQ
B48: ='Updated Volumes'!B$31 -> Energy Australia | C48: ='2021 Determination Revenue'!$C$41 -> $'000 | G48: =IF(G20<G14,G20*Outputs!G159,G14*Outputs!G159) -> 600.5196818 | H48: =G48 -> 600.5196818 | I48: 600.5196818 | J48: 600.5196818
B49: ='Updated Volumes'!B$32 -> Minor customers (raw) | C49: ='2021 Determination Revenue'!$C$41 -> $'000 | G49: =IF(G21<G15,G21*Outputs!G160,G15*Outputs!G160) -> 5.64870387 | H49: 5.64870387 | I49: 5.64870387 | J49: 5.64870387
B50: ='Updated Volumes'!B$33 -> Minor customers (filtered) | C50: ='2021 Determination Revenue'!$C$41 -> $'000 | G50: =IF(G22<G16,G22*Outputs!G161,G16*Outputs!G161) -> 24.44813795 | H50: 24.44813795 | I50: 24.44813795 | J50: 24.44813795
B52: Revenue to be recovered in excess of MAQ
B53: ='Updated Volumes'!B$31 -> Energy Australia | C53: ='2021 Determination Revenue'!$C$41 -> $'000 | G53: =IF(G20<G14,0,((G20-G14)*Outputs!G164)) -> 0 | H53: =G53 -> 0 | I53: 0 | J53: 0
B54: ='Updated Volumes'!B$32 -> Minor customers (raw) | C54: ='2021 Determination Revenue'!$C$41 -> $'000 | G54: =IF(G21<G15,0,((G21-G15)*Outputs!G165)) -> 27.16877539 | H54: 27.16877539 | I54: 27.16877539 | J54: 27.16877539
B55: ='Updated Volumes'!B$33 -> Minor customers (filtered) | C55: ='2021 Determination Revenue'!$C$41 -> $'000 | G55: =IF(G22<G16,0,((G22-G16)*Outputs!G166)) -> 76.98915649 | H55: 76.98915649 | I55: 76.98915649 | J55: 76.98915649
B57: Total revenue to be recovered
B58: ='Updated Volumes'!B$31 -> Energy Australia | C58: ='2021 Determination Revenue'!$C$41 -> $'000 | G58: =G43+G48+G53 -> 4529.680158 | H58: =G58 -> 4529.680158 | I58: 4529.680158 | J58: 4529.680158
B59: ='Updated Volumes'!B$32 -> Minor customers (raw) | C59: ='2021 Determination Revenue'!$C$41 -> $'000 | G59: =G44+G49+G54 -> 41.1712662 | H59: 41.1712662 | I59: 41.1712662 | J59: 41.1712662
B60: ='Updated Volumes'!B$33 -> Minor customers (filtered) | C60: ='2021 Determination Revenue'!$C$41 -> $'000 | G60: =G45+G50+G55 -> 140.9038493 | H60: 140.9038493 | I60: 140.9038493 | J60: 140.9038493
B61: Check=0 | G61: =G43+G48+G53-G58 -> 0 | H61: =H43+H48+H53-H58 -> 0 | I61: =I43+I48+I53-I58 -> 0 | J61: =J43+J48+J53-J58 -> 0
B62: Check=0 | G62: =G45+G50+G55-G60 -> 0 | H62: =H45+H50+H55-H60 -> 0 | I62: =I45+I50+I55-I60 -> 0 | J62: =J45+J50+J55-J60 -> 0
B63: Check=0 | G63: =G44+G49+G54-G59 -> 0 | H63: =H44+H49+H54-H59 -> 0 | I63: =I44+I49+I54-I59 -> 0 | J63: =J44+J49+J54-J59 -> 0

Sheet MDB calcs
B2: 5 MDB VALLEY CALCULATIONS
B3: This worksheet calculates the usage volumes, entitlement numbers, entitlement premiums and revenue to be recovered from charges in the MDB valleys.
B5: List of tables | H5: Row number
B6: =B16 -> TABLE 5.1 - USAGE AND ENTITLEMENT VOLUMES FOR CALCULATIONS | H6: =ROW(B16) -> 16
B7: =B55 -> TABLE 5.2 - TWENTY YEAR AVERAGE ACTUAL ALLOCATIONS | H7: =ROW(B55) -> 55
B8: =B95 -> TABLE 5.3 - RELIABILITY RATIO AND HIGH SECURITY ENTITLEMENT PREMIUM | H8: =ROW(B95) -> 95
B9: =B125 -> TABLE 5.4 - TOTAL NUMBER OF 'GS ENTITLEMENT EQUIVALENTS' | H9: =ROW(B125) -> 125
B10: =B142 -> TABLE 5.5 - REVENUE TO BE RECOVERED FROM CHARGES (EXCLUDING MDBA/BRC REVENUE) | H10: =ROW(B142) -> 142
B11: =B184 -> TABLE 5.6 - REVENUE TO BE RECOVERED FROM CHARGES (ONLY MDBA/BRC REVENUE) | H11: =ROW(B184) -> 184
B16: TABLE 5.1 - USAGE AND ENTITLEMENT VOLUMES FOR CALCULATIONS
B17: ='2021 Determination Revenue'!B$20 -> Financial year | C17: ='2021 Determination Revenue'!C$36 -> Units | G17: ='2021 Determination Revenue'!G$20 -> 2021-22 | H17: ='2021 Determination Revenue'!H$20 -> 2022-23 | I17: ='2021 Determination Revenue'!I$20 -> 2023-24 | J17: ='2021 Determination Revenue'!J$20 -> 2024-25
B20: Usage Volume (20-yr average) | C20: Note: these 20-year averages are lagged by 2 years.
B21: ='2021 Determination Revenue'!B$41 -> Border | C21: ='Updated Volumes'!$C$20 -> ML | G21: =AVERAGE('Updated Volumes'!F20:Y20) -> 139453.173 | H21: =AVERAGE('Updated Volumes'!G20:Z20) -> 133341.983 | I21: =AVERAGE('Updated Volumes'!H20:AA20) -> 131183.5416 | J21: =AVERAGE('Updated Volumes'!I20:AB20) -> 131660.4908
B22: ='2021 Determination Revenue'!B$42 -> Gwydir | C22: ='Updated Volumes'!$C$20 -> ML | G22: =AVERAGE('Updated Volumes'!F21:Y21) -> 220489.075 | H22: =AVERAGE('Updated Volumes'!G21:Z21) -> 209344.94 | I22: =AVERAGE('Updated Volumes'!H21:AA21) -> 198212.1437 | J22: =AVERAGE('Updated Volumes'!I21:AB21) -> 194730.0908
B23: ='2021 Determination Revenue'!B$43 -> Namoi | C23: ='Updated Volumes'!$C$20 -> ML | G23: =AVERAGE('Updated Volumes'!F22:Y22) -> 138240.9495 | H23: =AVERAGE('Updated Volumes'!G22:Z22) -> 131738.605 | I23: =AVERAGE('Updated Volumes'!H22:AA22) -> 124633.6585 | J23: =AVERAGE('Updated Volumes'!I22:AB22) -> 119377.9332
B24: ='2021 Determination Revenue'!B$44 -> Peel | C24: ='Updated Volumes'!$C$20 -> ML | G24: =AVERAGE('Updated Volumes'!F23:Y23) -> 12624.9545 | H24: =AVERAGE('Updated Volumes'!G23:Z23) -> 12429.8695 | I24: =AVERAGE('Updated Volumes'!H23:AA23) -> 12327.56722 | J24: =AVERAGE('Updated Volumes'!I23:AB23) -> 11858.8107
B25: ='2021 Determination Revenue'!B$45 -> Lachlan | C25: ='Updated Volumes'!$C$20 -> ML | G25: =AVERAGE('Updated Volumes'!F24:Y24) -> 182100.323 | H25: =AVERAGE('Updated Volumes'!G24:Z24) -> 169332.163 | I25: =AVERAGE('Updated Volumes'!H24:AA24) -> 156458.5681 | J25: =AVERAGE('Updated Volumes'!I24:AB24) -> 153062.5543
B26: ='2021 Determination Revenue'!B$46 -> Macquarie | C26: ='Updated Volumes'!$C$20 -> ML | G26: =AVERAGE('Updated Volumes'!F25:Y25) -> 232544.636 | H26: =AVERAGE('Updated Volumes'!G25:Z25) -> 216717.586 | I26: =AVERAGE('Updated Volumes'!H25:AA25) -> 201061.6408 | J26: =AVERAGE('Updated Volumes'!I25:AB25) -> 193101.8036
B27: ='2021 Determination Revenue'!B$47 -> Murray | C27: ='Updated Volumes'!$C$20 -> ML | G27: =AVERAGE('Updated Volumes'!F26:Y26) -> 1380890.589 | H27: =AVERAGE('Updated Volumes'!G26:Z26) -> 1334267.523 | I27: =AVERAGE('Updated Volumes'!H26:AA26) -> 1289920.557 | J27: =AVERAGE('Updated Volumes'!I26:AB26) -> 1298656.212
B28: ='2021 Determination Revenue'!B$48 -> Murrumbidgee | C28: ='Updated Volumes'!$C$20 -> ML | G28: =AVERAGE('Updated Volumes'!F27:Y27) -> 1530959.143 | H28: =AVERAGE('Updated Volumes'!G27:Z27) -> 1516646.65 | I28: =AVERAGE('Updated Volumes'!H27:AA27) -> 1477524.183 | J28: =AVERAGE('Updated Volumes'!I27:AB27) -> 1463852.447
B29: ='2021 Determination Revenue'!B$49 -> Lowbidgee | C29: ='Updated Volumes'!$C$20 -> ML | G29: =AVERAGE('Updated Volumes'!F28:Y28) -> 42618.83333 | H29: =AVERAGE('Updated Volumes'!G28:Z28) -> 42618.83333 | I29: =AVERAGE('Updated Volumes'!H28:AA28) -> 42618.83333 | J29: =AVERAGE('Updated Volumes'!I28:AB28) -> 42618.83333
B31: General security and supplementary entitlements | C31: Note: these annual figures are lagged by two years.
B32: ='2021 Determination Revenue'!B$41 -> Border | C32: ='Updated Volumes'!$C$20 -> ML | G32: =ROUND(('Updated Volumes'!Y41+'Updated Volumes'!Y63),0) -> 263218 | H32: =ROUND(('Updated Volumes'!Z41+'Updated Volumes'!Z63),0) -> 263218 | I32: =ROUND(('Updated Volumes'!AA41+'Updated Volumes'!AA63),0) -> 263218 | J32: =ROUND(('Updated Volumes'!AB41+'Updated Volumes'!AB63),0) -> 263218
B33: ='2021 Determination Revenue'!B$42 -> Gwydir | C33: ='Updated Volumes'!$C$20 -> ML | G33: =ROUND(('Updated Volumes'!Y42+'Updated Volumes'!Y64),0) -> 509665 | H33: =ROUND(('Updated Volumes'!Z42+'Updated Volumes'!Z64),0) -> 509665 | I33: =ROUND(('Updated Volumes'!AA42+'Updated Volumes'!AA64),0) -> 509665 | J33: =ROUND(('Updated Volumes'!AB42+'Updated Volumes'!AB64),0) -> 509665
B34: ='2021 Determination Revenue'!B$43 -> Namoi | C34: ='Updated Volumes'!$C$20 -> ML | G34: =ROUND(('Updated Volumes'!Y43+'Updated Volumes'!Y65),0) -> 256529 | H34: =ROUND(('Updated Volumes'!Z43+'Updated Volumes'!Z65),0) -> 256691 | I34: =ROUND(('Updated Volumes'!AA43+'Updated Volumes'!AA65),0) -> 256691 | J34: =ROUND(('Updated Volumes'!AB43+'Updated Volumes'!AB65),0) -> 256691
B35: ='2021 Determination Revenue'!B$44 -> Peel | C35: ='Updated Volumes'!$C$20 -> ML | G35: =ROUND(('Updated Volumes'!Y44+'Updated Volumes'!Y66),0) -> 29635 | H35: =ROUND(('Updated Volumes'!Z44+'Updated Volumes'!Z66),0) -> 29311 | I35: =ROUND(('Updated Volumes'!AA44+'Updated Volumes'!AA66),0) -> 29311 | J35: =ROUND(('Updated Volumes'!AB44+'Updated Volumes'!AB66),0) -> 29311
B36: ='2021 Determination Revenue'!B$45 -> Lachlan | C36: ='Updated Volumes'!$C$20 -> ML | G36: =ROUND(('Updated Volumes'!Y45+'Updated Volumes'!Y67),0) -> 633166 | H36: =ROUND(('Updated Volumes'!Z45+'Updated Volumes'!Z67),0) -> 633166 | I36: =ROUND(('Updated Volumes'!AA45+'Updated Volumes'!AA67),0) -> 633166 | J36: =ROUND(('Updated Volumes'!AB45+'Updated Volumes'!AB67),0) -> 633166
B37: ='2021 Determination Revenue'!B$46 -> Macquarie | C37: ='Updated Volumes'!$C$20 -> ML | G37: =ROUND(('Updated Volumes'!Y46+'Updated Volumes'!Y68),0) -> 632466 | H37: =ROUND(('Updated Volumes'!Z46+'Updated Volumes'!Z68),0) -> 632466 | I37: =ROUND(('Updated Volumes'!AA46+'Updated Volumes'!AA68),0) -> 632466 | J37: =ROUND(('Updated Volumes'!AB46+'Updated Volumes'!AB68),0) -> 632466
B38: ='2021 Determination Revenue'!B$47 -> Murray | C38: ='Updated Volumes'!$C$20 -> ML | G38: =ROUND(('Updated Volumes'!Y47+'Updated Volumes'!Y69),0) -> 2083603 | H38: =ROUND(('Updated Volumes'!Z47+'Updated Volumes'!Z69),0) -> 2083603 | I38: =ROUND(('Updated Volumes'!AA47+'Updated Volumes'!AA69),0) -> 2083603 | J38: =ROUND(('Updated Volumes'!AB47+'Updated Volumes'!AB69),0) -> 2083603
B39: ='2021 Determination Revenue'!B$48 -> Murrumbidgee | C39: ='Updated Volumes'!$C$20 -> ML | G39: =ROUND(('Updated Volumes'!Y48+'Updated Volumes'!Y70),0) -> 2264995 | H39: =ROUND(('Updated Volumes'!Z48+'Updated Volumes'!Z70),0) -> 2264995 | I39: =ROUND(('Updated Volumes'!AA48+'Updated Volumes'!AA70),0) -> 2264995 | J39: =ROUND(('Updated Volumes'!AB48+'Updated Volumes'!AB70),0) -> 2264995
B40: ='2021 Determination Revenue'!B$49 -> Lowbidgee | C40: ='Updated Volumes'!$C$20 -> ML | G40: =ROUND(('Updated Volumes'!Y49+'Updated Volumes'!Y71),0) -> 747000 | H40: =ROUND(('Updated Volumes'!Z49+'Updated Volumes'!Z71),0) -> 747000 | I40: =ROUND(('Updated Volumes'!AA49+'Updated Volumes'!AA71),0) -> 747000 | J40: =ROUND(('Updated Volumes'!AB49+'Updated Volumes'!AB71),0) -> 747000
B42: ='Updated Volumes'!B51 -> High security entitlements | C42: Note: these annual figures are lagged by two years.
B43: ='2021 Determination Revenue'!B$41 -> Border | C43: ='Updated Volumes'!$C$20 -> ML | G43: =ROUND('Updated Volumes'!Y52,0) -> 3141 | H43: =ROUND('Updated Volumes'!Z52,0) -> 3141 | I43: =ROUND('Updated Volumes'!AA52,0) -> 3141 | J43: =ROUND('Updated Volumes'!AB52,0) -> 3141
B44: ='2021 Determination Revenue'!B$42 -> Gwydir | C44: ='Updated Volumes'!$C$20 -> ML | G44: =ROUND('Updated Volumes'!Y53,0) -> 26920 | H44: =ROUND('Updated Volumes'!Z53,0) -> 27220 | I44: =ROUND('Updated Volumes'!AA53,0) -> 27220 | J44: =ROUND('Updated Volumes'!AB53,0) -> 27220
B45: ='2021 Determination Revenue'!B$43 -> Namoi | C45: ='Updated Volumes'!$C$20 -> ML | G45: =ROUND('Updated Volumes'!Y54,0) -> 8859 | H45: =ROUND('Updated Volumes'!Z54,0) -> 8841 | I45: =ROUND('Updated Volumes'!AA54,0) -> 8841 | J45: =ROUND('Updated Volumes'!AB54,0) -> 8841
B46: ='2021 Determination Revenue'!B$44 -> Peel | C46: ='Updated Volumes'!$C$20 -> ML | G46: =ROUND('Updated Volumes'!Y55,0) -> 17367 | H46: =ROUND('Updated Volumes'!Z55,0) -> 17367 | I46: =ROUND('Updated Volumes'!AA55,0) -> 17367 | J46: =ROUND('Updated Volumes'!AB55,0) -> 17367
B47: ='2021 Determination Revenue'!B$45 -> Lachlan | C47: ='Updated Volumes'!$C$20 -> ML | G47: =ROUND('Updated Volumes'!Y56,0) -> 57269 | H47: =ROUND('Updated Volumes'!Z56,0) -> 57269 | I47: =ROUND('Updated Volumes'!AA56,0) -> 57269 | J47: =ROUND('Updated Volumes'!AB56,0) -> 57269
B48: ='2021 Determination Revenue'!B$46 -> Macquarie | C48: ='Updated Volumes'!$C$20 -> ML | G48: =ROUND('Updated Volumes'!Y57,0) -> 42672 | H48: =ROUND('Updated Volumes'!Z57,0) -> 42669 | I48: =ROUND('Updated Volumes'!AA57,0) -> 42663 | J48: =ROUND('Updated Volumes'!AB57,0) -> 42669
B49: ='2021 Determination Revenue'!B$47 -> Murray | C49: ='Updated Volumes'!$C$20 -> ML | G49: =ROUND('Updated Volumes'!Y58,0) -> 276920 | H49: =ROUND('Updated Volumes'!Z58,0) -> 276894 | I49: =ROUND('Updated Volumes'!AA58,0) -> 267182 | J49: =ROUND('Updated Volumes'!AB58,0) -> 276894
B50: ='2021 Determination Revenue'!B$48 -> Murrumbidgee | C50: ='Updated Volumes'!$C$20 -> ML | G50: =ROUND('Updated Volumes'!Y59,0) -> 440472 | H50: =ROUND('Updated Volumes'!Z59,0) -> 440475 | I50: =ROUND('Updated Volumes'!AA59,0) -> 440472 | J50: =ROUND('Updated Volumes'!AB59,0) -> 440475
B51: ='2021 Determination Revenue'!B$49 -> Lowbidgee | C51: ='Updated Volumes'!$C$20 -> ML | G51: =ROUND('Updated Volumes'!Y60,0) -> 0 | H51: =ROUND('Updated Volumes'!Z60,0) -> 0 | I51: =ROUND('Updated Volumes'!AA60,0) -> 0 | J51: =ROUND('Updated Volumes'!AB60,0) -> 0
B55: TABLE 5.2 - TWENTY YEAR AVERAGE ACTUAL ALLOCATIONS
B56: ='2021 Determination Revenue'!B$20 -> Financial year | C56: ='2021 Determination Revenue'!C$36 -> Units | G56: ='2021 Determination Revenue'!G$20 -> 2021-22 | H56: ='2021 Determination Revenue'!H$20 -> 2022-23 | I56: ='2021 Determination Revenue'!I$20 -> 2023-24 | J56: ='2021 Determination Revenue'!J$20 -> 2024-25
B58: Note: the 20-year averages in this table are lagged by 2 years.
B59: ='Updated Volumes'!B79 -> General security entitlements
B60: ='2021 Determination Revenue'!B$41 -> Border | C60: ='Updated Volumes'!$C$80 -> % | G60: =AVERAGE('Updated Volumes'!F80:Y80) -> 0.4276013315 | H60: =AVERAGE('Updated Volumes'!G80:Z80) -> 0.4331013315 | I60: =AVERAGE('Updated Volumes'!H80:AA80) -> 0.4480212942 | J60: =AVERAGE('Updated Volumes'!I80:AB80) -> 0.4627566687
B61: ='2021 Determination Revenue'!B$42 -> Gwydir | C61: ='Updated Volumes'!$C$80 -> % | G61: =AVERAGE('Updated Volumes'!F81:Y81) -> 0.3005873546 | H61: =AVERAGE('Updated Volumes'!G81:Z81) -> 0.307238335 | I61: =AVERAGE('Updated Volumes'!H81:AA81) -> 0.3739265703 | J61: =AVERAGE('Updated Volumes'!I81:AB81) -> 0.3892884871
B62: ='2021 Determination Revenue'!B$43 -> Namoi | C62: ='Updated Volumes'!$C$80 -> % | G62: =AVERAGE('Updated Volumes'!F82:Y82) -> 0.403975426 | H62: =AVERAGE('Updated Volumes'!G82:Z82) -> 0.3881393936 | I62: =AVERAGE('Updated Volumes'!H82:AA82) -> 0.4142385839 | J62: =AVERAGE('Updated Volumes'!I82:AB82) -> 0.4336455536
B63: ='2021 Determination Revenue'!B$44 -> Peel | C63: ='Updated Volumes'!$C$80 -> % | G63: =AVERAGE('Updated Volumes'!F83:Y83) -> 0.5603500657 | H63: =AVERAGE('Updated Volumes'!G83:Z83) -> 0.5528500657 | I63: =AVERAGE('Updated Volumes'!H83:AA83) -> 0.5528500657 | J63: =AVERAGE('Updated Volumes'!I83:AB83) -> 0.550492569
B64: ='2021 Determination Revenue'!B$45 -> Lachlan | C64: ='Updated Volumes'!$C$80 -> % | G64: =AVERAGE('Updated Volumes'!F84:Y84) -> 0.2679321139 | H64: =AVERAGE('Updated Volumes'!G84:Z84) -> 0.2599321139 | I64: =AVERAGE('Updated Volumes'!H84:AA84) -> 0.3149321139 | J64: =AVERAGE('Updated Volumes'!I84:AB84) -> 0.3264287196
B65: ='2021 Determination Revenue'!B$46 -> Macquarie | C65: ='Updated Volumes'!$C$80 -> % | G65: =AVERAGE('Updated Volumes'!F85:Y85) -> 0.3185301876 | H65: =AVERAGE('Updated Volumes'!G85:Z85) -> 0.3025301876 | I65: =AVERAGE('Updated Volumes'!H85:AA85) -> 0.2960301876 | J65: =AVERAGE('Updated Volumes'!I85:AB85) -> 0.311156697
B66: ='2021 Determination Revenue'!B$47 -> Murray | C66: ='Updated Volumes'!$C$80 -> % | G66: =AVERAGE('Updated Volumes'!F86:Y86) -> 0.534404393 | H66: =AVERAGE('Updated Volumes'!G86:Z86) -> 0.514404393 | I66: =AVERAGE('Updated Volumes'!H86:AA86) -> 0.515904393 | J66: =AVERAGE('Updated Volumes'!I86:AB86) -> 0.5366246126
B67: ='2021 Determination Revenue'!B$48 -> Murrumbidgee | C67: ='Updated Volumes'!$C$80 -> % | G67: =AVERAGE('Updated Volumes'!F87:Y87) -> 0.5344630324 | H67: =AVERAGE('Updated Volumes'!G87:Z87) -> 0.5394630324 | I67: =AVERAGE('Updated Volumes'!H87:AA87) -> 0.5534630324 | J67: =AVERAGE('Updated Volumes'!I87:AB87) -> 0.561436184
B68: ='2021 Determination Revenue'!B$49 -> Lowbidgee | C68: ='Updated Volumes'!$C$80 -> %
B70: ='Updated Volumes'!B90 -> High security entitlements
B71: ='2021 Determination Revenue'!B$41 -> Border | C71: ='Updated Volumes'!$C$80 -> % | G71: =AVERAGE('Updated Volumes'!F91:Y91) -> 1.000016021 | H71: =AVERAGE('Updated Volumes'!G91:Z91) -> 1.000016021 | I71: =AVERAGE('Updated Volumes'!H91:AA91) -> 1.000016021 | J71: =AVERAGE('Updated Volumes'!I91:AB91) -> 1.000016822
B72: ='2021 Determination Revenue'!B$42 -> Gwydir | C72: ='Updated Volumes'!$C$80 -> % | G72: =AVERAGE('Updated Volumes'!F92:Y92) -> 0.9998774141 | H72: =AVERAGE('Updated Volumes'!G92:Z92) -> 0.9998774141 | I72: =AVERAGE('Updated Volumes'!H92:AA92) -> 0.9998774141 | J72: =AVERAGE('Updated Volumes'!I92:AB92) -> 0.9998712848
B73: ='2021 Determination Revenue'!B$43 -> Namoi | C73: ='Updated Volumes'!$C$80 -> % | G73: =AVERAGE('Updated Volumes'!F93:Y93) -> 1.000090232 | H73: =AVERAGE('Updated Volumes'!G93:Z93) -> 1.000090232 | I73: =AVERAGE('Updated Volumes'!H93:AA93) -> 1.000090232 | J73: =AVERAGE('Updated Volumes'!I93:AB93) -> 1.000094744
B74: ='2021 Determination Revenue'!B$44 -> Peel | C74: ='Updated Volumes'!$C$80 -> % | G74: =AVERAGE('Updated Volumes'!F94:Y94) -> 0.969 | H74: =AVERAGE('Updated Volumes'!G94:Z94) -> 0.969 | I74: =AVERAGE('Updated Volumes'!H94:AA94) -> 0.969 | J74: =AVERAGE('Updated Volumes'!I94:AB94) -> 0.96745
B75: ='2021 Determination Revenue'!B$45 -> Lachlan | C75: ='Updated Volumes'!$C$80 -> % | G75: =AVERAGE('Updated Volumes'!F95:Y95) -> 0.8221875962 | H75: =AVERAGE('Updated Volumes'!G95:Z95) -> 0.8221875962 | I75: =AVERAGE('Updated Volumes'!H95:AA95) -> 0.8221875962 | J75: =AVERAGE('Updated Volumes'!I95:AB95) -> 0.813296976
B76: ='2021 Determination Revenue'!B$46 -> Macquarie | C76: ='Updated Volumes'!$C$80 -> % | G76: =AVERAGE('Updated Volumes'!F96:Y96) -> 0.9999946311 | H76: =AVERAGE('Updated Volumes'!G96:Z96) -> 0.9999946311 | I76: =AVERAGE('Updated Volumes'!H96:AA96) -> 0.9999946311 | J76: =AVERAGE('Updated Volumes'!I96:AB96) -> 0.9999943626
B77: ='2021 Determination Revenue'!B$47 -> Murray | C77: ='Updated Volumes'!$C$80 -> % | G77: =AVERAGE('Updated Volumes'!F97:Y97) -> 0.9458124119 | H77: =AVERAGE('Updated Volumes'!G97:Z97) -> 0.9448124119 | I77: =AVERAGE('Updated Volumes'!H97:AA97) -> 0.9458124119 | J77: =AVERAGE('Updated Volumes'!I97:AB97) -> 0.9430530325
B78: ='2021 Determination Revenue'!B$48 -> Murrumbidgee | C78: ='Updated Volumes'!$C$80 -> % | G78: =AVERAGE('Updated Volumes'!F98:Y98) -> 0.9661848809 | H78: =AVERAGE('Updated Volumes'!G98:Z98) -> 0.9661848809 | I78: =AVERAGE('Updated Volumes'!H98:AA98) -> 0.9661848809 | J78: =AVERAGE('Updated Volumes'!I98:AB98) -> 0.964494125
B79: ='2021 Determination Revenue'!B$49 -> Lowbidgee | C79: ='Updated Volumes'!$C$80 -> % | G79: =AVERAGE('Updated Volumes'!F99:Y99) -> 0 | H79: =AVERAGE('Updated Volumes'!G99:Z99) -> 0 | I79: =AVERAGE('Updated Volumes'!H99:AA99) -> 0 | J79: =AVERAGE('Updated Volumes'!I99:AB99) -> 0
B81: ='Updated Volumes'!B101 -> Supplementary entitlements
B82: ='2021 Determination Revenue'!B$41 -> Border | C82: ='Updated Volumes'!$C$80 -> % | G82: =AVERAGE('Updated Volumes'!F102:Y102) -> 0 | H82: =AVERAGE('Updated Volumes'!G102:Z102) -> 0 | I82: =AVERAGE('Updated Volumes'!H102:AA102) -> 0 | J82: =AVERAGE('Updated Volumes'!I102:AB102) -> 0
B83: ='2021 Determination Revenue'!B$42 -> Gwydir | C83: ='Updated Volumes'!$C$80 -> % | G83: =AVERAGE('Updated Volumes'!F103:Y103) -> 0 | H83: =AVERAGE('Updated Volumes'!G103:Z103) -> 0 | I83: =AVERAGE('Updated Volumes'!H103:AA103) -> 0 | J83: =AVERAGE('Updated Volumes'!I103:AB103) -> 0
B84: ='2021 Determination Revenue'!B$43 -> Namoi | C84: ='Updated Volumes'!$C$80 -> % | G84: =AVERAGE('Updated Volumes'!F104:Y104) -> 0 | H84: =AVERAGE('Updated Volumes'!G104:Z104) -> 0 | I84: =AVERAGE('Updated Volumes'!H104:AA104) -> 0 | J84: =AVERAGE('Updated Volumes'!I104:AB104) -> 0
B85: ='2021 Determination Revenue'!B$44 -> Peel | C85: ='Updated Volumes'!$C$80 -> % | G85: =AVERAGE('Updated Volumes'!F105:Y105) -> 0 | H85: =AVERAGE('Updated Volumes'!G105:Z105) -> 0 | I85: =AVERAGE('Updated Volumes'!H105:AA105) -> 0 | J85: =AVERAGE('Updated Volumes'!I105:AB105) -> 0
B86: ='2021 Determination Revenue'!B$45 -> Lachlan | C86: ='Updated Volumes'!$C$80 -> % | G86: =AVERAGE('Updated Volumes'!F106:Y106) -> 0 | H86: =AVERAGE('Updated Volumes'!G106:Z106) -> 0 | I86: =AVERAGE('Updated Volumes'!H106:AA106) -> 0 | J86: =AVERAGE('Updated Volumes'!I106:AB106) -> 0
B87: ='2021 Determination Revenue'!B$46 -> Macquarie | C87: ='Updated Volumes'!$C$80 -> % | G87: =AVERAGE('Updated Volumes'!F107:Y107) -> 0 | H87: =AVERAGE('Updated Volumes'!G107:Z107) -> 0 | I87: =AVERAGE('Updated Volumes'!H107:AA107) -> 0 | J87: =AVERAGE('Updated Volumes'!I107:AB107) -> 0
B88: ='2021 Determination Revenue'!B$47 -> Murray | C88: ='Updated Volumes'!$C$80 -> % | G88: =AVERAGE('Updated Volumes'!F108:Y108) -> 0 | H88: =AVERAGE('Updated Volumes'!G108:Z108) -> 0 | I88: =AVERAGE('Updated Volumes'!H108:AA108) -> 0 | J88: =AVERAGE('Updated Volumes'!I108:AB108) -> 0
B89: ='2021 Determination Revenue'!B$48 -> Murrumbidgee | C89: ='Updated Volumes'!$C$80 -> % | G89: =AVERAGE('Updated Volumes'!F109:Y109) -> 0 | H89: =AVERAGE('Updated Volumes'!G109:Z109) -> 0 | I89: =AVERAGE('Updated Volumes'!H109:AA109) -> 0 | J89: =AVERAGE('Updated Volumes'!I109:AB109) -> 0
B90: ='2021 Determination Revenue'!B$49 -> Lowbidgee | C90: ='Updated Volumes'!$C$80 -> % | G90: =AVERAGE('Updated Volumes'!F110:Y110) -> 1 | H90: =AVERAGE('Updated Volumes'!G110:Z110) -> 1 | I90: =AVERAGE('Updated Volumes'!H110:AA110) -> 1 | J90: =AVERAGE('Updated Volumes'!I110:AB110) -> 1
B95: TABLE 5.3 - RELIABILITY RATIO AND HIGH SECURITY ENTITLEMENT PREMIUM
B96: ='2021 Determination Revenue'!B$20 -> Financial year | C96: ='2021 Determination Revenue'!C$36 -> Units | G96: ='2021 Determination Revenue'!G$20 -> 2021-22 | H96: ='2021 Determination Revenue'!H$20 -> 2022-23 | I96: ='2021 Determination Revenue'!I$20 -> 2023-24 | J96: ='2021 Determination Revenue'!J$20 -> 2024-25
B98: Reliability Ratio
B99: Reliability Ratio = 20-year average HS allocations / 20-year average GS allocations
B100: ='2021 Determination Revenue'!B$41 -> Border | C100: # | G100: =G71/G60 -> 2.338664421 | H100: =H71/H60 -> 2.308965472 | I100: 2.232072523 | J100: =J71/J60 -> 2.160999266
B101: ='2021 Determination Revenue'!B$42 -> Gwydir | C101: =C$100 -> # | G101: 3.326412102 | H101: 3.254403179 | I101: =I72/I61 -> 2.673994023 | J101: 2.5684584
B102: ='2021 Determination Revenue'!B$43 -> Namoi | C102: # | G102: 2.475621456 | H102: 2.576626462 | I102: 2.414285562 | J102: 2.306249276
B103: ='2021 Determination Revenue'!B$44 -> Peel | C103: # | G103: 1.729276142 | H103: 1.752735615 | I103: 1.752735615 | J103: 1.757426084
B104: ='2021 Determination Revenue'!B$45 -> Lachlan | C104: # | G104: 3.068641471 | H104: 3.163085868 | I104: 2.610681985 | J104: 2.491499452
B105: ='2021 Determination Revenue'!B$46 -> Macquarie | C105: # | G105: 3.139403014 | H105: 3.305437514 | I105: 3.378015733 | J105: 3.213796689
B106: ='2021 Determination Revenue'!B$47 -> Murray | C106: # | G106: 1.769844007 | H106: 1.836711398 | I106: 1.833309475 | J106: 1.757379387
B107: ='2021 Determination Revenue'!B$48 -> Murrumbidgee | C107: # | G107: 1.807767465 | H107: 1.791012216 | I107: 1.745708068 | J107: 1.717905173
B108: ='2021 Determination Revenue'!B$49 -> Lowbidgee | C108: # | G108: 0 | H108: 0 | I108: 0 | J108: 0
B110: High Security Premium
B111: High Security Premium = Reliability Ratio * Security Factor
B112: ='2021 Determination Revenue'!B$41 -> Border | C112: =C$100 -> # | G112: =G100*'2021 Determination Revenue'!G107 -> 2.923330526 | H112: =H100*'2021 Determination Revenue'!H107 -> 2.88620684 | I112: =I100*'2021 Determination Revenue'!I107 -> 2.790090654 | J112: =J100*'2021 Determination Revenue'!J107 -> 2.701249083
B113: ='2021 Determination Revenue'!B$42 -> Gwydir | C113: # | G113: =G101*'2021 Determination Revenue'!G108 -> 4.648069435 | H113: =H101*'2021 Determination Revenue'!H108 -> 4.547449769 | I113: =I101*'2021 Determination Revenue'!I108 -> 3.736431178 | J113: =J101*'2021 Determination Revenue'!J108 -> 3.588963911
B114: ='2021 Determination Revenue'!B$43 -> Namoi | C114: # | G114: =G102*'2021 Determination Revenue'!G109 -> 3.09452682 | H114: =H102*'2021 Determination Revenue'!H109 -> 3.220783077 | I114: =I102*'2021 Determination Revenue'!I109 -> 3.017856953 | J114: =J102*'2021 Determination Revenue'!J109 -> 2.882811595
B115: ='2021 Determination Revenue'!B$44 -> Peel | C115: # | G115: =G103*'2021 Determination Revenue'!G110 -> 11.3128298 | H115: =H103*'2021 Determination Revenue'!H110 -> 11.46630038 | I115: =I103*'2021 Determination Revenue'!I110 -> 11.46630038 | J115: =J103*'2021 Determination Revenue'!J110 -> 11.49698518
B116: ='2021 Determination Revenue'!B$45 -> Lachlan | C116: # | G116: =G104*'2021 Determination Revenue'!G111 -> 7.656928701 | H116: =H104*'2021 Determination Revenue'!H111 -> 7.892588038 | I116: =I104*'2021 Determination Revenue'!I111 -> 6.514220057 | J116: =J104*'2021 Determination Revenue'!J111 -> 6.216833684
B117: ='2021 Determination Revenue'!B$46 -> Macquarie | C117: # | G117: =G105*'2021 Determination Revenue'!G112 -> 5.917255635 | H117: =H105*'2021 Determination Revenue'!H112 -> 6.230203215 | I117: =I105*'2021 Determination Revenue'!I112 -> 6.367001159 | J117: =J105*'2021 Determination Revenue'!J112 -> 6.057475413
B118: ='2021 Determination Revenue'!B$47 -> Murray | C118: # | G118: =G106*'2021 Determination Revenue'!G113 -> 2.315826975 | H118: =H106*'2021 Determination Revenue'!H113 -> 2.403322432 | I118: =I106*'2021 Determination Revenue'!I113 -> 2.398871042 | J118: =J106*'2021 Determination Revenue'!J113 -> 2.299517118
B119: ='2021 Determination Revenue'!B$48 -> Murrumbidgee | C119: # | G119: =G107*'2021 Determination Revenue'!G114 -> 3.060494405 | H119: =H107*'2021 Determination Revenue'!H114 -> 3.032128287 | I119: =I107*'2021 Determination Revenue'!I114 -> 2.955429766 | J119: =J107*'2021 Determination Revenue'!J114 -> 2.908360326
B120: ='2021 Determination Revenue'!B$49 -> Lowbidgee | C120: # | G120: 0 | H120: 0 | I120: 0 | J120: 0
B125: TABLE 5.4 - TOTAL NUMBER OF 'GS ENTITLEMENT EQUIVALENTS'
B126: ='2021 Determination Revenue'!B$20 -> Financial year | C126: ='2021 Determination Revenue'!C$36 -> Units | G126: ='2021 Determination Revenue'!G$20 -> 2021-22 | H126: ='2021 Determination Revenue'!H$20 -> 2022-23 | I126: ='2021 Determination Revenue'!I$20 -> 2023-24 | J126: ='2021 Determination Revenue'!J$20 -> 2024-25
B128: GS entitlement equivalents' are used to calculate entitlement charges. GS entitlement equivalents = GS entitlements + HS entitlements * HS entitlement premium
B129: ='2021 Determination Revenue'!B$41 -> Border | C129: =C$100 -> # | G129: =G32+(G43*G112) -> 272400.1812 | H129: =H32+(H43*H112) -> 272283.5757 | I129: 271981.6747 | J129: 271702.6234
B130: ='2021 Determination Revenue'!B$42 -> Gwydir | C130: # | G130: 634791.0292 | H130: 633446.5827 | I130: 611370.6567 | J130: 607356.5977
B131: ='2021 Determination Revenue'!B$43 -> Namoi | C131: # | G131: 283943.4131 | H131: 285165.9432 | I131: 283371.8733 | J131: 282177.9373
B132: ='2021 Determination Revenue'!B$44 -> Peel | C132: # | G132: 226104.9151 | H132: 228446.2388 | I132: 228446.2388 | J132: 228979.1416
B133: ='2021 Determination Revenue'!B$45 -> Lachlan | C133: # | G133: 1071670.65 | H133: 1085166.624 | I133: 1006228.868 | J133: 989197.8483
B134: ='2021 Determination Revenue'!B$46 -> Macquarie | C134: # | G134: 884967.1325 | H134: =H37+(H48*H117) -> 898302.541 | I134: 904101.3704 | J134: 890932.4184
B135: ='2021 Determination Revenue'!B$47 -> Murray | C135: # | G135: 2724901.806 | H135: 2749068.561 | I135: 2724538.163 | J135: 2720325.493
B136: ='2021 Determination Revenue'!B$48 -> Murrumbidgee | C136: # | G136: 3613057.092 | H136: 3600571.707 | I136: 3566779.06 | J136: 3546055.014
B137: ='2021 Determination Revenue'!B$49 -> Lowbidgee | C137: # | G137: =G40+G51 -> 747000 | H137: =H40+H51 -> 747000 | I137: =I40+I51 -> 747000 | J137: =J40+J51 -> 747000
B142: TABLE 5.5 - REVENUE TO BE RECOVERED FROM CHARGES (EXCLUDING MDBA/BRC REVENUE)
B143: ='2021 Determination Revenue'!B$20 -> Financial year | C143: ='2021 Determination Revenue'!C$36 -> Units | G143: ='2021 Determination Revenue'!G$20 -> 2021-22 | H143: ='2021 Determination Revenue'!H$20 -> 2022-23 | I143: ='2021 Determination Revenue'!I$20 -> 2023-24 | J143: ='2021 Determination Revenue'!J$20 -> 2024-25
G144: ='2021 Determination Revenue'!G$37 -> $2020-21 | H144: ='2021 Determination Revenue'!H$37 -> $2020-21 | I144: ='2021 Determination Revenue'!I$37 -> $2020-21 | J144: ='2021 Determination Revenue'!J$37 -> $2020-21
B145: Revenue to be recovered from charges (total)
B146: ='2021 Determination Revenue'!B$41 -> Border | C146: ='2021 Determination Revenue'!C$41 -> $'000 | G146: ='2021 Determination Revenue'!G41 -> 1617.101619 | H146: ='2021 Determination Revenue'!H41 -> 1617.101619 | I146: ='2021 Determination Revenue'!I41 -> 1617.101619 | J146: ='2021 Determination Revenue'!J41 -> 1617.101619
B147: ='2021 Determination Revenue'!B$42 -> Gwydir | C147: ='2021 Determination Revenue'!C$41 -> $'000 | G147: ='2021 Determination Revenue'!G42 -> 6248.131838 | H147: ='2021 Determination Revenue'!H42 -> 6248.131838 | I147: ='2021 Determination Revenue'!I42 -> 6248.131838 | J147: ='2021 Determination Revenue'!J42 -> 6248.131838
B148: ='2021 Determination Revenue'!B$43 -> Namoi | C148: ='2021 Determination Revenue'!C$41 -> $'000 | G148: ='2021 Determination Revenue'!G43 -> 7038.029797 | H148: ='2021 Determination Revenue'!H43 -> 7038.029797 | I148: ='2021 Determination Revenue'!I43 -> 7038.029797 | J148: ='2021 Determination Revenue'!J43 -> 7038.029797
B149: ='2021 Determination Revenue'!B$44 -> Peel | C149: ='2021 Determination Revenue'!C$41 -> $'000 | G149: ='2021 Determination Revenue'!G44 -> 1530.645685 | H149: ='2021 Determination Revenue'!H44 -> 1530.645685 | I149: ='2021 Determination Revenue'!I44 -> 1530.645685 | J149: ='2021 Determination Revenue'!J44 -> 1530.645685
B150: ='2021 Determination Revenue'!B$45 -> Lachlan | C150: ='2021 Determination Revenue'!C$41 -> $'000 | G150: ='2021 Determination Revenue'!G45 -> 9359.27687 | H150: ='2021 Determination Revenue'!H45 -> 9359.27687 | I150: ='2021 Determination Revenue'!I45 -> 9359.27687 | J150: ='2021 Determination Revenue'!J45 -> 9359.27687
B151: ='2021 Determination Revenue'!B$46 -> Macquarie | C151: ='2021 Determination Revenue'!C$41 -> $'000 | G151: ='2021 Determination Revenue'!G46 -> 8297.091737 | H151: ='2021 Determination Revenue'!H46 -> 8297.091737 | I151: ='2021 Determination Revenue'!I46 -> 8297.091737 | J151: ='2021 Determination Revenue'!J46 -> 8297.091737
B152: ='2021 Determination Revenue'!B$47 -> Murray | C152: ='2021 Determination Revenue'!C$41 -> $'000 | G152: ='2021 Determination Revenue'!G47 -> 6631.250988 | H152: ='2021 Determination Revenue'!H47 -> 6631.250988 | I152: ='2021 Determination Revenue'!I47 -> 6631.250988 | J152: ='2021 Determination Revenue'!J47 -> 6631.250988
B153: ='2021 Determination Revenue'!B$48 -> Murrumbidgee | C153: ='2021 Determination Revenue'!C$41 -> $'000 | G153: ='2021 Determination Revenue'!G48 -> 12538.11663 | H153: ='2021 Determination Revenue'!H48 -> 12538.11663 | I153: ='2021 Determination Revenue'!I48 -> 12538.11663 | J153: ='2021 Determination Revenue'!J48 -> 12538.11663
B154: ='2021 Determination Revenue'!B$49 -> Lowbidgee | C154: ='2021 Determination Revenue'!C$41 -> $'000 | G154: ='2021 Determination Revenue'!G49 -> 1272.981852 | H154: ='2021 Determination Revenue'!H49 -> 1272.981852 | I154: ='2021 Determination Revenue'!I49 -> 1272.981852 | J154: ='2021 Determination Revenue'!J49 -> 1272.981852
B155: Check=0 | G155: =SUM(G146:G154)-SUM('2021 Determination Revenue'!G41:G49) -> 0 | H155: =SUM(H146:H154)-SUM('2021 Determination Revenue'!H41:H49) -> 0 | I155: =SUM(I146:I154)-SUM('2021 Determination Revenue'!I41:I49) -> 0 | J155: =SUM(J146:J154)-SUM('2021 Determination Revenue'!J41:J49) -> 0
B157: Revenue to be recovered from entitlement charges
B158: ='2021 Determination Revenue'!B$41 -> Border | C158: ='2021 Determination Revenue'!C$41 -> $'000 | G158: =G146*'2021 Determination Revenue'!G53 -> 652.6722233 | H158: =H146*'2021 Determination Revenue'!H53 -> 647.6283181 | I158: =I146*'2021 Determination Revenue'!I53 -> 647.6283181 | J158: =J146*'2021 Determination Revenue'!J53 -> 647.6283181
B159: ='2021 Determination Revenue'!B$42 -> Gwydir | C159: ='2021 Determination Revenue'!C$41 -> $'000 | G159: =G147*'2021 Determination Revenue'!G54 -> 2554.675892 | H159: =H147*'2021 Determination Revenue'!H54 -> 2499.746638 | I159: =I147*'2021 Determination Revenue'!I54 -> 2499.746638 | J159: =J147*'2021 Determination Revenue'!J54 -> 2499.746638
B160: ='2021 Determination Revenue'!B$43 -> Namoi | C160: ='2021 Determination Revenue'!C$41 -> $'000 | G160: =G148*'2021 Determination Revenue'!G55 -> 2876.105654 | H160: =H148*'2021 Determination Revenue'!H55 -> 2815.993742 | I160: =I148*'2021 Determination Revenue'!I55 -> 2815.993742 | J160: =J148*'2021 Determination Revenue'!J55 -> 2815.993742
B161: ='2021 Determination Revenue'!B$44 -> Peel | C161: ='2021 Determination Revenue'!C$41 -> $'000 | G161: =G149*'2021 Determination Revenue'!G56 -> 1219.649838 | H161: =H149*'2021 Determination Revenue'!H56 -> 1224.574047 | I161: =I149*'2021 Determination Revenue'!I56 -> 1224.574047 | J161: =J149*'2021 Determination Revenue'!J56 -> 1224.574047
B162: ='2021 Determination Revenue'!B$45 -> Lachlan | C162: ='2021 Determination Revenue'!C$41 -> $'000 | G162: =G150*'2021 Determination Revenue'!G57 -> 3796.146829 | H162: =H150*'2021 Determination Revenue'!H57 -> 3744.994936 | I162: =I150*'2021 Determination Revenue'!I57 -> 3744.994936 | J162: =J150*'2021 Determination Revenue'!J57 -> 3744.994936
B163: ='2021 Determination Revenue'!B$46 -> Macquarie | C163: ='2021 Determination Revenue'!C$41 -> $'000 | G163: =G151*'2021 Determination Revenue'!G58 -> 3361.447487 | H163: =H151*'2021 Determination Revenue'!H58 -> 3319.76425 | I163: =I151*'2021 Determination Revenue'!I58 -> 3319.76425 | J163: =J151*'2021 Determination Revenue'!J58 -> 3319.76425
B164: ='2021 Determination Revenue'!B$47 -> Murray | C164: ='2021 Determination Revenue'!C$41 -> $'000 | G164: =G152*'2021 Determination Revenue'!G59 -> 2674.841697 | H164: =H152*'2021 Determination Revenue'!H59 -> 2634.700736 | I164: =I152*'2021 Determination Revenue'!I59 -> 2634.700736 | J164: =J152*'2021 Determination Revenue'!J59 -> 2634.700736
B165: ='2021 Determination Revenue'!B$48 -> Murrumbidgee | C165: ='2021 Determination Revenue'!C$41 -> $'000 | G165: =G153*'2021 Determination Revenue'!G60 -> 5083.168521 | H165: =H153*'2021 Determination Revenue'!H60 -> 5012.895465 | I165: =I153*'2021 Determination Revenue'!I60 -> 5012.895465 | J165: =J153*'2021 Determination Revenue'!J60 -> 5012.895465
B166: ='2021 Determination Revenue'!B$49 -> Lowbidgee | C166: ='2021 Determination Revenue'!C$41 -> $'000 | G166: =G154*'2021 Determination Revenue'!G61 -> 1272.981852 | H166: =H154*'2021 Determination Revenue'!H61 -> 1272.981852 | I166: =I154*'2021 Determination Revenue'!I61 -> 1272.981852 | J166: =J154*'2021 Determination Revenue'!J61 -> 1272.981852
B169: Revenue to be recovered from usage charges
B170: ='2021 Determination Revenue'!B$41 -> Border | C170: ='2021 Determination Revenue'!C$41 -> $'000 | G170: =G146*(1-'2021 Determination Revenue'!G53) -> 964.4293956 | H170: =H146*(1-'2021 Determination Revenue'!H53) -> 969.4733008 | I170: =I146*(1-'2021 Determination Revenue'!I53) -> 969.4733008 | J170: =J146*(1-'2021 Determination Revenue'!J53) -> 969.4733008
B171: ='2021 Determination Revenue'!B$42 -> Gwydir | C171: ='2021 Determination Revenue'!C$41 -> $'000 | G171: =G147*(1-'2021 Determination Revenue'!G54) -> 3693.455946 | H171: =H147*(1-'2021 Determination Revenue'!H54) -> 3748.385201 | I171: =I147*(1-'2021 Determination Revenue'!I54) -> 3748.385201 | J171: =J147*(1-'2021 Determination Revenue'!J54) -> 3748.385201
B172: ='2021 Determination Revenue'!B$43 -> Namoi | C172: ='2021 Determination Revenue'!C$41 -> $'000 | G172: =G148*(1-'2021 Determination Revenue'!G55) -> 4161.924143 | H172: =H148*(1-'2021 Determination Revenue'!H55) -> 4222.036055 | I172: =I148*(1-'2021 Determination Revenue'!I55) -> 4222.036055 | J172: =J148*(1-'2021 Determination Revenue'!J55) -> 4222.036055
B173: ='2021 Determination Revenue'!B$44 -> Peel | C173: ='2021 Determination Revenue'!C$41 -> $'000 | G173: =G149*(1-'2021 Determination Revenue'!G56) -> 310.9958476 | H173: =H149*(1-'2021 Determination Revenue'!H56) -> 306.0716384 | I173: =I149*(1-'2021 Determination Revenue'!I56) -> 306.0716384 | J173: =J149*(1-'2021 Determination Revenue'!J56) -> 306.0716384
B174: ='2021 Determination Revenue'!B$45 -> Lachlan | C174: ='2021 Determination Revenue'!C$41 -> $'000 | G174: =G150*(1-'2021 Determination Revenue'!G57) -> 5563.130041 | H174: =H150*(1-'2021 Determination Revenue'!H57) -> 5614.281935 | I174: =I150*(1-'2021 Determination Revenue'!I57) -> 5614.281935 | J174: =J150*(1-'2021 Determination Revenue'!J57) -> 5614.281935
B175: ='2021 Determination Revenue'!B$46 -> Macquarie | C175: ='2021 Determination Revenue'!C$41 -> $'000 | G175: =G151*(1-'2021 Determination Revenue'!G58) -> 4935.64425 | H175: =H151*(1-'2021 Determination Revenue'!H58) -> 4977.327487 | I175: =I151*(1-'2021 Determination Revenue'!I58) -> 4977.327487 | J175: =J151*(1-'2021 Determination Revenue'!J58) -> 4977.327487
B176: ='2021 Determination Revenue'!B$47 -> Murray | C176: ='2021 Determination Revenue'!C$41 -> $'000 | G176: =G152*(1-'2021 Determination Revenue'!G59) -> 3956.40929 | H176: =H152*(1-'2021 Determination Revenue'!H59) -> 3996.550251 | I176: =I152*(1-'2021 Determination Revenue'!I59) -> 3996.550251 | J176: =J152*(1-'2021 Determination Revenue'!J59) -> 3996.550251
B177: ='2021 Determination Revenue'!B$48 -> Murrumbidgee | C177: ='2021 Determination Revenue'!C$41 -> $'000 | G177: =G153*(1-'2021 Determination Revenue'!G60) -> 7454.948107 | H177: =H153*(1-'2021 Determination Revenue'!H60) -> 7525.221162 | I177: =I153*(1-'2021 Determination Revenue'!I60) -> 7525.221162 | J177: =J153*(1-'2021 Determination Revenue'!J60) -> 7525.221162
B178: ='2021 Determination Revenue'!B$49 -> Lowbidgee | C178: ='2021 Determination Revenue'!C$41 -> $'000 | G178: =G154*(1-'2021 Determination Revenue'!G61) -> 0 | H178: =H154*(1-'2021 Determination Revenue'!H61) -> 0 | I178: =I154*(1-'2021 Determination Revenue'!I61) -> 0 | J178: =J154*(1-'2021 Determination Revenue'!J61) -> 0
B179: Check=0 | G179: =SUM(G146:G154)-SUM(G158:G166)-SUM(G170:G178) -> 0 | H179: =SUM(H146:H154)-SUM(H158:H166)-SUM(H170:H178) -> 0 | I179: =SUM(I146:I154)-SUM(I158:I166)-SUM(I170:I178) -> 0 | J179: =SUM(J146:J154)-SUM(J158:J166)-SUM(J170:J178) -> 0
B184: TABLE 5.6 - REVENUE TO BE RECOVERED FROM CHARGES (ONLY MDBA/BRC REVENUE)
B185: ='2021 Determination Revenue'!B$20 -> Financial year | C185: ='2021 Determination Revenue'!C$36 -> Units | G185: ='2021 Determination Revenue'!G$20 -> 2021-22 | H185: ='2021 Determination Revenue'!H$20 -> 2022-23 | I185: ='2021 Determination Revenue'!I$20 -> 2023-24 | J185: ='2021 Determination Revenue'!J$20 -> 2024-25
G186: ='2021 Determination Revenue'!G$73 -> $2020-21 | H186: ='2021 Determination Revenue'!H$73 -> $2020-21 | I186: ='2021 Determination Revenue'!I$73 -> $2020-21 | J186: ='2021 Determination Revenue'!J$73 -> $2020-21
B187: Revenue to be recovered from entitlement charges (MDBA/BRC)
B188: ='2021 Determination Revenue'!B$41 -> Border | C188: ='2021 Determination Revenue'!C$41 -> $'000 | G188: ='2021 Determination Revenue'!G76*'2021 Determination Revenue'!G88 -> 475.8711088 | H188: ='2021 Determination Revenue'!H76*'2021 Determination Revenue'!H88 -> 475.8711088 | I188: ='2021 Determination Revenue'!I76*'2021 Determination Revenue'!I88 -> 475.8711088 | J188: ='2021 Determination Revenue'!J76*'2021 Determination Revenue'!J88 -> 475.8711088
B189: ='2021 Determination Revenue'!B$42 -> Gwydir | C189: ='2021 Determination Revenue'!C$41 -> $'000 | G189: ='2021 Determination Revenue'!G77*'2021 Determination Revenue'!G89 -> 0 | H189: ='2021 Determination Revenue'!H77*'2021 Determination Revenue'!H89 -> 0 | I189: ='2021 Determination Revenue'!I77*'2021 Determination Revenue'!I89 -> 0 | J189: ='2021 Determination Revenue'!J77*'2021 Determination Revenue'!J89 -> 0
B190: ='2021 Determination Revenue'!B$43 -> Namoi | C190: ='2021 Determination Revenue'!C$41 -> $'000 | G190: ='2021 Determination Revenue'!G78*'2021 Determination Revenue'!G90 -> 0 | H190: ='2021 Determination Revenue'!H78*'2021 Determination Revenue'!H90 -> 0 | I190: ='2021 Determination Revenue'!I78*'2021 Determination Revenue'!I90 -> 0 | J190: ='2021 Determination Revenue'!J78*'2021 Determination Revenue'!J90 -> 0
B191: ='2021 Determination Revenue'!B$44 -> Peel | C191: ='2021 Determination Revenue'!C$41 -> $'000 | G191: ='2021 Determination Revenue'!G79*'2021 Determination Revenue'!G91 -> 0 | H191: ='2021 Determination Revenue'!H79*'2021 Determination Revenue'!H91 -> 0 | I191: ='2021 Determination Revenue'!I79*'2021 Determination Revenue'!I91 -> 0 | J191: ='2021 Determination Revenue'!J79*'2021 Determination Revenue'!J91 -> 0
B192: ='2021 Determination Revenue'!B$45 -> Lachlan | C192: ='2021 Determination Revenue'!C$41 -> $'000 | G192: ='2021 Determination Revenue'!G80*'2021 Determination Revenue'!G92 -> 0 | H192: ='2021 Determination Revenue'!H80*'2021 Determination Revenue'!H92 -> 0 | I192: ='2021 Determination Revenue'!I80*'2021 Determination Revenue'!I92 -> 0 | J192: ='2021 Determination Revenue'!J80*'2021 Determination Revenue'!J92 -> 0
B193: ='2021 Determination Revenue'!B$46 -> Macquarie | C193: ='2021 Determination Revenue'!C$41 -> $'000 | G193: ='2021 Determination Revenue'!G81*'2021 Determination Revenue'!G93 -> 0 | H193: ='2021 Determination Revenue'!H81*'2021 Determination Revenue'!H93 -> 0 | I193: ='2021 Determination Revenue'!I81*'2021 Determination Revenue'!I93 -> 0 | J193: ='2021 Determination Revenue'!J81*'2021 Determination Revenue'!J93 -> 0
B194: ='2021 Determination Revenue'!B$47 -> Murray | C194: ='2021 Determination Revenue'!C$41 -> $'000 | G194: ='2021 Determination Revenue'!G82*'2021 Determination Revenue'!G94 -> 10091.03837 | H194: ='2021 Determination Revenue'!H82*'2021 Determination Revenue'!H94 -> 10091.03837 | I194: ='2021 Determination Revenue'!I82*'2021 Determination Revenue'!I94 -> 10091.03837 | J194: ='2021 Determination Revenue'!J82*'2021 Determination Revenue'!J94 -> 10091.03837
B195: ='2021 Determination Revenue'!B$48 -> Murrumbidgee | C195: ='2021 Determination Revenue'!C$41 -> $'000 | G195: ='2021 Determination Revenue'!G83*'2021 Determination Revenue'!G95 -> 2238.046124 | H195: ='2021 Determination Revenue'!H83*'2021 Determination Revenue'!H95 -> 2238.046124 | I195: ='2021 Determination Revenue'!I83*'2021 Determination Revenue'!I95 -> 2238.046124 | J195: ='2021 Determination Revenue'!J83*'2021 Determination Revenue'!J95 -> 2238.046124
B196: ='2021 Determination Revenue'!B$49 -> Lowbidgee | C196: ='2021 Determination Revenue'!C$41 -> $'000 | G196: ='2021 Determination Revenue'!G84*'2021 Determination Revenue'!G96 -> 0 | H196: ='2021 Determination Revenue'!H84*'2021 Determination Revenue'!H96 -> 0 | I196: ='2021 Determination Revenue'!I84*'2021 Determination Revenue'!I96 -> 0 | J196: ='2021 Determination Revenue'!J84*'2021 Determination Revenue'!J96 -> 0
B197: Check=0 | G197: =SUMPRODUCT('2021 Determination Revenue'!G76:G84,'2021 Determination Revenue'!G88:G96)-SUM(G188:G196) -> 0 | H197: =SUMPRODUCT('2021 Determination Revenue'!H76:H84,'2021 Determination Revenue'!H88:H96)-SUM(H188:H196) -> 0 | I197: =SUMPRODUCT('2021 Determination Revenue'!I76:I84,'2021 Determination Revenue'!I88:I96)-SUM(I188:I196) -> 0 | J197: =SUMPRODUCT('2021 Determination Revenue'!J76:J84,'2021 Determination Revenue'!J88:J96)-SUM(J188:J196) -> 0
B199: Revenue to be recovered from usage charges (MDBA/BRC)
B200: ='2021 Determination Revenue'!B$41 -> Border | C200: ='2021 Determination Revenue'!C$41 -> $'000 | G200: ='2021 Determination Revenue'!G76*(1-'2021 Determination Revenue'!G88) -> 118.9677772 | H200: ='2021 Determination Revenue'!H76*(1-'2021 Determination Revenue'!H88) -> 118.9677772 | I200: ='2021 Determination Revenue'!I76*(1-'2021 Determination Revenue'!I88) -> 118.9677772 | J200: ='2021 Determination Revenue'!J76*(1-'2021 Determination Revenue'!J88) -> 118.9677772
B201: ='2021 Determination Revenue'!B$42 -> Gwydir | C201: ='2021 Determination Revenue'!C$41 -> $'000 | G201: ='2021 Determination Revenue'!G77*(1-'2021 Determination Revenue'!G89) -> 0 | H201: ='2021 Determination Revenue'!H77*(1-'2021 Determination Revenue'!H89) -> 0 | I201: ='2021 Determination Revenue'!I77*(1-'2021 Determination Revenue'!I89) -> 0 | J201: ='2021 Determination Revenue'!J77*(1-'2021 Determination Revenue'!J89) -> 0
B202: ='2021 Determination Revenue'!B$43 -> Namoi | C202: ='2021 Determination Revenue'!C$41 -> $'000 | G202: ='2021 Determination Revenue'!G78*(1-'2021 Determination Revenue'!G90) -> 0 | H202: ='2021 Determination Revenue'!H78*(1-'2021 Determination Revenue'!H90) -> 0 | I202: ='2021 Determination Revenue'!I78*(1-'2021 Determination Revenue'!I90) -> 0 | J202: ='2021 Determination Revenue'!J78*(1-'2021 Determination Revenue'!J90) -> 0
B203: ='2021 Determination Revenue'!B$44 -> Peel | C203: ='2021 Determination Revenue'!C$41 -> $'000 | G203: ='2021 Determination Revenue'!G79*(1-'2021 Determination Revenue'!G91) -> 0 | H203: ='2021 Determination Revenue'!H79*(1-'2021 Determination Revenue'!H91) -> 0 | I203: ='2021 Determination Revenue'!I79*(1-'2021 Determination Revenue'!I91) -> 0 | J203: ='2021 Determination Revenue'!J79*(1-'2021 Determination Revenue'!J91) -> 0
B204: ='2021 Determination Revenue'!B$45 -> Lachlan | C204: ='2021 Determination Revenue'!C$41 -> $'000 | G204: ='2021 Determination Revenue'!G80*(1-'2021 Determination Revenue'!G92) -> 0 | H204: ='2021 Determination Revenue'!H80*(1-'2021 Determination Revenue'!H92) -> 0 | I204: ='2021 Determination Revenue'!I80*(1-'2021 Determination Revenue'!I92) -> 0 | J204: ='2021 Determination Revenue'!J80*(1-'2021 Determination Revenue'!J92) -> 0
B205: ='2021 Determination Revenue'!B$46 -> Macquarie | C205: ='2021 Determination Revenue'!C$41 -> $'000 | G205: ='2021 Determination Revenue'!G81*(1-'2021 Determination Revenue'!G93) -> 0 | H205: ='2021 Determination Revenue'!H81*(1-'2021 Determination Revenue'!H93) -> 0 | I205: ='2021 Determination Revenue'!I81*(1-'2021 Determination Revenue'!I93) -> 0 | J205: ='2021 Determination Revenue'!J81*(1-'2021 Determination Revenue'!J93) -> 0
B206: ='2021 Determination Revenue'!B$47 -> Murray | C206: ='2021 Determination Revenue'!C$41 -> $'000 | G206: ='2021 Determination Revenue'!G82*(1-'2021 Determination Revenue'!G94) -> 2522.759591 | H206: ='2021 Determination Revenue'!H82*(1-'2021 Determination Revenue'!H94) -> 2522.759591 | I206: ='2021 Determination Revenue'!I82*(1-'2021 Determination Revenue'!I94) -> 2522.759591 | J206: ='2021 Determination Revenue'!J82*(1-'2021 Determination Revenue'!J94) -> 2522.759591
B207: ='2021 Determination Revenue'!B$48 -> Murrumbidgee | C207: ='2021 Determination Revenue'!C$41 -> $'000 | G207: ='2021 Determination Revenue'!G83*(1-'2021 Determination Revenue'!G95) -> 559.5115309 | H207: ='2021 Determination Revenue'!H83*(1-'2021 Determination Revenue'!H95) -> 559.5115309 | I207: ='2021 Determination Revenue'!I83*(1-'2021 Determination Revenue'!I95) -> 559.5115309 | J207: ='2021 Determination Revenue'!J83*(1-'2021 Determination Revenue'!J95) -> 559.5115309
B208: ='2021 Determination Revenue'!B$49 -> Lowbidgee | C208: ='2021 Determination Revenue'!C$41 -> $'000 | G208: ='2021 Determination Revenue'!G84*(1-'2021 Determination Revenue'!G96) -> 0 | H208: ='2021 Determination Revenue'!H84*(1-'2021 Determination Revenue'!H96) -> 0 | I208: ='2021 Determination Revenue'!I84*(1-'2021 Determination Revenue'!I96) -> 0 | J208: ='2021 Determination Revenue'!J84*(1-'2021 Determination Revenue'!J96) -> 0
B209: Check=0 | G209: =SUMPRODUCT('2021 Determination Revenue'!G76:G84,(1-'2021 Determination Revenue'!G88:G96))-SUM(G200:G208) -> 0 | H209: =SUMPRODUCT('2021 Determination Revenue'!H76:H84,(1-'2021 Determination Revenue'!H88:H96))-SUM(H200:H208) -> 0 | I209: =SUMPRODUCT('2021 Determination Revenue'!I76:I84,(1-'2021 Determination Revenue'!I88:I96))-SUM(I200:I208) -> 0 | J209: =SUMPRODUCT('2021 Determination Revenue'!J76:J84,(1-'2021 Determination Revenue'!J88:J96))-SUM(J200:J208) -> 0

Sheet WaterNSW Sheets >> (hidden)

Sheet Price tables CPI (hidden)
I5: Escalation Factor | M5: =1+'2021 Determination Revenue'!G25 -> 1
E10: 2021-22 | F10: 2022-23 | G10: % Variance | I10: Determination Tables (2021-22$)
D11: Table 1 Entitlement charges for MDB Valleys
E12: nominal $ | F12: nominal $
D13: High Security Charge
D14: Border | E14: 6.58 | F14: =ROUND(I14*$M$5,2) -> 6.58 | G14: =F14/E14-1 -> 0 | I14: =E14 -> 6.58
D15: Gwydir | E15: 17.4 | F15: =ROUND(I15*$M$5,2) -> 17.4 | G15: =F15/E15-1 -> 0 | I15: =E15 -> 17.4
D16: Namoi | E16: 28.93 | F16: 28.93 | G16: =F16/E16-1 -> 0 | I16: 28.93
D17: Peel | E17: 61.36 | F17: 61.36 | G17: 0 | I17: 61.36
D18: Lachlan | E18: 25.1 | F18: 25.1 | G18: 0 | I18: 25.1
D19: Macquarie | E19: 20.18 | F19: 20.18 | G19: 0 | I19: 20.18
D20: Murray | E20: 2.26 | F20: 2.26 | G20: =F20/E20-1 -> 0 | I20: 2.26
D21: Murrumbidgee | E21: 4.17 | F21: 4.17 | G21: 0 | I21: 4.17
D23: General Security Charge
D24: Border | E24: 2.41 | F24: =ROUND(I24*$M$5,2) -> 2.41 | G24: =F24/E24-1 -> 0 | I24: =E24 -> 2.41
D25: Gwydir | E25: 4.04 | F25: 4.04 | G25: 0 | I25: 4.04
D26: Namoi | E26: 10.1 | F26: 10.1 | G26: 0 | I26: 10.1
D27: Peel | E27: 5.82 | F27: 5.82 | G27: 0 | I27: 5.82
D28: Lachlan | E28: 3.71 | F28: 3.71 | G28: 0 | I28: 3.71
D29: Macquarie | E29: 3.94 | F29: 3.94 | G29: 0 | I29: 3.94
D30: Murray | E30: 0.99 | F30: 0.99 | G30: 0 | I30: 0.99
D31: Murrumbidgee | E31: 1.43 | F31: 1.43 | G31: =F31/E31-1 -> 0 | I31: 1.43
D32: Lowbidgee | E32: 1.72 | F32: 1.72 | G32: 0 | I32: 1.72
E34: =$E$10 -> 2021-22 | F34: =$F$10 -> 2022-23 | G34: % Variance
D35: Table 2 Usage charges for MDB Valleys (excluding Lowbidgee)
E36: nominal $ | F36: nominal $
D37: Border | E37: 7.03 | F37: =ROUND(I37*$M$5,2) -> 7.03 | G37: =F37/E37-1 -> 0 | I37: =E37 -> 7.03
D38: Gwydir | E38: 17.19 | F38: =ROUND(I38*$M$5,2) -> 17.19 | G38: 0 | I38: 17.19
D39: Namoi | E39: 30.88 | F39: 30.88 | G39: 0 | I39: 30.88
D40: Peel | E40: 24.51 | F40: 24.51 | G40: 0 | I40: 24.51
D41: Lachlan | E41: 31.17 | F41: 31.17 | G41: 0 | I41: 31.17
D42: Macquarie | E42: 21.64 | F42: 21.64 | G42: 0 | I42: 21.64
D43: Murray | E43: 2.93 | F43: 2.93 | G43: 0 | I43: 2.93
D44: Murrumbidgee | E44: 4.97 | F44: 4.97 | G44: 0 | I44: 4.97
D45: Lowbidgee | E45: 0 | F45: 0 | G45: N/A
E46: =$E$10 -> 2021-22 | F46: =$F$10 -> 2022-23 | G46: % Variance
D47: Table 3 MDBA/BRC entitlement charges
E48: nominal $ | F48: nominal $
D49: High Security Licence ($/ML of Entitlement or $/unit share)
D50: Border | E50: 4.84 | F50: =ROUND(I50*$M$5,2) -> 4.84 | G50: =F50/E50-1 -> 0 | I50: =E50 -> 4.84
D51: Murray | E51: 8.64 | F51: =ROUND(I51*$M$5,2) -> 8.64 | G51: =F51/E51-1 -> 0 | I51: 8.64
D52: Murrumbidgee | E52: 1.86 | F52: =ROUND(I52*$M$5,2) -> 1.86 | G52: =F52/E52-1 -> 0 | I52: 1.86
D53: General Security Licence ($/ML of Entitlement or $/unit share)
D54: Border | E54: 1.77 | F54: =ROUND(I54*$M$5,2) -> 1.77 | G54: =F54/E54-1 -> 0 | I54: =E54 -> 1.77
D55: Murray | E55: 3.8 | F55: =ROUND(I55*$M$5,2) -> 3.8 | G55: =F55/E55-1 -> 0 | I55: 3.8
D56: Murrumbidgee | E56: 0.64 | F56: =ROUND(I56*$M$5,2) -> 0.64 | G56: =F56/E56-1 -> 0 | I56: 0.64
E58: =$E$10 -> 2021-22 | F58: =$F$10 -> 2022-23 | G58: % Variance
D59: Table 4 MDBA/BRC usage charges
E60: nominal $ | F60: nominal $
D61: Border | E61: 0.86 | F61: =ROUND(I61*$M$5,2) -> 0.86 | G61: =F61/E61-1 -> 0 | I61: =E61 -> 0.86
D62: Murray | E62: 1.85 | F62: =ROUND(I62*$M$5,2) -> 1.85 | G62: =F62/E62-1 -> 0 | I62: =E62 -> 1.85
D63: Murrumbidgee | E63: 0.37 | F63: =ROUND(I63*$M$5,2) -> 0.37 | G63: =F63/E63-1 -> 0 | I63: 0.37
E65: =$E$10 -> 2021-22 | F65: =$F$10 -> 2022-23 | G65: % Variance
D66: Table 5 Irrigation corporations and districts discount
E67: nominal $ | F67: nominal $
D68: Murray Irrigation Limited | E68: 730932.5831 | F68: =ROUND(I68*$M$5,2) -> 699529 | G68: =F68/E68-1 -> -0.04296372031 | I68: 699529
D69: Western Murray Irrigation Limited | E69: 18465.24463 | F69: 17672 | G69: =F69/E69-1 -> -0.04295879343 | I69: 17672
D70: West Corurgan | E70: 36552.11583 | F70: 34982 | G70: -0.04295553873 | I70: 34982
D71: Moira Irrigation Scheme | E71: 19288.76328 | F71: 18460 | G71: -0.04296611787 | I71: 18460
D72: Eagle Creek Scheme | E72: 6904.668126 | F72: 6608 | G72: -0.04296631219 | I72: 6608
D73: Murrumbidgee Irrigation Limited | E73: 625285.0073 | F73: 593966 | G73: -0.0500875711 | I73: 593966
D74: Coleambally Irrigation Limited | E74: 267976.7426 | F74: 254554 | G74: -0.05008920722 | I74: 254554
D75: Jemalong Irrigation Limited | E75: 56068.42446 | F75: 56350 | G75: 0.005021998406 | I75: 56350
E77: =$E$10 -> 2021-22 | F77: =$F$10 -> 2022-23 | G77: % Variance
D78: Table 6 Entitlement charges for Coastal Valleys
E79: nominal $ | F79: nominal $
D80: High Security Licence ($/ML of Entitlement or $/unit share)
D81: North Coast | E81: 12.82 | F81: =ROUND(I81*$M$5,2) -> 12.82 | G81: =F81/E81-1 -> 0 | I81: =E81 -> 12.82
D82: Hunter | E82: 19.94 | F82: =ROUND(I82*$M$5,2) -> 19.94 | G82: =F82/E82-1 -> 0 | I82: =E82 -> 19.94
D83: South Coast | E83: 33.56 | F83: =ROUND(I83*$M$5,2) -> 33.56 | G83: =F83/E83-1 -> 0 | I83: 33.56
D84: General Security Licence ($/ML of Entitlement or $/unit share)
D85: North Coast | E85: 9.94 | F85: =ROUND(I85*$M$5,2) -> 9.94 | G85: =F85/E85-1 -> 0 | I85: =E85 -> 9.94
D86: Hunter | E86: 15.49 | F86: =ROUND(I86*$M$5,2) -> 15.49 | G86: =F86/E86-1 -> 0 | I86: 15.49
D87: South Coast | E87: 17.6 | F87: =ROUND(I87*$M$5,2) -> 17.6 | G87: =F87/E87-1 -> 0 | I87: 17.6
E89: =$E$10 -> 2021-22 | F89: =$F$10 -> 2022-23 | G89: % Variance
D90: Table 7 Usage charges for Coastal Valleys
E91: nominal $ | F91: nominal $
D92: North Coast | E92: 18.98 | F92: =ROUND(I92*$M$5,2) -> 18.98 | G92: =F92/E92-1 -> 0 | I92: =E92 -> 18.98
D93: Hunter | E93: 19.13 | F93: =ROUND(I93*$M$5,2) -> 19.13 | G93: =F93/E93-1 -> 0 | I93: 19.13
D94: South Coast | E94: 18.8 | F94: =ROUND(I94*$M$5,2) -> 18.8 | G94: =F94/E94-1 -> 0 | I94: 18.8
E98: =$E$10 -> 2021-22 | F98: =$F$10 -> 2022-23 | G98: % Variance
D99: Table 9 Fish River Supply Scheme customers - bulk raw water
E100: nominal $ | F100: nominal $
D102: Energy Australia | E102: 0.49 | F102: =ROUND(I102*$M$5,2) -> 0.49 | G102: =F102/E102-1 -> 0 | I102: =E102 -> 0.49
D103: Lithgow Council | E103: 0.49 | F103: =ROUND(I103*$M$5,2) -> 0.49 | G103: =F103/E103-1 -> 0 | I103: =E103 -> 0.49
D104: Oberon council | E104: 0.42 | F104: =ROUND(I104*$M$5,2) -> 0.42 | G104: 0 | I104: =E104 -> 0.42
D105: Minor Customers | E105: 0.49 | F105: =ROUND(I105*$M$5,2) -> 0.49 | G105: =F105/E105-1 -> 0 | I105: 0.49
D106: First tier usage charge
D107: Energy Australia | E107: 0.33 | F107: =ROUND(I107*$M$5,2) -> 0.33 | G107: =F107/E107-1 -> 0 | I107: =E107 -> 0.33
D108: Lithgow Council | E108: 0.33 | F108: =ROUND(I108*$M$5,2) -> 0.33 | G108: =F108/E108-1 -> 0 | I108: 0.33
D109: Oberon council | E109: 0.26 | F109: =ROUND(I109*$M$5,2) -> 0.26 | G109: 0 | I109: 0.26
D110: Minor Customers | E110: 0.33 | F110: =ROUND(I110*$M$5,2) -> 0.33 | G110: =F110/E110-1 -> 0 | I110: 0.33
D111: Second tier usage charge
D112: Energy Australia | E112: 0.82 | F112: =ROUND(I112*$M$5,2) -> 0.82 | G112: =F112/E112-1 -> 0 | I112: =E112 -> 0.82
D113: Lithgow Council | E113: 0.82 | F113: =ROUND(I113*$M$5,2) -> 0.82 | G113: =F113/E113-1 -> 0 | I113: 0.82
D114: Oberon council | E114: 0.68 | F114: =ROUND(I114*$M$5,2) -> 0.68 | G114: 0 | I114: 0.68
D115: Minor Customers | E115: 0.82 | F115: =ROUND(I115*$M$5,2) -> 0.82 | G115: =F115/E115-1 -> 0 | I115: 0.82
E117: =$E$10 -> 2021-22 | F117: =$F$10 -> 2022-23 | G117: % Variance
D118: Table 10 Fish River Supply Scheme customers - bulk filtered water
E119: nominal $ | F119: nominal $
D121: Major Customers | E121: 0.86 | F121: =ROUND(I121*$M$5,2) -> 0.86 | G121: =F121/E121-1 -> 0 | I121: =E121 -> 0.86
D122: Minor Customers | E122: 0.86 | F122: =ROUND(I122*$M$5,2) -> 0.86 | G122: =F122/E122-1 -> 0 | I122: 0.86
D123: First tier usage charge
D124: Major Customers | E124: 0.53 | F124: =ROUND(I124*$M$5,2) -> 0.53 | G124: =F124/E124-1 -> 0 | I124: =E124 -> 0.53
D125: Minor Customers | E125: 0.53 | F125: =ROUND(I125*$M$5,2) -> 0.53 | G125: =F125/E125-1 -> 0 | I125: 0.53
D126: Second tier usage charge
D127: Major Customers | E127: 1.39 | F127: =ROUND(I127*$M$5,2) -> 1.39 | G127: =F127/E127-1 -> 0 | I127: =E127 -> 1.39
D128: Minor Customers | E128: 1.39 | F128: =ROUND(I128*$M$5,2) -> 1.39 | G128: =F128/E128-1 -> 0 | I128: 1.39
E130: =$E$10 -> 2021-22 | F130: =$F$10 -> 2022-23 | G130: % Variance
D131: Table 11 Meter service charges
E132: nominal $ | F132: nominal $
D133: 50mm | E133: 481.16 | F133: =ROUND(I133*$M$5,2) -> 481.16 | G133: =F133/E133-1 -> 0 | I133: =E133 -> 481.16
D134: 80mm | E134: 483.4 | F134: 483.4 | G134: 0 | I134: 483.4
D135: 100mm | E135: 483.39 | F135: 483.39 | G135: 0 | I135: 483.39
D136: 150mm | E136: 489.07 | F136: 489.07 | G136: 0 | I136: 489.07
D137: 200mm | E137: 491.88 | F137: 491.88 | G137: 0 | I137: 491.88
D138: 250mm | E138: 494.48 | F138: 494.48 | G138: 0 | I138: 494.48
D139: 300mm | E139: 501.2 | F139: 501.2 | G139: 0 | I139: 501.2
D140: 350mm | E140: 531.39 | F140: 531.39 | G140: 0 | I140: 531.39
D141: 400mm | E141: 549.37 | F141: 549.37 | G141: 0 | I141: 549.37
D142: 450mm | E142: 552.83 | F142: 552.83 | G142: 0 | I142: 552.83
D143: 500mm | E143: 567.56 | F143: 567.56 | G143: 0 | I143: 567.56
D144: 600mm | E144: 586.43 | F144: 586.43 | G144: 0 | I144: 586.43
D145: 700mm | E145: 608.85 | F145: 608.85 | G145: 0 | I145: 608.85
D146: 750mm | E146: 640.25 | F146: 640.25 | G146: 0 | I146: 640.25
D147: 800mm | E147: 661.47 | F147: 661.47 | G147: 0 | I147: 661.47
D148: 900mm | E148: 668.19 | F148: 668.19 | G148: 0 | I148: 668.19
D149: 1,000mm | E149: 680.6 | F149: 680.6 | G149: 0 | I149: 680.6
D150: Channel | E150: 6306.05 | F150: 6306.05 | G150: 0 | I150: 6306.05
E152: =$E$10 -> 2021-22 | F152: =$F$10 -> 2022-23 | G152: % Variance
D153: Table 12 Meter accuracy testing charges
E154: nominal $ | F154: nominal $
D155: Refundable meter accuracy deposit | E155: 1750 | F155: 1750 | G155: =F155/E155-1 -> 0
D156: Total charge (if meter is found to be within accuracy standards)
D157: Verification and testing in situ | E157: 4677.28 | F157: =ROUND(I157*$M$5,2) -> 4677.28 | G157: =F157/E157-1 -> 0 | H157: ="+1,750" -> +1,750 | I157: =E157 -> 4677.28
D158: Lab verification and testing | E158: 6999.03 | F158: =ROUND(I158*$M$5,2) -> 6999.03 | G158: =F158/E158-1 -> 0 | H158: ="+1,750" -> +1,750 | I158: =E158 -> 6999.03
E160: =$E$10 -> 2021-22 | F160: =$F$10 -> 2022-23 | G160: % Variance
D161: Table 13 Environmental gauging station charge
E162: nominal $ | F162: nominal $
E165: =$E$10 -> 2021-22 | F165: =$F$10 -> 2022-23 | G165: % Variance
D166: Table 14 Other Miscellaneous Charges
E167: nominal $ | F167: nominal $
D168: Trade processing charge per application | E168: 49.92 | F168: =ROUND(I168*$M$5,2) -> 49.92 | G168: =F168/E168-1 -> 0 | I168: =E168 -> 49.92
D169: Fish River Connection Charge
D170: Low complexity connection | E170: 926.38 | F170: =ROUND(I170*$M$5,2) -> 926.38 | G170: =F170/E170-1 -> 0 | I170: =E170 -> 926.38
D171: Medium complexity connection | E171: 3512.39 | F171: =ROUND(I171*$M$5,2) -> 3512.39 | G171: =F171/E171-1 -> 0 | I171: 3512.39
D172: High complexity connection | E172: 7181.32 | F172: =ROUND(I172*$M$5,2) -> 7181.32 | G172: =F172/E172-1 -> 0 | I172: 7181.32
D173: Fish River Disconnection Charge | E173: 260.8 | F173: =ROUND(I173*$M$5,2) -> 260.8 | G173: =F173/E173-1 -> 0 | I173: 260.8
E179: =$E$10 -> 2021-22 | F179: =$F$10 -> 2022-23 | G179: % Variance
D180: Table 15 Annual Scheme Management Charge
E181: nominal $ | F181: nominal $
D182: Proportion of voluntary telemetry uptake
D183: 0% - 25% | E183: 73.26 | F183: =ROUND(I183*$M$5,2) -> 73.26 | G183: =F183/E183-1 -> 0 | I183: 73.26
D184: >25% - 50% | E184: 66.01 | F184: 66.01 | G184: =F184/E184-1 -> 0 | I184: 66.01
D185: >50% - 75% | E185: 58.75 | F185: 58.75 | G185: =F185/E185-1 -> 0 | I185: 58.75
D186: >75% - 100% | E186: 51.49 | F186: 51.49 | G186: =F186/E186-1 -> 0 | I186: 51.49
D188: a The charges in this table are annual charges and must therefore be pro-rated in accordance with clause 2.5(b) of Schedule 6 for any period under this determination to which this charge applies, and that is less than a full financial year.
E191: =$E$10 -> 2021-22 | F191: =$F$10 -> 2022-23 | G191: % Variance
D192: Annual Government-Owned Meter service chargesa
D194: Meter service charge - operating costs ($ per Government-Owned Meter) | E194: 898.85 | F194: =ROUND(I194*$M$5,2) -> 898.85 | G194: =F194/E194-1 -> 0 | I194: 898.85
D195: Meter service charge for channel meters- operating costs ($ per Government-Owned Meter) | E195: 6306.04 | F195: 6306.04 | G195: 0 | I195: 6306.04
D196: Meter service charge - capital costs ($ per Government-Owned Meter) | E196: 0 | F196: 0 | G196: N/A | I196: 0
D197: a The charges in this table are annual charges and must therefore be pro-rated in accordance with clause 2.5(b) of Schedule 6 for any period under this determination to which this charge applies, and that is less than a full financial year.
E200: =$E$10 -> 2021-22 | F200: =$F$10 -> 2022-23 | G200: % Variance
D201: Annual telemetry service chargea
D203: Proportion of voluntary telemetry uptake
D204: 0% - >25% | E204: 226.49 | F204: =ROUND(I204*$M$5,2) -> 226.49 | G204: =F204/E204-1 -> 0 | I204: 226.49
D205: 25% - >50% | E205: 208.74 | F205: 208.74 | G205: 0 | I205: 208.74
D206: 50% - >75% | E206: 191.41 | F206: 191.41 | G206: 0 | I206: 191.41
D207: 75% or more | E207: 182.11 | F207: 182.11 | G207: 0 | I207: 182.11
D208: a The charges in this table are annual charges and must therefore be pro-rated in accordance with clause 2.5(b) of Schedule 6 for any period under this determination to which this charge applies, and that is less than a full financial year.
E211: =$E$10 -> 2021-22 | F211: =$F$10 -> 2022-23 | G211: % Variance
D212: Annual non-telemetry service charge a
D214: Proportion of voluntary telemetry uptake
D215: 25% - >50% | E215: 218.57 | F215: =ROUND(I215*$M$5,2) -> 218.57 | G215: =F215/E215-1 -> 0 | I215: 218.57
D216: 50% - >75% | E216: 218.57 | F216: 218.57 | G216: 0 | I216: 218.57
D217: 75% or more | E217: 218.57 | F217: 218.57 | G217: 0 | I217: 218.57
D218: a The charges in this table are annual charges and must therefore be pro-rated in accordance with clause 2.5(b) of Schedule 6 for any period under this determination to which this charge applies, and that is less than a full financial year.
E220: =$E$10 -> 2021-22 | F220: =$F$10 -> 2022-23 | G220: % Variance
D221: Exit fee
D223: Average capital expenditure ($ per meter) | E223: 0 | F223: =ROUND(I223*$M$5,2) -> 0 | G223: N/A | I223: 0
D224: Daily depreciation ($ per meter) | E224: 0 | F224: 0 | G224: N/A | I224: 0

Sheet Bill impact tables (hidden)
C5: CUSTOMER BILLS
C7: TABLE 4.5 - INDICATIVE BILLS FOR HIGH SECURITY CUSTOMERS - WaterNSW CHARGES
I8: 2021-22 | J8: 2022-23 | K8: Bill analysis of based on ∆ in CPI
C11: Small consumption customers | O11: Entitlements | P11: Utilisation
C12: Border | D12: $ | I12: ='Price tables CPI'!E14*'Bill impact tables'!$O12+'Price tables CPI'!E37*'Bill impact tables'!$O12*'Bill impact tables'!$P12 -> 1361 | J12: ='Price tables CPI'!F14*'Bill impact tables'!$O12+'Price tables CPI'!F37*'Bill impact tables'!$O12*'Bill impact tables'!$P12 -> 1361 | K12: =IFERROR(J12/I12-1,"N/A") -> 0 | O12: 100 | P12: 1
C13: Gwydir | D13: =D$12 -> $ | I13: ='Price tables CPI'!E15*'Bill impact tables'!$O13+'Price tables CPI'!E38*'Bill impact tables'!$O13*'Bill impact tables'!$P13 -> 3459 | J13: ='Price tables CPI'!F15*'Bill impact tables'!$O13+'Price tables CPI'!F38*'Bill impact tables'!$O13*'Bill impact tables'!$P13 -> 3459 | K13: 0 | O13: 100 | P13: 1
C14: Namoi | D14: $ | I14: ='Price tables CPI'!E16*'Bill impact tables'!$O14+'Price tables CPI'!E39*'Bill impact tables'!$O14*'Bill impact tables'!$P14 -> 5981 | J14: ='Price tables CPI'!F16*'Bill impact tables'!$O14+'Price tables CPI'!F39*'Bill impact tables'!$O14*'Bill impact tables'!$P14 -> 5981 | K14: 0 | O14: 100 | P14: 1
C15: Peel | D15: $ | I15: ='Price tables CPI'!E17*'Bill impact tables'!$O15+'Price tables CPI'!E40*'Bill impact tables'!$O15*'Bill impact tables'!$P15 -> 8587 | J15: ='Price tables CPI'!F17*'Bill impact tables'!$O15+'Price tables CPI'!F40*'Bill impact tables'!$O15*'Bill impact tables'!$P15 -> 8587 | K15: 0 | O15: 100 | P15: 1
C16: Lachlan | D16: $ | I16: ='Price tables CPI'!E18*'Bill impact tables'!$O16+'Price tables CPI'!E41*'Bill impact tables'!$O16*'Bill impact tables'!$P16 -> 5627 | J16: ='Price tables CPI'!F18*'Bill impact tables'!$O16+'Price tables CPI'!F41*'Bill impact tables'!$O16*'Bill impact tables'!$P16 -> 5627 | K16: 0 | O16: 100 | P16: 1
C17: Macquarie | D17: $ | I17: ='Price tables CPI'!E19*'Bill impact tables'!$O17+'Price tables CPI'!E42*'Bill impact tables'!$O17*'Bill impact tables'!$P17 -> 4182 | J17: ='Price tables CPI'!F19*'Bill impact tables'!$O17+'Price tables CPI'!F42*'Bill impact tables'!$O17*'Bill impact tables'!$P17 -> 4182 | K17: 0 | O17: 100 | P17: 1
C18: Murray | D18: $ | I18: ='Price tables CPI'!E20*'Bill impact tables'!$O18+'Price tables CPI'!E43*'Bill impact tables'!$O18*'Bill impact tables'!$P18 -> 519 | J18: ='Price tables CPI'!F20*'Bill impact tables'!$O18+'Price tables CPI'!F43*'Bill impact tables'!$O18*'Bill impact tables'!$P18 -> 519 | K18: 0 | O18: 100 | P18: 1
C19: Murrumbidgee | D19: $ | I19: ='Price tables CPI'!E21*'Bill impact tables'!$O19+'Price tables CPI'!E44*'Bill impact tables'!$O19*'Bill impact tables'!$P19 -> 914 | J19: ='Price tables CPI'!F21*'Bill impact tables'!$O19+'Price tables CPI'!F44*'Bill impact tables'!$O19*'Bill impact tables'!$P19 -> 914 | K19: 0 | O19: 100 | P19: 1
C20: Lowbidgee | D20: $ | I20: 0 | J20: 0 | K20: N/A | N20: GS entitlement charges only | O20: 100 | P20: 1
C22: Medium consumption customers
C23: Border | D23: =D$12 -> $ | I23: ='Price tables CPI'!E14*'Bill impact tables'!$O23+'Price tables CPI'!E37*'Bill impact tables'!$O23*'Bill impact tables'!$P23 -> 6805 | J23: ='Price tables CPI'!F14*'Bill impact tables'!$O23+'Price tables CPI'!F37*'Bill impact tables'!$O23*'Bill impact tables'!$P23 -> 6805 | K23: =IFERROR(J23/I23-1,"N/A") -> 0 | O23: 500 | P23: 1
C24: Gwydir | D24: $ | I24: ='Price tables CPI'!E15*'Bill impact tables'!$O24+'Price tables CPI'!E38*'Bill impact tables'!$O24*'Bill impact tables'!$P24 -> 17295 | J24: ='Price tables CPI'!F15*'Bill impact tables'!$O24+'Price tables CPI'!F38*'Bill impact tables'!$O24*'Bill impact tables'!$P24 -> 17295 | K24: 0 | O24: 500 | P24: 1
C25: Namoi | D25: $ | I25: ='Price tables CPI'!E16*'Bill impact tables'!$O25+'Price tables CPI'!E39*'Bill impact tables'!$O25*'Bill impact tables'!$P25 -> 29905 | J25: ='Price tables CPI'!F16*'Bill impact tables'!$O25+'Price tables CPI'!F39*'Bill impact tables'!$O25*'Bill impact tables'!$P25 -> 29905 | K25: 0 | O25: 500 | P25: 1
C26: Peel | D26: $ | I26: ='Price tables CPI'!E17*'Bill impact tables'!$O26+'Price tables CPI'!E40*'Bill impact tables'!$O26*'Bill impact tables'!$P26 -> 42935 | J26: ='Price tables CPI'!F17*'Bill impact tables'!$O26+'Price tables CPI'!F40*'Bill impact tables'!$O26*'Bill impact tables'!$P26 -> 42935 | K26: 0 | O26: 500 | P26: 1
C27: Lachlan | D27: $ | I27: ='Price tables CPI'!E18*'Bill impact tables'!$O27+'Price tables CPI'!E41*'Bill impact tables'!$O27*'Bill impact tables'!$P27 -> 28135 | J27: ='Price tables CPI'!F18*'Bill impact tables'!$O27+'Price tables CPI'!F41*'Bill impact tables'!$O27*'Bill impact tables'!$P27 -> 28135 | K27: 0 | O27: 500 | P27: 1
C28: Macquarie | D28: $ | I28: ='Price tables CPI'!E19*'Bill impact tables'!$O28+'Price tables CPI'!E42*'Bill impact tables'!$O28*'Bill impact tables'!$P28 -> 20910 | J28: ='Price tables CPI'!F19*'Bill impact tables'!$O28+'Price tables CPI'!F42*'Bill impact tables'!$O28*'Bill impact tables'!$P28 -> 20910 | K28: 0 | O28: 500 | P28: 1
C29: Murray | D29: $ | I29: ='Price tables CPI'!E20*'Bill impact tables'!$O29+'Price tables CPI'!E43*'Bill impact tables'!$O29*'Bill impact tables'!$P29 -> 2595 | J29: ='Price tables CPI'!F20*'Bill impact tables'!$O29+'Price tables CPI'!F43*'Bill impact tables'!$O29*'Bill impact tables'!$P29 -> 2595 | K29: 0 | O29: 500 | P29: 1
C30: Murrumbidgee | D30: $ | I30: ='Price tables CPI'!E21*'Bill impact tables'!$O30+'Price tables CPI'!E44*'Bill impact tables'!$O30*'Bill impact tables'!$P30 -> 4570 | J30: ='Price tables CPI'!F21*'Bill impact tables'!$O30+'Price tables CPI'!F44*'Bill impact tables'!$O30*'Bill impact tables'!$P30 -> 4570 | K30: 0 | O30: 500 | P30: 1
C31: Lowbidgee | D31: $ | I31: 0 | J31: 0 | K31: N/A | N31: GS entitlement charges only | O31: 500 | P31: 1
C33: Large consumption customers
C34: Border | D34: =D$12 -> $ | I34: ='Price tables CPI'!E14*'Bill impact tables'!$O34+'Price tables CPI'!E37*'Bill impact tables'!$O34*'Bill impact tables'!$P34 -> 13610 | J34: ='Price tables CPI'!F14*'Bill impact tables'!$O34+'Price tables CPI'!F37*'Bill impact tables'!$O34*'Bill impact tables'!$P34 -> 13610 | K34: =IFERROR(J34/I34-1,"N/A") -> 0 | O34: 1000 | P34: 1
C35: Gwydir | D35: $ | I35: ='Price tables CPI'!E15*'Bill impact tables'!$O35+'Price tables CPI'!E38*'Bill impact tables'!$O35*'Bill impact tables'!$P35 -> 34590 | J35: ='Price tables CPI'!F15*'Bill impact tables'!$O35+'Price tables CPI'!F38*'Bill impact tables'!$O35*'Bill impact tables'!$P35 -> 34590 | K35: 0 | O35: 1000 | P35: 1
C36: Namoi | D36: $ | I36: ='Price tables CPI'!E16*'Bill impact tables'!$O36+'Price tables CPI'!E39*'Bill impact tables'!$O36*'Bill impact tables'!$P36 -> 59810 | J36: ='Price tables CPI'!F16*'Bill impact tables'!$O36+'Price tables CPI'!F39*'Bill impact tables'!$O36*'Bill impact tables'!$P36 -> 59810 | K36: 0 | O36: 1000 | P36: 1
C37: Peel | D37: $ | I37: ='Price tables CPI'!E17*'Bill impact tables'!$O37+'Price tables CPI'!E40*'Bill impact tables'!$O37*'Bill impact tables'!$P37 -> 85870 | J37: ='Price tables CPI'!F17*'Bill impact tables'!$O37+'Price tables CPI'!F40*'Bill impact tables'!$O37*'Bill impact tables'!$P37 -> 85870 | K37: 0 | O37: 1000 | P37: 1
C38: Lachlan | D38: $ | I38: ='Price tables CPI'!E18*'Bill impact tables'!$O38+'Price tables CPI'!E41*'Bill impact tables'!$O38*'Bill impact tables'!$P38 -> 56270 | J38: ='Price tables CPI'!F18*'Bill impact tables'!$O38+'Price tables CPI'!F41*'Bill impact tables'!$O38*'Bill impact tables'!$P38 -> 56270 | K38: 0 | O38: 1000 | P38: 1
C39: Macquarie | D39: $ | I39: ='Price tables CPI'!E19*'Bill impact tables'!$O39+'Price tables CPI'!E42*'Bill impact tables'!$O39*'Bill impact tables'!$P39 -> 41820 | J39: ='Price tables CPI'!F19*'Bill impact tables'!$O39+'Price tables CPI'!F42*'Bill impact tables'!$O39*'Bill impact tables'!$P39 -> 41820 | K39: 0 | O39: 1000 | P39: 1
C40: Murray | D40: $ | I40: ='Price tables CPI'!E20*'Bill impact tables'!$O40+'Price tables CPI'!E43*'Bill impact tables'!$O40*'Bill impact tables'!$P40 -> 5190 | J40: ='Price tables CPI'!F20*'Bill impact tables'!$O40+'Price tables CPI'!F43*'Bill impact tables'!$O40*'Bill impact tables'!$P40 -> 5190 | K40: 0 | O40: 1000 | P40: 1
C41: Murrumbidgee | D41: $ | I41: ='Price tables CPI'!E21*'Bill impact tables'!$O41+'Price tables CPI'!E44*'Bill impact tables'!$O41*'Bill impact tables'!$P41 -> 9140 | J41: ='Price tables CPI'!F21*'Bill impact tables'!$O41+'Price tables CPI'!F44*'Bill impact tables'!$O41*'Bill impact tables'!$P41 -> 9140 | K41: 0 | O41: 1000 | P41: 1
C42: Lowbidgee | D42: $ | I42: 0 | J42: 0 | K42: N/A | N42: GS entitlement charges only | O42: 1000 | P42: 1
C46: TABLE 4.6 - INDICATIVE BILLS FOR GENERAL SECURITY CUSTOMERS - WaterNSW CHARGES
I47: 2021-22 | J47: 2022-23 | K47: Bill analysis of based on ∆ in CPI
C50: Small consumption customers
C51: Border | D51: =D$12 -> $ | I51: ='Price tables CPI'!E24*'Bill impact tables'!$O51+'Price tables CPI'!E37*'Bill impact tables'!$O51*'Bill impact tables'!$P51 -> 662.8 | J51: ='Price tables CPI'!F24*'Bill impact tables'!$O51+'Price tables CPI'!F37*'Bill impact tables'!$O51*'Bill impact tables'!$P51 -> 662.8 | K51: =IFERROR(J51/I51-1,"N/A") -> 0 | O51: 100 | P51: 0.6
C52: Gwydir | D52: $ | I52: ='Price tables CPI'!E25*'Bill impact tables'!$O52+'Price tables CPI'!E38*'Bill impact tables'!$O52*'Bill impact tables'!$P52 -> 1435.4 | J52: ='Price tables CPI'!F25*'Bill impact tables'!$O52+'Price tables CPI'!F38*'Bill impact tables'!$O52*'Bill impact tables'!$P52 -> 1435.4 | K52: 0 | O52: 100 | P52: 0.6
C53: Namoi | D53: $ | I53: ='Price tables CPI'!E26*'Bill impact tables'!$O53+'Price tables CPI'!E39*'Bill impact tables'!$O53*'Bill impact tables'!$P53 -> 2862.8 | J53: ='Price tables CPI'!F26*'Bill impact tables'!$O53+'Price tables CPI'!F39*'Bill impact tables'!$O53*'Bill impact tables'!$P53 -> 2862.8 | K53: 0 | O53: 100 | P53: 0.6
C54: Peel | D54: $ | I54: ='Price tables CPI'!E27*'Bill impact tables'!$O54+'Price tables CPI'!E40*'Bill impact tables'!$O54*'Bill impact tables'!$P54 -> 2052.6 | J54: ='Price tables CPI'!F27*'Bill impact tables'!$O54+'Price tables CPI'!F40*'Bill impact tables'!$O54*'Bill impact tables'!$P54 -> 2052.6 | K54: 0 | O54: 100 | P54: 0.6
C55: Lachlan | D55: $ | I55: ='Price tables CPI'!E28*'Bill impact tables'!$O55+'Price tables CPI'!E41*'Bill impact tables'!$O55*'Bill impact tables'!$P55 -> 2241.2 | J55: ='Price tables CPI'!F28*'Bill impact tables'!$O55+'Price tables CPI'!F41*'Bill impact tables'!$O55*'Bill impact tables'!$P55 -> 2241.2 | K55: =IFERROR(J55/I55-1,"N/A") -> 0 | O55: 100 | P55: 0.6
C56: Macquarie | D56: $ | I56: ='Price tables CPI'!E29*'Bill impact tables'!$O56+'Price tables CPI'!E42*'Bill impact tables'!$O56*'Bill impact tables'!$P56 -> 1692.4 | J56: ='Price tables CPI'!F29*'Bill impact tables'!$O56+'Price tables CPI'!F42*'Bill impact tables'!$O56*'Bill impact tables'!$P56 -> 1692.4 | K56: 0 | O56: 100 | P56: 0.6
C57: Murray | D57: $ | I57: ='Price tables CPI'!E30*'Bill impact tables'!$O57+'Price tables CPI'!E43*'Bill impact tables'!$O57*'Bill impact tables'!$P57 -> 274.8 | J57: ='Price tables CPI'!F30*'Bill impact tables'!$O57+'Price tables CPI'!F43*'Bill impact tables'!$O57*'Bill impact tables'!$P57 -> 274.8 | K57: 0 | O57: 100 | P57: 0.6
C58: Murrumbidgee | D58: $ | I58: ='Price tables CPI'!E31*'Bill impact tables'!$O58+'Price tables CPI'!E44*'Bill impact tables'!$O58*'Bill impact tables'!$P58 -> 441.2 | J58: ='Price tables CPI'!F31*'Bill impact tables'!$O58+'Price tables CPI'!F44*'Bill impact tables'!$O58*'Bill impact tables'!$P58 -> 441.2 | K58: 0 | O58: 100 | P58: 0.6
C59: Lowbidgee* | D59: $ | I59: ='Price tables CPI'!E32*'Bill impact tables'!$O59+'Price tables CPI'!E45*'Bill impact tables'!$O59*'Bill impact tables'!$P59 -> 172 | J59: ='Price tables CPI'!F32*'Bill impact tables'!$O59+'Price tables CPI'!F45*'Bill impact tables'!$O59*'Bill impact tables'!$P59 -> 172 | K59: 0 | O59: 100 | P59: 0.6
C61: Medium consumption customers
C62: Border | D62: =D$12 -> $ | I62: ='Price tables CPI'!E24*'Bill impact tables'!$O62+'Price tables CPI'!E37*'Bill impact tables'!$O62*'Bill impact tables'!$P62 -> 3314 | J62: ='Price tables CPI'!F24*'Bill impact tables'!$O62+'Price tables CPI'!F37*'Bill impact tables'!$O62*'Bill impact tables'!$P62 -> 3314 | K62: =IFERROR(J62/I62-1,"N/A") -> 0 | O62: 500 | P62: 0.6
C63: Gwydir | D63: $ | I63: ='Price tables CPI'!E25*'Bill impact tables'!$O63+'Price tables CPI'!E38*'Bill impact tables'!$O63*'Bill impact tables'!$P63 -> 7177 | J63: ='Price tables CPI'!F25*'Bill impact tables'!$O63+'Price tables CPI'!F38*'Bill impact tables'!$O63*'Bill impact tables'!$P63 -> 7177 | K63: 0 | O63: 500 | P63: 0.6
C64: Namoi | D64: $ | I64: ='Price tables CPI'!E26*'Bill impact tables'!$O64+'Price tables CPI'!E39*'Bill impact tables'!$O64*'Bill impact tables'!$P64 -> 14314 | J64: ='Price tables CPI'!F26*'Bill impact tables'!$O64+'Price tables CPI'!F39*'Bill impact tables'!$O64*'Bill impact tables'!$P64 -> 14314 | K64: 0 | O64: 500 | P64: 0.6
C65: Peel | D65: $ | I65: ='Price tables CPI'!E27*'Bill impact tables'!$O65+'Price tables CPI'!E40*'Bill impact tables'!$O65*'Bill impact tables'!$P65 -> 10263 | J65: ='Price tables CPI'!F27*'Bill impact tables'!$O65+'Price tables CPI'!F40*'Bill impact tables'!$O65*'Bill impact tables'!$P65 -> 10263 | K65: 0 | O65: 500 | P65: 0.6
C66: Lachlan | D66: $ | I66: ='Price tables CPI'!E28*'Bill impact tables'!$O66+'Price tables CPI'!E41*'Bill impact tables'!$O66*'Bill impact tables'!$P66 -> 11206 | J66: ='Price tables CPI'!F28*'Bill impact tables'!$O66+'Price tables CPI'!F41*'Bill impact tables'!$O66*'Bill impact tables'!$P66 -> 11206 | K66: 0 | O66: 500 | P66: 0.6
C67: Macquarie | D67: $ | I67: ='Price tables CPI'!E29*'Bill impact tables'!$O67+'Price tables CPI'!E42*'Bill impact tables'!$O67*'Bill impact tables'!$P67 -> 8462 | J67: ='Price tables CPI'!F29*'Bill impact tables'!$O67+'Price tables CPI'!F42*'Bill impact tables'!$O67*'Bill impact tables'!$P67 -> 8462 | K67: 0 | O67: 500 | P67: 0.6
C68: Murray | D68: $ | I68: ='Price tables CPI'!E30*'Bill impact tables'!$O68+'Price tables CPI'!E43*'Bill impact tables'!$O68*'Bill impact tables'!$P68 -> 1374 | J68: ='Price tables CPI'!F30*'Bill impact tables'!$O68+'Price tables CPI'!F43*'Bill impact tables'!$O68*'Bill impact tables'!$P68 -> 1374 | K68: 0 | O68: 500 | P68: 0.6
C69: Murrumbidgee | D69: $ | I69: ='Price tables CPI'!E31*'Bill impact tables'!$O69+'Price tables CPI'!E44*'Bill impact tables'!$O69*'Bill impact tables'!$P69 -> 2206 | J69: ='Price tables CPI'!F31*'Bill impact tables'!$O69+'Price tables CPI'!F44*'Bill impact tables'!$O69*'Bill impact tables'!$P69 -> 2206 | K69: 0 | O69: 500 | P69: 0.6
C70: Lowbidgee* | D70: $ | I70: ='Price tables CPI'!E32*'Bill impact tables'!$O70+'Price tables CPI'!E45*'Bill impact tables'!$O70*'Bill impact tables'!$P70 -> 860 | J70: ='Price tables CPI'!F32*'Bill impact tables'!$O70+'Price tables CPI'!F45*'Bill impact tables'!$O70*'Bill impact tables'!$P70 -> 860 | K70: 0 | O70: 500 | P70: 0.6
C72: Large consumption customers
C73: Border | D73: =D$12 -> $ | I73: ='Price tables CPI'!E24*'Bill impact tables'!$O73+'Price tables CPI'!E37*'Bill impact tables'!$O73*'Bill impact tables'!$P73 -> 6628 | J73: ='Price tables CPI'!F24*'Bill impact tables'!$O73+'Price tables CPI'!F37*'Bill impact tables'!$O73*'Bill impact tables'!$P73 -> 6628 | K73: =IFERROR(J73/I73-1,"N/A") -> 0 | O73: 1000 | P73: 0.6
C74: Gwydir | D74: $ | I74: ='Price tables CPI'!E25*'Bill impact tables'!$O74+'Price tables CPI'!E38*'Bill impact tables'!$O74*'Bill impact tables'!$P74 -> 14354 | J74: ='Price tables CPI'!F25*'Bill impact tables'!$O74+'Price tables CPI'!F38*'Bill impact tables'!$O74*'Bill impact tables'!$P74 -> 14354 | K74: 0 | O74: 1000 | P74: 0.6
C75: Namoi | D75: $ | I75: ='Price tables CPI'!E26*'Bill impact tables'!$O75+'Price tables CPI'!E39*'Bill impact tables'!$O75*'Bill impact tables'!$P75 -> 28628 | J75: ='Price tables CPI'!F26*'Bill impact tables'!$O75+'Price tables CPI'!F39*'Bill impact tables'!$O75*'Bill impact tables'!$P75 -> 28628 | K75: 0 | O75: 1000 | P75: 0.6
C76: Peel | D76: $ | I76: ='Price tables CPI'!E27*'Bill impact tables'!$O76+'Price tables CPI'!E40*'Bill impact tables'!$O76*'Bill impact tables'!$P76 -> 20526 | J76: ='Price tables CPI'!F27*'Bill impact tables'!$O76+'Price tables CPI'!F40*'Bill impact tables'!$O76*'Bill impact tables'!$P76 -> 20526 | K76: 0 | O76: 1000 | P76: 0.6
C77: Lachlan | D77: =D$12 -> $ | I77: ='Price tables CPI'!E28*'Bill impact tables'!$O77+'Price tables CPI'!E41*'Bill impact tables'!$O77*'Bill impact tables'!$P77 -> 22412 | J77: ='Price tables CPI'!F28*'Bill impact tables'!$O77+'Price tables CPI'!F41*'Bill impact tables'!$O77*'Bill impact tables'!$P77 -> 22412 | K77: 0 | O77: 1000 | P77: 0.6
C78: Macquarie | D78: $ | I78: ='Price tables CPI'!E29*'Bill impact tables'!$O78+'Price tables CPI'!E42*'Bill impact tables'!$O78*'Bill impact tables'!$P78 -> 16924 | J78: ='Price tables CPI'!F29*'Bill impact tables'!$O78+'Price tables CPI'!F42*'Bill impact tables'!$O78*'Bill impact tables'!$P78 -> 16924 | K78: 0 | O78: 1000 | P78: 0.6
C79: Murray | D79: $ | I79: ='Price tables CPI'!E30*'Bill impact tables'!$O79+'Price tables CPI'!E43*'Bill impact tables'!$O79*'Bill impact tables'!$P79 -> 2748 | J79: ='Price tables CPI'!F30*'Bill impact tables'!$O79+'Price tables CPI'!F43*'Bill impact tables'!$O79*'Bill impact tables'!$P79 -> 2748 | K79: 0 | O79: 1000 | P79: 0.6
C80: Murrumbidgee | D80: $ | I80: ='Price tables CPI'!E31*'Bill impact tables'!$O80+'Price tables CPI'!E44*'Bill impact tables'!$O80*'Bill impact tables'!$P80 -> 4412 | J80: ='Price tables CPI'!F31*'Bill impact tables'!$O80+'Price tables CPI'!F44*'Bill impact tables'!$O80*'Bill impact tables'!$P80 -> 4412 | K80: 0 | O80: 1000 | P80: 0.6
C81: Lowbidgee* | D81: $ | I81: ='Price tables CPI'!E32*'Bill impact tables'!$O81+'Price tables CPI'!E45*'Bill impact tables'!$O81*'Bill impact tables'!$P81 -> 1720 | J81: ='Price tables CPI'!F32*'Bill impact tables'!$O81+'Price tables CPI'!F45*'Bill impact tables'!$O81*'Bill impact tables'!$P81 -> 1720 | K81: 0 | O81: 1000 | P81: 0.6
C85: TABLE 4.7 - INDICATIVE BILLS FOR HIGH SECURITY AND GENERAL SECURITY CUSTOMERS - MDBA/BRC CHARGES
I86: 2021-22 | J86: 2022-23 | K86: Bill analysis of based on ∆ in CPI
C88: HIGH SECURITY
C89: Small consumption customers
C90: Border | D90: =D$12 -> $ | I90: ='Price tables CPI'!E50*'Bill impact tables'!$O90+'Price tables CPI'!E61*'Bill impact tables'!$O90*'Bill impact tables'!$P90 -> 570 | J90: ='Price tables CPI'!F50*'Bill impact tables'!$O90+'Price tables CPI'!F61*'Bill impact tables'!$O90*'Bill impact tables'!$P90 -> 570 | K90: =IFERROR(J90/I90-1,"N/A") -> 0 | O90: 100 | P90: 1
C91: Murray | D91: =D$12 -> $ | I91: ='Price tables CPI'!E51*'Bill impact tables'!$O91+'Price tables CPI'!E62*'Bill impact tables'!$O91*'Bill impact tables'!$P91 -> 1049 | J91: ='Price tables CPI'!F51*'Bill impact tables'!$O91+'Price tables CPI'!F62*'Bill impact tables'!$O91*'Bill impact tables'!$P91 -> 1049 | K91: =IFERROR(J91/I91-1,"N/A") -> 0 | O91: 100 | P91: 1
C92: Murrumbidgee | D92: =D$12 -> $ | I92: ='Price tables CPI'!E52*'Bill impact tables'!$O92+'Price tables CPI'!E63*'Bill impact tables'!$O92*'Bill impact tables'!$P92 -> 223 | J92: ='Price tables CPI'!F52*'Bill impact tables'!$O92+'Price tables CPI'!F63*'Bill impact tables'!$O92*'Bill impact tables'!$P92 -> 223 | K92: =IFERROR(J92/I92-1,"N/A") -> 0 | O92: 100 | P92: 1
C94: Medium consumption customers
C95: Border | D95: =D$12 -> $ | I95: ='Price tables CPI'!E50*'Bill impact tables'!$O95+'Price tables CPI'!E61*'Bill impact tables'!$O95*'Bill impact tables'!$P95 -> 2850 | J95: ='Price tables CPI'!F50*'Bill impact tables'!$O95+'Price tables CPI'!F61*'Bill impact tables'!$O95*'Bill impact tables'!$P95 -> 2850 | K95: =IFERROR(J95/I95-1,"N/A") -> 0 | O95: 500 | P95: 1
C96: Murray | D96: =D$12 -> $ | I96: ='Price tables CPI'!E51*'Bill impact tables'!$O96+'Price tables CPI'!E62*'Bill impact tables'!$O96*'Bill impact tables'!$P96 -> 5245 | J96: ='Price tables CPI'!F51*'Bill impact tables'!$O96+'Price tables CPI'!F62*'Bill impact tables'!$O96*'Bill impact tables'!$P96 -> 5245 | K96: =IFERROR(J96/I96-1,"N/A") -> 0 | O96: 500 | P96: 1
C97: Murrumbidgee | D97: =D$12 -> $ | I97: ='Price tables CPI'!E52*'Bill impact tables'!$O97+'Price tables CPI'!E63*'Bill impact tables'!$O97*'Bill impact tables'!$P97 -> 1115 | J97: ='Price tables CPI'!F52*'Bill impact tables'!$O97+'Price tables CPI'!F63*'Bill impact tables'!$O97*'Bill impact tables'!$P97 -> 1115 | K97: =IFERROR(J97/I97-1,"N/A") -> 0 | O97: 500 | P97: 1
C99: Large consumption customers
C100: Border | D100: =D$12 -> $ | I100: ='Price tables CPI'!E50*'Bill impact tables'!$O100+'Price tables CPI'!E61*'Bill impact tables'!$O100*'Bill impact tables'!$P100 -> 5700 | J100: ='Price tables CPI'!F50*'Bill impact tables'!$O100+'Price tables CPI'!F61*'Bill impact tables'!$O100*'Bill impact tables'!$P100 -> 5700 | K100: =IFERROR(J100/I100-1,"N/A") -> 0 | O100: 1000 | P100: 1
C101: Murray | D101: =D$12 -> $ | I101: ='Price tables CPI'!E51*'Bill impact tables'!$O101+'Price tables CPI'!E62*'Bill impact tables'!$O101*'Bill impact tables'!$P101 -> 10490 | J101: ='Price tables CPI'!F51*'Bill impact tables'!$O101+'Price tables CPI'!F62*'Bill impact tables'!$O101*'Bill impact tables'!$P101 -> 10490 | K101: =IFERROR(J101/I101-1,"N/A") -> 0 | O101: 1000 | P101: 1
C102: Murrumbidgee | D102: =D$12 -> $ | I102: ='Price tables CPI'!E52*'Bill impact tables'!$O102+'Price tables CPI'!E63*'Bill impact tables'!$O102*'Bill impact tables'!$P102 -> 2230 | J102: ='Price tables CPI'!F52*'Bill impact tables'!$O102+'Price tables CPI'!F63*'Bill impact tables'!$O102*'Bill impact tables'!$P102 -> 2230 | K102: =IFERROR(J102/I102-1,"N/A") -> 0 | O102: 1000 | P102: 1
C104: GENERAL SECURITY
C105: Small consumption customers
C106: Border | D106: =D$12 -> $ | I106: ='Price tables CPI'!E54*'Bill impact tables'!$O106+'Price tables CPI'!E61*'Bill impact tables'!$O106*'Bill impact tables'!$P106 -> 228.6 | J106: ='Price tables CPI'!F54*'Bill impact tables'!$O106+'Price tables CPI'!F61*'Bill impact tables'!$O106*'Bill impact tables'!$P106 -> 228.6 | K106: =IFERROR(J106/I106-1,"N/A") -> 0 | O106: 100 | P106: 0.6
C107: Murray | D107: =D$12 -> $ | I107: ='Price tables CPI'!E55*'Bill impact tables'!$O107+'Price tables CPI'!E62*'Bill impact tables'!$O107*'Bill impact tables'!$P107 -> 491 | J107: ='Price tables CPI'!F55*'Bill impact tables'!$O107+'Price tables CPI'!F62*'Bill impact tables'!$O107*'Bill impact tables'!$P107 -> 491 | K107: =IFERROR(J107/I107-1,"N/A") -> 0 | O107: 100 | P107: 0.6
C108: Murrumbidgee | D108: =D$12 -> $ | I108: ='Price tables CPI'!E56*'Bill impact tables'!$O108+'Price tables CPI'!E63*'Bill impact tables'!$O108*'Bill impact tables'!$P108 -> 86.2 | J108: ='Price tables CPI'!F56*'Bill impact tables'!$O108+'Price tables CPI'!F63*'Bill impact tables'!$O108*'Bill impact tables'!$P108 -> 86.2 | K108: =IFERROR(J108/I108-1,"N/A") -> 0 | O108: 100 | P108: 0.6
C110: Medium consumption customers
C111: Border | D111: =D$12 -> $ | I111: ='Price tables CPI'!E54*'Bill impact tables'!$O111+'Price tables CPI'!E61*'Bill impact tables'!$O111*'Bill impact tables'!$P111 -> 1143 | J111: ='Price tables CPI'!F54*'Bill impact tables'!$O111+'Price tables CPI'!F61*'Bill impact tables'!$O111*'Bill impact tables'!$P111 -> 1143 | K111: =IFERROR(J111/I111-1,"N/A") -> 0 | O111: 500 | P111: 0.6
C112: Murray | D112: =D$12 -> $ | I112: ='Price tables CPI'!E55*'Bill impact tables'!$O112+'Price tables CPI'!E62*'Bill impact tables'!$O112*'Bill impact tables'!$P112 -> 2455 | J112: ='Price tables CPI'!F55*'Bill impact tables'!$O112+'Price tables CPI'!F62*'Bill impact tables'!$O112*'Bill impact tables'!$P112 -> 2455 | K112: =IFERROR(J112/I112-1,"N/A") -> 0 | O112: 500 | P112: 0.6
C113: Murrumbidgee | D113: =D$12 -> $ | I113: ='Price tables CPI'!E56*'Bill impact tables'!$O113+'Price tables CPI'!E63*'Bill impact tables'!$O113*'Bill impact tables'!$P113 -> 431 | J113: ='Price tables CPI'!F56*'Bill impact tables'!$O113+'Price tables CPI'!F63*'Bill impact tables'!$O113*'Bill impact tables'!$P113 -> 431 | K113: =IFERROR(J113/I113-1,"N/A") -> 0 | O113: 500 | P113: 0.6
C115: Large consumption customers
C116: Border | D116: =D$12 -> $ | I116: ='Price tables CPI'!E54*'Bill impact tables'!$O116+'Price tables CPI'!E61*'Bill impact tables'!$O116*'Bill impact tables'!$P116 -> 2286 | J116: ='Price tables CPI'!F54*'Bill impact tables'!$O116+'Price tables CPI'!F61*'Bill impact tables'!$O116*'Bill impact tables'!$P116 -> 2286 | K116: =IFERROR(J116/I116-1,"N/A") -> 0 | O116: 1000 | P116: 0.6
C117: Murray | D117: =D$12 -> $ | I117: ='Price tables CPI'!E55*'Bill impact tables'!$O117+'Price tables CPI'!E62*'Bill impact tables'!$O117*'Bill impact tables'!$P117 -> 4910 | J117: ='Price tables CPI'!F55*'Bill impact tables'!$O117+'Price tables CPI'!F62*'Bill impact tables'!$O117*'Bill impact tables'!$P117 -> 4910 | K117: =IFERROR(J117/I117-1,"N/A") -> 0 | O117: 1000 | P117: 0.6
C118: Murrumbidgee | D118: =D$12 -> $ | I118: ='Price tables CPI'!E56*'Bill impact tables'!$O118+'Price tables CPI'!E63*'Bill impact tables'!$O118*'Bill impact tables'!$P118 -> 862 | J118: ='Price tables CPI'!F56*'Bill impact tables'!$O118+'Price tables CPI'!F63*'Bill impact tables'!$O118*'Bill impact tables'!$P118 -> 862 | K118: =IFERROR(J118/I118-1,"N/A") -> 0 | O118: 1000 | P118: 0.6
C122: TABLE 4.8 - INDICATIVE BILLS FOR CUSTOMERS IN THE FRWS
I123: 2021-22 | J123: 2022-23 | K123: Bill analysis of based on ∆ in CPI
C126: Note: indicative bills for FRWS customers based on total usage in each customer class / customers within class.
C127: Energy Australia | D127: =D$12 -> $ | I127: =('Price tables CPI'!E102*'FRWS calcs'!$H$14+'Price tables CPI'!E107*'FRWS calcs'!$H$25+'Price tables CPI'!E112*'FRWS calcs'!$H$30)*1000 -> 4597920.624 | J127: =('Price tables CPI'!F102*'FRWS calcs'!$H$14+'Price tables CPI'!F107*'FRWS calcs'!$H$25+'Price tables CPI'!F112*'FRWS calcs'!$H$30)*1000 -> 4597920.624 | K127: =IFERROR(J127/I127-1,"N/A") -> 0 | O127: Based on FY23 forecast volumes and MAQs
C128: Raw water - minor customer | D128: =D$12 -> $ | I128: =('Price tables CPI'!E105*'FRWS calcs'!$H$15+'Price tables CPI'!E110*'FRWS calcs'!$H$26+'Price tables CPI'!E115*'FRWS calcs'!$H$31)/'Updated Volumes'!$AB$120*1000 -> 483.4974483 | J128: =('Price tables CPI'!F105*'FRWS calcs'!$H$15+'Price tables CPI'!F110*'FRWS calcs'!$H$26+'Price tables CPI'!F115*'FRWS calcs'!$H$31)/'Updated Volumes'!$AB$120*1000 -> 483.4974483 | K128: =IFERROR(J128/I128-1,"N/A") -> -2.220446049e-16
C129: Filtered water - minor customer | D129: =D$12 -> $ | I129: =('Price tables CPI'!E122*'FRWS calcs'!$H$16+'Price tables CPI'!E125*'FRWS calcs'!$H$27+'Price tables CPI'!E128*'FRWS calcs'!$H$32)/'Updated Volumes'!$AB$121*1000 -> 597.3990322 | J129: =('Price tables CPI'!F122*'FRWS calcs'!$H$16+'Price tables CPI'!F125*'FRWS calcs'!$H$27+'Price tables CPI'!F128*'FRWS calcs'!$H$32)/'Updated Volumes'!$AB$121*1000 -> 597.3990322 | K129: =IFERROR(J129/I129-1,"N/A") -> 0

Sheet Consumption forecast tables (hidden)
B3: WaterNSW’s forecast of demand for, or consumption of, infrastructure services for the 2022-23 financial year
B5: 2022-23 expected demand
B6: Valley | C6: Usage | D6: Entitlement volumes*
B7: Border | C7: ='Updated Volumes'!AB20 -> 133341.983 | D7: ='Updated Volumes'!AB41+'Updated Volumes'!AB52+'Updated Volumes'!AB63 -> 266359
B8: Gwydir | C8: ='Updated Volumes'!AB21 -> 209344.94 | D8: ='Updated Volumes'!AB42+'Updated Volumes'!AB53+'Updated Volumes'!AB64 -> 536884.9
B9: Namoi | C9: ='Updated Volumes'!AB22 -> 131738.605 | D9: ='Updated Volumes'!AB43+'Updated Volumes'!AB54+'Updated Volumes'!AB65 -> 265531.7
B10: Peel | C10: ='Updated Volumes'!AB23 -> 12429.8695 | D10: ='Updated Volumes'!AB44+'Updated Volumes'!AB55+'Updated Volumes'!AB66 -> 46678
B11: Lachlan | C11: ='Updated Volumes'!AB24 -> 169332.163 | D11: ='Updated Volumes'!AB45+'Updated Volumes'!AB56+'Updated Volumes'!AB67 -> 690435
B12: Macquarie | C12: ='Updated Volumes'!AB25 -> 216717.586 | D12: ='Updated Volumes'!AB46+'Updated Volumes'!AB57+'Updated Volumes'!AB68 -> 675135
B13: Murray | C13: ='Updated Volumes'!AB26 -> 1334267.523 | D13: ='Updated Volumes'!AB47+'Updated Volumes'!AB58+'Updated Volumes'!AB69 -> 2360497.3
B14: Murrumbidgee | C14: ='Updated Volumes'!AB27 -> 1516646.65 | D14: ='Updated Volumes'!AB48+'Updated Volumes'!AB59+'Updated Volumes'!AB70 -> 2705470
B15: Lowbidgee | C15: N/A | D15: ='Updated Volumes'!AB49+'Updated Volumes'!AB60+'Updated Volumes'!AB71 -> 747000
B16: Total | C16: =SUM(C7:C14) -> 3723819.319 | D16: =SUM(D7:D15) -> 8293990.9
B21: Fish River – Energy Australia | C21: ='Updated Volumes'!AB31/1000 -> 1781.0928 | D21: ='Updated Volumes'!AB124 -> 8184
B22: Fish River – Raw Water Minor customers | C22: ='Updated Volumes'!AB32 -> 51.2979 | D22: ='Updated Volumes'!AB125 -> 17.4
B23: Fish River – Filtered Water Minor customers | C23: ='Updated Volumes'!AB33 -> 100.13955 | D23: ='Updated Volumes'!AB126 -> 46.6
B24: Total | C24: =SUM(C21:C23) -> 1932.53025 | D24: =SUM(D21:D23) -> 8248
B30: Updated HS Premium
B32: Valley | C32: Updated 20-year average of actual annual water allocations | G32: Reliability Ratio | I32: Conversion factor | K32: High Security Premium
C33: HS Licences | E33: GS Licences
B34: Border | C34: ='MDB calcs'!H71 -> 1.000016021 | D34: / | E34: ='MDB calcs'!H60 -> 0.4331013315 | F34: = | G34: =C34/E34 -> 2.308965472 | H34: X | I34: ='2021 Determination Revenue'!H107 -> 1.25 | J34: = | K34: =G34*I34 -> 2.88620684 | M34: =K34='MDB calcs'!H112 -> TRUE
B35: Gwydir | C35: ='MDB calcs'!H72 -> 0.9998774141 | D35: / | E35: ='MDB calcs'!H61 -> 0.307238335 | F35: = | G35: =C35/E35 -> 3.254403179 | H35: X | I35: ='2021 Determination Revenue'!H108 -> 1.397322188 | J35: = | K35: =G35*I35 -> 4.547449769 | M35: =K35='MDB calcs'!H113 -> TRUE
B36: Namoi | C36: ='MDB calcs'!H73 -> 1.000090232 | D36: / | E36: ='MDB calcs'!H62 -> 0.3881393936 | F36: = | G36: 2.576626462 | H36: X | I36: ='2021 Determination Revenue'!H109 -> 1.25 | J36: = | K36: 3.220783077 | M36: =K36='MDB calcs'!H114 -> TRUE
B37: Peel | C37: ='MDB calcs'!H74 -> 0.969 | D37: / | E37: ='MDB calcs'!H63 -> 0.5528500657 | F37: = | G37: 1.752735615 | H37: X | I37: ='2021 Determination Revenue'!H110 -> 6.541945223 | J37: = | K37: 11.46630038 | M37: =K37='MDB calcs'!H115 -> TRUE
B38: Lachlan | C38: ='MDB calcs'!H75 -> 0.8221875962 | D38: / | E38: ='MDB calcs'!H64 -> 0.2599321139 | F38: = | G38: 3.163085868 | H38: X | I38: ='2021 Determination Revenue'!H111 -> 2.495217761 | J38: = | K38: 7.892588038 | M38: =K38='MDB calcs'!H116 -> TRUE
B39: Macquarie | C39: ='MDB calcs'!H76 -> 0.9999946311 | D39: / | E39: ='MDB calcs'!H65 -> 0.3025301876 | F39: = | G39: 3.305437514 | H39: X | I39: ='2021 Determination Revenue'!H112 -> 1.884834667 | J39: = | K39: 6.230203215 | M39: =K39='MDB calcs'!H117 -> TRUE
B40: Murray | C40: ='MDB calcs'!H77 -> 0.9448124119 | D40: / | E40: ='MDB calcs'!H66 -> 0.514404393 | F40: = | G40: 1.836711398 | H40: X | I40: ='2021 Determination Revenue'!H113 -> 1.308492142 | J40: = | K40: 2.403322432 | M40: =K40='MDB calcs'!H118 -> TRUE
B41: Murrumbidgee | C41: ='MDB calcs'!H78 -> 0.9661848809 | D41: / | E41: ='MDB calcs'!H67 -> 0.5394630324 | F41: = | G41: 1.791012216 | H41: X | I41: ='2021 Determination Revenue'!H114 -> 1.692969071 | J41: = | K41: 3.032128287 | M41: =K41='MDB calcs'!H119 -> TRUE
B48: WaterNSW’s estimate of demand or consumption for infrastructure services for the current, 2021-22 financial year
B52: Valley | C52: 2021-22 Year End Usage | D52: 2021-22 YTD Entitlements*
B53: Border | C53: ='Updated Volumes'!AA20 -> 139453.173 | D53: ='Updated Volumes'!AA41+'Updated Volumes'!AA52+'Updated Volumes'!AA63 -> 266359
B54: Gwydir | C54: ='Updated Volumes'!AA21 -> 220489.075 | D54: ='Updated Volumes'!AA42+'Updated Volumes'!AA53+'Updated Volumes'!AA64 -> 536885
B55: Namoi | C55: ='Updated Volumes'!AA22 -> 138240.9495 | D55: ='Updated Volumes'!AA43+'Updated Volumes'!AA54+'Updated Volumes'!AA65 -> 265532
B56: Peel | C56: ='Updated Volumes'!AA23 -> 12624.9545 | D56: ='Updated Volumes'!AA44+'Updated Volumes'!AA55+'Updated Volumes'!AA66 -> 46678
B57: Lachlan | C57: ='Updated Volumes'!AA24 -> 182100.323 | D57: ='Updated Volumes'!AA45+'Updated Volumes'!AA56+'Updated Volumes'!AA67 -> 690435
B58: Macquarie | C58: ='Updated Volumes'!AA25 -> 232544.636 | D58: ='Updated Volumes'!AA46+'Updated Volumes'!AA57+'Updated Volumes'!AA68 -> 675129
B59: Murray | C59: ='Updated Volumes'!AA26 -> 1379454.1 | D59: ='Updated Volumes'!AA47+'Updated Volumes'!AA58+'Updated Volumes'!AA69 -> 2350785
B60: Murrumbidgee | C60: ='Updated Volumes'!AA27 -> 1531632.031 | D60: ='Updated Volumes'!AA48+'Updated Volumes'!AA59+'Updated Volumes'!AA70 -> 2705467
B61: Lowbidgee | C61: N/A | D61: ='Updated Volumes'!AA49+'Updated Volumes'!AA60+'Updated Volumes'!AA71 -> 747000
B62: Total | C62: =SUM(C53:C60) -> 3836539.242 | D62: =SUM(D53:D61) -> 8284270
B67: Fish River – Energy Australia | C67: ='Updated Volumes'!AA31/1000 -> 1849.8113 | D67: ='Updated Volumes'!AA124 -> 8184
B68: Fish River – Raw Water Minor customers | C68: ='Updated Volumes'!AA32 -> 51.1608 | D68: ='Updated Volumes'!AA125 -> 17.4
B69: Fish River – Filtered Water Minor customers | C69: ='Updated Volumes'!AA33 -> 102.73255 | D69: ='Updated Volumes'!AA126 -> 46.6
B70: Total | C70: =SUM(C67:C69) -> 2003.70465 | D70: =SUM(D67:D69) -> 8248

Sheet WaterNSW data inputs (hidden)
D1: 1996-97 | E1: 1997-98 | F1: 1998-99 | G1: 1999-2000 | H1: 2000-01 | I1: 2001-02 | J1: 2002-03 | K1: 2003-04 | L1: 2004-05 | M1: 2005-06 | N1: 2006-07 | O1: 2007-08 | P1: 2008-09 | Q1: 2009-10 | R1: 2010-11 | S1: 2011-12 | T1: 2012-13 | U1: 2013-14 | V1: 2014-15 | W1: 2015-16 | X1: 2016-17 | Y1: 2017-18 | Z1: 2018-19 | AA1: 2019-20 | AB1: 2020-21 | AC1: 2021-22 YTD
B3: Murray Darling Basin and Coastal Valleys
B5: HS Entitlements
B6: Border | C6: ML | V6: 3122 | W6: 3121 | X6: 3141 | Y6: 3141 | Z6: 3141 | AA6: 3141 | AB6: 3141 | AC6: 3141
B7: Gwydir | C7: ML | V7: 26839.9 | W7: 26919.9 | X7: 26919.9 | Y7: 26920 | Z7: 26920 | AA7: 26920 | AB7: 27219.9 | AC7: 27220
B8: Namoi | C8: ML | V8: 8882 | W8: 8866 | X8: 8866 | Y8: 8866 | Z8: 8866 | AA8: 8859 | AB8: 8841 | AC8: 8841
B9: Peel | C9: ML | V9: 17367 | W9: 17367 | X9: 17367 | Y9: 17367 | Z9: 17367 | AA9: 17367 | AB9: 17367 | AC9: 17367
B10: Lachlan | C10: ML | V10: 57512 | W10: 57304 | X10: 57301 | Y10: 57252 | Z10: 57296 | AA10: 57269 | AB10: 57269 | AC10: 57269
B11: Macquarie | C11: ML | V11: 42720.5 | W11: 42712 | X11: 42688 | Y11: 42691 | Z11: 42666 | AA11: 42672 | AB11: 42669 | AC11: 42663
B12: Murray | C12: ML | V12: 261515 | W12: 263603.1 | X12: 263590.1 | Y12: 263575 | Z12: 267499 | AA12: 276920 | AB12: 276894.3 | AC12: 267182
B13: Murrumbidgee | C13: ML | V13: 438310.6 | W13: 438327.6 | X13: 438327.6 | Y13: 438328 | Z13: 441723 | AA13: 440472 | AB13: 440475 | AC13: 440472
B14: Lowbidgee | C14: ML
B15: North Coast | C15: ML | V15: 137 | W15: 137 | X15: 137
B16: Hunter | C16: ML | V16: 70729 | W16: 70714 | X16: 70714
B17: South Coast | C17: ML | V17: 1175 | W17: 1175 | X17: 1175
B18: Total | C18: ML | V18: =SUM(V6:V17) -> 928310 | W18: =SUM(W6:W17) -> 930246.6 | X18: =SUM(X6:X17) -> 930226.6
B20: GS Entitlements
B21: Border | C21: ML | V21: 263238 | W21: 263238 | X21: 263218 | Y21: 263218 | Z21: 263218 | AA21: 263218 | AB21: 263218 | AC21: 263218
B22: Gwydir | C22: ML | V22: 509665 | W22: 509665 | X22: 509665 | Y22: 509665 | Z22: 509665 | AA22: 509665 | AB22: 509665 | AC22: 509665
B23: Namoi | C23: ML | V23: 256211.5 | W23: 256211.5 | X23: 256211.5 | Y23: 256529 | Z23: 256529 | AA23: 256529 | AB23: 256690.7 | AC23: 256691
B24: Peel | C24: ML | V24: 30428 | W24: 30428 | X24: 30428 | Y24: 29635 | Z24: 29635 | AA24: 29635 | AB24: 29311 | AC24: 29311
B25: Lachlan | C25: ML | V25: 633346.4 | W25: 633166.4 | X25: 633166.4 | Y25: 633166 | Z25: 633166 | AA25: 633166 | AB25: 633166 | AC25: 633166
B26: Macquarie | C26: ML | V26: 632466 | W26: 632466.1 | X26: 632466.1 | Y26: 632466 | Z26: 632466 | AA26: 632466 | AB26: 632466 | AC26: 632466
B27: Murray | C27: ML | V27: 2081289.1 | W27: 2083271.1 | X27: 2083271.1 | Y27: 2083603 | Z27: 2083603 | AA27: 2083603 | AB27: 2083603 | AC27: 2083603
B28: Murrumbidgee | C28: ML | V28: 2267962.6 | W28: 2267962.6 | X28: 2267962.6 | Y28: 2267963 | Z28: 2267963 | AA28: 2264995 | AB28: 2264995 | AC28: 2264995
B29: Lowbidgee | C29: ML | V29: 747000 | W29: 747000 | X29: 747000 | AD29: Lowbidgee supplementary entitlements
B30: North Coast | C30: ML | V30: 9933 | W30: 9531 | X30: 9531
B31: Hunter | C31: ML | V31: 137573 | W31: 138109.1 | X31: 138109.1
B32: South Coast | C32: ML | V32: 13946 | W32: 13946 | X32: 13946
B33: Total | C33: ML | V33: =SUM(V21:V32) -> 7583058.6 | W33: =SUM(W21:W32) -> 7584994.8 | X33: =SUM(X21:X32) -> 7584974.8
B35: Supplementary Entitlements
B36: Border | C36: ML | V36: 120001 | W36: 120001 | Y36: 120001 | Z36: 120001 | AA36: 120001 | AB36: 120001 | AC36: 120001
B37: Gwydir | C37: ML | V37: 180046.8 | W37: 181397.8 | Y37: 181398 | Z37: 181398 | AA37: 181398 | AB37: 181398 | AC37: 181398
B38: Namoi | C38: ML | V38: 115479.7 | W38: 115479.7 | Y38: 115480 | Z38: 115480 | AA38: 115480 | AB38: 115480 | AC38: 115480
B39: Peel | C39: ML | Y39: 0 | Z39: 0 | AA39: - | AB39: - | AC39: -
B40: Lachlan | C40: ML | V40: 3125 | W40: 3125 | Y40: 3125 | Z40: 3125 | AA40: 3125 | AB40: 3125 | AC40: 3125
B41: Macquarie | C41: ML | V41: 49999.3 | W41: 49998.4 | Y41: 49998 | Z41: 49998 | AA41: 49998 | AB41: 49998 | AC41: 49998
B42: Murray | C42: ML | V42: 502579 | W42: 502579 | Y42: 502579 | Z42: 502579 | AA42: 502579 | AB42: 502579 | AC42: 502579
B43: Murrumbidgee | C43: ML | V43: 198780 | W43: 198780 | Y43: 198780 | Z43: 198780 | AA43: 201748 | AB43: 201748 | AC43: 201748 | AD43: Includes 2968ML Conveyance
B44: Lowbidgee | C44: ML
B45: North Coast | C45: ML
B46: Hunter | C46: ML | V46: 49275 | W46: 49275
B47: South Coast | C47: ML | V47: 1300 | W47: 1300
B48: Total | C48: ML | V48: =SUM(V36:V47) -> 1220585.8 | W48: =SUM(W36:W47) -> 1221935.9 | X48: =SUM(X36:X47) -> 0
AE49: 20 year rolling averages
B50: Total Usage (including Interstate trade usage) | D50: =D1 -> 1996-97 | E50: =E1 -> 1997-98 | F50: 1998-99 | G50: 1999-2000 | H50: 2000-01 | I50: 2001-02 | J50: 2002-03 | K50: 2003-04 | L50: 2004-05 | M50: 2005-06 | N50: 2006-07 | O50: 2007-08 | P50: 2008-09 | Q50: 2009-10 | R50: 2010-11 | S50: 2011-12 | T50: 2012-13 | U50: 2013-14 | V50: 2014-15 | W50: 2015-16 | X50: 2016-17 | Y50: 2017-18 | Z50: 2018-19 | AA50: 2019-20 | AB50: 2020-21 | AC50: 2021-22 YTD | AE50: To 2017-18 | AF50: To 2018-19 | AG50: To 2019-20 | AH50: To 2020-21
B51: Border | C51: ML | D51: 169812 | E51: 187883 | F51: 164331 | G51: 180863 | H51: 231793 | I51: 182622 | J51: 123803 | K51: 100542.36 | L51: 107564 | M51: 134417 | N51: 131934 | O51: 112269 | P51: 117688 | Q51: =100850+Q111 -> 110391.2 | R51: =163725+R111 -> 187024.6 | S51: =134200+S111 -> 160312 | T51: =197869+T111 -> 220696 | U51: 197467.6 | V51: 41672.9 | W51: 100403.8 | X51: 232303.3 | Y51: 139604.9 | Z51: 145591.3 | AA51: 10963.5 | AB51: 109569.2 | AE51: =AVERAGE(F51:Y51) -> 148885.133 | AF51: 147948.148 | AG51: 139453.173 | AH51: =AVERAGE(I51:AB51) -> 133341.983
B52: Gwydir | C52: ML | D52: 394616 | E52: 454913 | F52: 374762 | G52: 417837 | H52: 425315 | I52: 443145 | J52: 278986 | K52: 159250 | L52: 154840 | M52: 218496 | N52: 129467 | O52: 79132 | P52: 143199 | Q52: 46959 | R52: 245148 | S52: 200724.1 | T52: 428699.4 | U52: 408995.4 | V52: 153199.6 | W52: 85020.5 | X52: 332713 | Y52: 315045.7 | Z52: 121129.9 | AA52: 40316.9 | AB52: 202432.3 | AE52: 252046.685 | AF52: 239365.08 | AG52: 220489.075 | AH52: =AVERAGE(I52:AB52) -> 209344.94
B53: Namoi | C53: ML | D53: 198965.3 | E53: 323274.03 | F53: 216487.31 | G53: 246477.68 | H53: 248842.49 | I53: 280339.88 | J53: 236853.11 | K53: 80652.71 | L53: 96650 | M53: 141325.3 | N53: 66558.5 | O53: 51211.6 | P53: 97482 | Q53: 75152 | R53: 149958 | S53: 128271.7 | T53: 281246.7 | U53: 271541.5 | V53: 66353.9 | W53: 38334.8 | X53: 213598 | Y53: 180155.6 | Z53: 47490.3 | AA53: 12800.9 | AB53: 118795.6 | AE53: 158374.639 | AF53: 149924.7885 | AG53: 138240.9495 | AH53: =AVERAGE(I53:AB53) -> 131738.605
B54: Peel | C54: ML | D54: 5641 | E54: 16020 | F54: 5561 | G54: 7309 | H54: 10241 | I54: 14671 | J54: 21805 | K54: 13325 | L54: 15165 | M54: 14753 | N54: 9718 | O54: 9080 | P54: 10183 | Q54: 17517 | R54: 6915 | S54: 4218.7 | T54: 13317.1 | U54: 17412.7 | V54: 6052.9 | W54: 11011.5 | X54: 10365.9 | Y54: 22083.99 | Z54: 18581.8 | AA54: 6081.5 | AB54: 6339.3 | AE54: 12035.2895 | AF54: 12686.3295 | AG54: 12624.9545 | AH54: =AVERAGE(I54:AB54) -> 12429.8695
B55: Lachlan | C55: ML | D55: 436000 | E55: 414000 | F55: 278000 | G55: 285000 | H55: 407000 | I55: 439572.22 | J55: 237252.44 | K55: 43509.97 | L55: 21164.7 | M55: 112435.93 | N55: 57260.2 | O55: 30776.5 | P55: 27797.6 | Q55: 11786.7 | R55: 85698.8 | S55: 212768.7 | T55: 394082.4 | U55: 248401.7 | V55: 178283.2 | W55: 199222.9 | X55: 206757.9 | Y55: 347405.7 | Z55: 278111.3 | AA55: 102717.6 | AB55: 151636.8 | AE55: 191208.878 | AF55: 191214.443 | AG55: 182100.323 | AH55: =AVERAGE(I55:AB55) -> 169332.163
B56: Macquarie | C56: ML | D56: 348937 | E56: 403989 | F56: 336071 | G56: 385748 | H56: 464188 | I56: 545663.54 | J56: 375914.33 | K56: 174168.35 | L56: 63783.6 | M56: 180723 | N56: 204745 | O56: 30867 | P56: 65439 | Q56: 73820 | R56: 203146 | S56: 296617.9 | T56: 558856.4 | U56: 268934.1 | V56: 90827.3 | W56: 109532.9 | X56: 232194 | Y56: 399824.6 | Z56: 255839.3 | AA56: 55808.4 | AB56: 147647 | AE56: 253053.201 | AF56: 249041.616 | AG56: 232544.636 | AH56: 216717.586
B57: Murray | C57: ML | D57: =2372284+D117 -> 2562629.418 | E57: =1972013+E117 -> 2162358.418 | F57: =2063827+F117 -> 2254172.418 | G57: =1252922+G117 -> 1443267.418 | H57: =2224902+H117 -> 2415247.418 | I57: =2076048+I117 -> 2266393.418 | J57: =969209+J117 -> 1159554.418 | K57: =1306721+K117 -> 1497066.418 | L57: =1256888.7+L117 -> 1284123.7 | M57: =1646675.7+M117 -> 1692042.2 | N57: =559125.4+N117 -> 602536.1 | O57: =226167.1+O117 -> 289197.3 | P57: =302728.2+P117 -> 501322.4 | Q57: =414627.3+Q117 -> 679952.1 | R57: =767695.3+R117 -> 960984.6 | S57: =1667077.1+S117 -> 1848920.7 | T57: =2126107.4+T117 -> 2514563.7 | U57: =1721268.6+U117 -> 2056232.1 | V57: =1324505.1+V117 -> 1764682.1 | W57: =866584+W117 -> 1103217.1 | X57: 1877178.8 | Y57: 1701381.1 | Z57: 768313.3 | AA57: 634902.8 | AB57: 1482786.1 | AE57: 1495601.775 | AF57: 1421308.819 | AG57: 1380890.589 | AH57: 1334267.523
B58: Murrumbidgee | C58: ML | D58: =2611000+D118 -> 2671081.365 | E58: =2442000+E118 -> 2502081.365 | F58: =2119000+F118 -> 2179081.365 | G58: =1713000+G118 -> 1773081.365 | H58: =2198000+H118 -> 2258081.365 | I58: =2254000+I118 -> 2314081.365 | J58: =1730000+J118 -> 1790081.365 | K58: =1655000+K118 -> 1715081.365 | L58: =1533347.1+L118 -> 1534368.1 | M58: =1933143.7+M118 -> 1938642.7 | N58: =920634.7+N118 -> 952257.7 | O58: =458017.3+O118 -> 566132.6 | P58: =568580.5+P118 -> 929755.5 | Q58: =823399.1+Q118 -> 893689.5 | R58: =1279794.6+R118 -> 1364777.6 | S58: =1738400.1+S118 -> 1739421.3 | T58: =2276756.1+T118 -> 2353487.6 | U58: =1681318.3+U118 -> 1777486.6 | V58: =1787328.2+V118 -> 1883941.8 | W58: =1381017.5+W118 -> 1419128.5 | X58: 1902516.4 | Y58: 1715237.9 | Z58: 1012155.8 | AA58: 558857.8 | AB58: 1971831.5 | AE58: 1650016.599 | AF58: 1591670.321 | AG58: 1530959.143 | AH58: 1516646.65
B59: Lowbidgee | C59: ML | T59: 92544 | U59: 8392 | V59: 82587 | W59: 12840 | X59: 59350
B60: North Coast | C60: ML | L60: 767 | M60: 767 | N60: 1030.5 | O60: 786 | P60: 438.7 | Q60: 943.3 | R60: 55.3 | S60: 104 | T60: 476 | U60: 953.4 | V60: 102 | W60: 414.5 | X60: 300.8
B61: Hunter | C61: ML | D61: 150067 | E61: 168767 | F61: 102505 | G61: 118977 | H61: 94735 | I61: 110970 | J61: 181423 | K61: 142400 | L61: 122665 | M61: 159824.7 | N61: 101193.8 | O61: 106795.1 | P61: 112014.4 | Q61: 115810.9 | R61: 117117 | S61: 112713 | T61: 124313.9 | U61: 118474.3 | V61: 101450.4 | W61: 109614.1 | X61: 105140.8
B62: South Coast | C62: ML | L62: 6238 | M62: 6328 | N62: 5822.8 | O62: 5623 | P62: 5966.7 | Q62: 2006.14 | R62: 394 | S62: 1546.8 | T62: 3673.4 | U62: 3642.9 | V62: 2129.8 | W62: 2132.4 | X62: 4109.3
B63: Total | C63: ML | D63: =SUM(D51:D62) -> 6937749.082 | E63: 6633285.812 | F63: 5910971.092 | G63: 4858560.462 | H63: 6555443.272 | I63: 6597458.422 | J63: 4405672.662 | K63: 3925996.172 | L63: 3407329.1 | M63: 4599754.83 | N63: 2262523.6 | O63: 1281870.1 | P63: 2011286.3 | Q63: 2028027.84 | R63: 3321218.9 | S63: 4705618.9 | T63: 6985956.6 | U63: 5377934.3 | V63: 4371282.9 | W63: 3190873 | X63: 5176528.2 | AE63: =SUM(AE51:AE62) -> 4161222.2 | AF63: =SUM(AF51:AF62) -> 4003159.546 | AG63: 3837302.842 | AH63: =SUM(AH51:AH62) -> 3723819.319
B65: HS Usage | AG65: 2021 RV Determination
B66: Border | C66: ML | AG66: 139453.173
B67: Gwydir | C67: ML | AG67: 220489.075
B68: Namoi | C68: ML | AG68: 138240.9495
B69: Peel | C69: ML | AG69: 12624.9545
B70: Lachlan | C70: ML | AG70: 182100.323
B71: Macquarie | C71: ML | AG71: 232544.636
B72: Murray | C72: ML | AG72: 1379454.1
B73: Murrumbidgee | C73: ML | AG73: 1531632.031
B74: Lowbidgee | C74: ML
B75: North Coast | C75: ML
B76: Hunter | C76: ML
B77: South Coast | C77: ML
B78: Total | C78: ML | AG78: 3836539.242
B80: GS Usage
B81: Border | C81: ML
B82: Gwydir | C82: ML
B83: Namoi | C83: ML
B84: Peel | C84: ML
B85: Lachlan | C85: ML
B86: Macquarie | C86: ML
B87: Murray | C87: ML
B88: Murrumbidgee | C88: ML
B89: Lowbidgee | C89: ML
B90: North Coast | C90: ML
B91: Hunter | C91: ML
B92: South Coast | C92: ML
B93: Total | C93: ML
B95: Supplementary Usage
B96: Border | C96: ML
B97: Gwydir | C97: ML
B98: Namoi | C98: ML
B99: Peel | C99: ML
B100: Lachlan | C100: ML
B101: Macquarie | C101: ML
B102: Murray | C102: ML
B103: Murrumbidgee | C103: ML
B104: Lowbidgee | C104: ML
B105: North Coast | C105: ML
B106: Hunter | C106: ML
B107: South Coast | C107: ML
B108: Total | C108: ML
B110: Interstate Trade Usage
B111: Border | C111: ML | D111: 0 | E111: 0 | F111: 0 | G111: 0 | H111: 0 | I111: 0 | J111: 0 | K111: 0 | L111: 0 | M111: 0 | N111: 0 | O111: 0 | P111: 0 | Q111: 9541.2 | R111: 23299.6 | S111: 26112 | T111: 22827 | U111: 28028.1 | V111: 2014 | W111: 8825.8 | X111: 10339 | Y111: 6667 | Z111: 4657.5 | AA111: 214 | AB111: =123.3+1240.9 -> 1364.2
B112: Gwydir | C112: ML
B113: Namoi | C113: ML
B114: Peel | C114: ML
B115: Lachlan | C115: ML
B116: Macquarie | C116: ML
B117: Murray | C117: ML | D117: =AVERAGE($L$117:$AB$117) -> 190345.4176 | E117: 190345.4176 | F117: 190345.4176 | G117: 190345.4176 | H117: 190345.4176 | I117: =AVERAGE($L$117:$AB$117) -> 190345.4176 | J117: =AVERAGE($L$117:$AB$117) -> 190345.4176 | K117: =AVERAGE($L$117:$AB$117) -> 190345.4176 | L117: 27235 | M117: 45366.5 | N117: 43410.7 | O117: 63030.2 | P117: 198594.2 | Q117: 265324.8 | R117: 193289.3 | S117: 181843.6 | T117: 388456.3 | U117: 334963.5 | V117: 440177 | W117: 236633.1 | X117: 175992.1 | Y117: 71133.5 | Z117: 70700.8 | AA117: 194457 | AB117: =53193.6+252070.9 -> 305264.5 | AE117: Note: trade usage for Murray and Murrumbidgee prior to 2004-05, is based on an average of actual trades up to 2016-1. See row D to K
B118: Murrumbidgee | C118: ML | D118: =AVERAGE($L$118:$AB$118) -> 60081.36471 | E118: 60081.36471 | F118: 60081.36471 | G118: 60081.36471 | H118: 60081.36471 | I118: =AVERAGE($L$118:$AB$118) -> 60081.36471 | J118: =AVERAGE($L$118:$AB$118) -> 60081.36471 | K118: =AVERAGE($L$118:$AB$118) -> 60081.36471 | L118: 1021 | M118: 5499 | N118: 31623 | O118: 108115.3 | P118: 361175 | Q118: 70290.4 | R118: 84983 | S118: 1021.2 | T118: 76731.5 | U118: 96168.3 | V118: 96613.6 | W118: 38111 | X118: 0 | Y118: 3973 | Z118: 14821.6 | AA118: 24986 | AB118: =2499.3+3751 -> 6250.3
B119: Lowbidgee | C119: ML
B120: North Coast | C120: ML
B121: Hunter | C121: ML
B122: South Coast | C122: ML
B123: Total | C123: ML
B125: HS water allocations
B126: Border | C126: % | D126: 1 | E126: 1 | F126: 1 | G126: 1 | H126: 1 | I126: 1 | J126: 1 | K126: 1 | L126: 1 | M126: 1 | N126: 1 | O126: 1 | P126: 1 | Q126: 1 | R126: 1 | S126: 1 | T126: 1 | U126: 1 | V126: 1 | W126: 1.00032041 | X126: 1 | Y126: 1 | Z126: 1 | AA126: 1 | AB126: 1 | AC126: 1
B127: Gwydir | C127: % | D127: 1 | E127: 1 | F127: 1 | G127: 1 | H127: 1 | I127: 1 | J127: 1 | K127: 1 | L127: 1 | M127: 1 | N127: 1 | O127: 1 | P127: 1 | Q127: 1 | R127: 1 | S127: 1 | T127: 1 | U127: 1 | V127: 1 | W127: 0.9975482821 | X127: 1 | Y127: 1 | Z127: 1 | AA127: 1 | AB127: 1 | AC127: 1
B128: Namoi | C128: % | D128: 1 | E128: 1 | F128: 1 | G128: 1 | H128: 1 | I128: 1 | J128: 1 | K128: 1 | L128: 1 | M128: 1 | N128: 1 | O128: 1 | P128: 1 | Q128: 1 | R128: 1 | S128: 1 | T128: 1 | U128: 1 | V128: 1 | W128: 1.001804647 | X128: 1 | Y128: 1 | Z128: 1 | AA128: 1 | AB128: 1 | AC128: 1
B129: Peel | C129: % | D129: 1 | E129: 1 | F129: 1 | G129: 1 | H129: 1 | I129: 1 | J129: 1 | K129: 1 | L129: 1 | M129: 1 | N129: 1 | O129: 1 | P129: 1 | Q129: 1 | R129: 1 | S129: 1 | T129: 1 | U129: 1 | V129: 0.69 | W129: 1 | X129: 1 | Y129: 1 | Z129: 1 | AA129: 0.69 | AB129: 1 | AC129: 1
B130: Lachlan | C130: % | D130: 1 | E130: 1 | F130: 1 | G130: 1 | H130: 1 | I130: 1 | J130: 1 | K130: 0.7 | L130: 0.3 | M130: 1 | N130: 0.8 | O130: 0.3 | P130: 0.3 | Q130: 0.1 | R130: 1 | S130: 1 | T130: 1 | U130: 1 | V130: 1 | W130: 1.00365943 | X130: 1.000092494 | Y130: 1 | Z130: 1 | AA130: 0.94 | AB130: 1 | AC130: 1
B131: Macquarie | C131: % | D131: 1 | E131: 1 | F131: 1 | G131: 1 | H131: 1 | I131: 1 | J131: 1 | K131: 1 | L131: 1 | M131: 1 | N131: 1 | O131: 1 | P131: 1 | Q131: 1 | R131: 1 | S131: 1 | T131: 1 | U131: 1 | V131: 1 | W131: 0.9993233752 | X131: 1.000569247 | Y131: 1 | Z131: 1 | AA131: 1 | AB131: 1 | AC131: 1
B132: Murray | C132: % | D132: 1 | E132: 1 | F132: 1 | G132: 1 | H132: 1 | I132: 1 | J132: 1 | K132: 1 | L132: 0.97 | M132: 0.97 | N132: 0.69 | O132: 0.5 | P132: 0.95 | Q132: 0.97 | R132: 1 | S132: 1 | T132: 1 | U132: 1 | V132: 0.98 | W132: 0.9562482384 | X132: 1 | Y132: 0.99 | Z132: 0.97 | AA132: 0.97 | AB132: 0.98 | AC132: 1.02
B133: Murrumbidgee | C133: % | D133: 1 | E133: 1 | F133: 1 | G133: 1 | H133: 1 | I133: 1 | J133: 1 | K133: 0.95 | L133: 0.95 | M133: 0.95 | N133: 0.9 | O133: 0.9 | P133: 0.95 | Q133: 0.95 | R133: 0.9996 | S133: 1 | T133: 1 | U133: 0.975 | V133: 0.96 | W133: 0.9590313273 | X133: 1.000066292 | Y133: 0.96 | Z133: 0.95 | AA133: 0.97 | AB133: 1 | AC133: 1
B134: Lowbidgee | C134: %
B135: North Coast | C135: % | J135: 1 | K135: 1 | L135: 1 | M135: 1 | N135: 1 | O135: 1 | P135: 1 | Q135: 0 | R135: 1 | S135: 1 | T135: 1 | U135: 1 | V135: 1 | W135: 1 | X135: 1
B136: Hunter | C136: % | D136: 1 | E136: 1 | F136: 1 | G136: 1 | H136: 1 | I136: 1 | J136: 1 | K136: 1 | L136: 1 | M136: 1 | N136: 0.92 | O136: 1 | P136: 1 | Q136: 1 | R136: 1 | S136: 1 | T136: 1 | U136: 1 | V136: 1 | W136: 1.000113132 | X136: 1
B137: South Coast | C137: % | D137: 1 | E137: 1 | F137: 1 | G137: 1 | H137: 1 | I137: 1 | J137: 1 | K137: 1 | L137: 1 | M137: 1 | N137: 1 | O137: 1 | P137: 1 | Q137: 1 | R137: 0.8 | S137: 1 | T137: 1 | U137: 1 | V137: 1 | W137: 1 | X137: 1
B139: GS water allocations
B140: Border | C140: % | D140: 0.65 | E140: 0.55 | F140: 0.35 | G140: 0.6 | H140: 0.4 | I140: 0.9616007471 | J140: 0.1383938411 | K140: 0.5394395847 | L140: 0.1667033994 | M140: 0.3804940351 | N140: 0.2518418989 | O140: 0.2534980989 | P140: 0.2374144487 | Q140: 0.02688212928 | R140: 1 | S140: 1 | T140: 1 | U140: 0.3519 | V140: 0.1 | W140: 0.3270538448 | X140: 1.123804603 | Y140: 0.263 | Z140: 0.03 | AA140: 0 | AB140: 0.51 | AC140: 1.26
B141: Gwydir | C141: % | D141: 0.75 | E141: 0.82 | F141: 1.681853282 | G141: 0.4936573548 | H141: 0.4469803922 | I141: 0.2662352941 | J141: 0 | K141: 0.3071568627 | L141: 0.04598039216 | M141: 0.2188263003 | N141: 0 | O141: 0.2424509804 | P141: 0 | Q141: 0 | R141: 0.829 | S141: 1 | T141: 1.62 | U141: 0 | V141: 0 | W141: 0.05281508442 | X141: 0.7863017865 | Y141: 0.176 | Z141: 0 | AA141: 0.02 | AB141: 0.58 | AC141: 1.6
B142: Namoi | C142: % | D142: 1 | E142: 1 | F142: 2.319354839 | G142: 0.6670445344 | H142: 1.226720648 | I142: 0.2980161943 | J142: 0 | K142: 0.4646963563 | L142: 0.1413360324 | M142: 0.299757195 | N142: 0 | O142: 0.1362753036 | P142: 0.2373279352 | Q142: 0.005748987854 | R142: 1.093 | S142: 1.165 | T142: 1 | U142: 0.5318 | V142: 0.04 | W142: 0.02296149861 | X142: 1.236868369 | Y142: 0.11 | Z142: 0.05 | AA142: 0.02 | AB142: 0.91 | AC142: 0.82
B143: Peel | C143: % | D143: 0.65 | E143: 1 | F143: 1 | G143: 1 | H143: 1 | I143: 1 | J143: 0.6 | K143: 0.35 | L143: 0.65 | M143: 0.45 | N143: 0 | O143: 0.5 | P143: 0.8 | Q143: 0 | R143: 1 | S143: 1 | T143: 0.83 | U143: 0.45 | V143: 0 | W143: 0.170004601 | X143: 0.9999967136 | Y143: 1.027 | Z143: 0.38 | AA143: 0 | AB143: 0.85 | AC143: 1
B144: Lachlan | C144: % | D144: 1 | E144: 0.65 | F144: 1 | G144: 0.74 | H144: 0.84 | I144: 0.58 | J144: 0.03 | K144: 0 | L144: 0 | M144: 0.19 | N144: 0 | O144: 0 | P144: 0 | Q144: 0 | R144: 1 | S144: 1 | T144: 0 | U144: 0 | V144: 0.02 | W144: 0.2586422779 | X144: 1.38 | Y144: 0.05 | Z144: 0 | AA144: 0.01 | AB144: 0.68 | AC144: 1.68
B145: Macquarie | C145: % | D145: 0.85 | E145: 0.1 | F145: 1 | G145: 1 | H145: 1 | I145: 0.9 | J145: 0 | K145: 0.19 | L145: 0.09 | M145: 0.44 | N145: 0 | O145: 0.05 | P145: 0.1 | Q145: 0 | R145: 1 | S145: 0.49 | T145: 0.64 | U145: 0.0006 | V145: 0.02 | W145: 0.07000375198 | X145: 1 | Y145: 0.38 | Z145: 0 | AA145: 0 | AB145: 0.68 | AC145: 0.77
B146: Murray | C146: % | D146: 1 | E146: 0.84 | F146: 0.93 | G146: 0.35 | H146: 0.95 | I146: 1.05 | J146: 0.1 | K146: 0.55 | L146: 0.49 | M146: 0.63 | N146: 0 | O146: 0 | P146: 0.09 | Q146: 0.27 | R146: 1 | S146: 1 | T146: 1 | U146: 1 | V146: 0.65 | W146: 0.278087859 | X146: 1 | Y146: 0.51 | Z146: 0 | AA146: 0.12 | AB146: 0.55 | AC146: 1.08
B147: Murrumbidgee | C147: % | D147: 1 | E147: 0.9 | F147: 0.85 | G147: 0.78 | H147: 0.9 | I147: 0.72 | J147: 0.38 | K147: 0.41 | L147: 0.4 | M147: 0.54 | N147: 0.1 | O147: 0.13 | P147: 0.21 | Q147: 0.27 | R147: 1 | S147: 1 | T147: 1 | U147: 0.7998 | V147: 0.59 | W147: 0.4424602064 | X147: 1.000000441 | Y147: 0.517 | Z147: 0.07 | AA147: 0.21 | AB147: 1 | AC147: 1
B148: Lowbidgee | C148: %
B149: North Coast | C149: % | K149: 0.9 | L149: 1 | M149: 0.8 | N149: 1 | O149: 1 | P149: 1 | Q149: 0 | R149: 1 | S149: 1 | T149: 1 | U149: 1 | V149: 1 | W149: 1 | X149: 1
B150: Hunter | C150: % | D150: 1 | E150: 1 | F150: 1 | G150: 1 | H150: 1 | I150: 1 | J150: 1 | K150: 1 | L150: 1 | M150: 1 | N150: 0.35 | O150: 1 | P150: 1 | Q150: 1 | R150: 1 | S150: 1 | T150: 1 | U150: 1 | V150: 1 | W150: 1 | X150: 1
B151: South Coast | C151: % | D151: 0.8 | E151: 1 | F151: 0.8 | G151: 1 | H151: 0.8 | I151: 1 | J151: 0.7 | K151: 0.6 | L151: 0.45 | M151: 0.4 | N151: 0.8 | O151: 0.5 | P151: 0.4 | Q151: 0.05 | R151: 0.4 | S151: 0.7 | T151: 0.75 | U151: 0.67 | V151: 0.7 | W151: 0.4599956977 | X151: 0.7
B154: Fish River Water Supply Scheme
B156: MAQs
B157: Bulk Raw Water | C157: ML
B158: EnergyAustralia | C158: ML | V158: =W158 -> 8184 | W158: 8184 | X158: =W158 -> 8184 | Y158: 8184 | Z158: 8184 | AA158: =Z158 -> 8184 | AB158: =AA158 -> 8184 | AC158: 8184
B159: Sydney Catchment Authority | C159: ML | V159: =W159 -> 3650 | W159: 3650 | X159: =W159 -> 3650 | Y159: 3650 | Z159: 3650 | AA159: =Z159 -> 3650 | AB159: 3650 | AC159: 3650
B160: Oberon Council | C160: ML | V160: =W160 -> 1064 | W160: 1064 | X160: =W160 -> 1064 | Y160: 1064 | Z160: 1064 | AA160: 1064 | AB160: 1064 | AC160: 1064
B161: Individual Minor Customers | C161: ML | V161: =W161 -> 200 | W161: 200 | X161: =W161 -> 200 | Y161: 200 | Z161: 200 | AA161: 200 | AB161: 200 | AC161: 200 | AD161: Should be 0.2
B162: Lithgow Council | AC162: 100
B163: Bulk Filtered Water
B164: Lithgow Council | C164: ML | V164: =W164 -> 1778 | W164: 1778 | X164: =W164 -> 1778 | Y164: 1778 | Z164: 1778 | AA164: =Z164 -> 1778 | AB164: =AA164 -> 1778 | AC164: 1678
B165: Individual Minor Customers | C165: ML | V165: =W165 -> 200 | W165: 200 | X165: =W165 -> 200 | Y165: =X165 -> 200 | Z165: =Y165 -> 200 | AA165: 200 | AB165: 200 | AC165: 200 | AD165: Should be 0.2
AD166: 20 year rolling averages
B167: Usage
B168: Bulk Raw Water | C168: ML | AD168: To 2016-17 | AE168: To 2017-18 | AF168: To 2018-19 | AG168: To 2019-20 | AH168: To 2020-21
B169: EnergyAustralia | C169: ML | D169: 7451 | E169: 7243 | F169: 7204 | G169: 7294 | H169: 8137 | I169: 8359 | J169: 8303 | K169: 6734 | L169: 4960 | M169: 6367 | N169: 6590 | O169: 4367 | P169: 3597 | Q169: 3824 | R169: 4248 | S169: 4112 | T169: 5864 | U169: 5939 | V169: 1025 | W169: 2278 | X169: 1539.58 | Y169: 5512.6 | Z169: 4090.029 | AA169: 1204.987 | AB169: 1092.208 | AD169: 1540.506471
B170: Sydney Catchment Authority | C170: ML | D170: 3650 | E170: 3003 | F170: 3317 | G170: 3468 | H170: 3779 | I170: 3677 | J170: 4390 | K170: 3005 | L170: 1878 | M170: 2098 | N170: 3115 | O170: 1077 | P170: 250 | Q170: - | R170: 224 | S170: 43 | T170: 1014 | U170: 1457 | V170: 2043 | W170: 2170 | X170: 2171.677 | Y170: 3702 | Z170: 2882 | AA170: 1729 | AB170: 2790 | AD170: =AVERAGE(E170:X170) -> 2219.983 | AE170: 2256.772474 | AF170: 2233.877737 | AG170: 2142.351421 | AH170: 2090.298789
B171: Oberon Council | C171: ML | D171: 734 | E171: 827 | F171: 855 | G171: 767 | H171: 969 | I171: 838 | J171: 911 | K171: 732 | L171: 677 | M171: 725 | N171: 749 | O171: 601 | P171: 583 | Q171: 591 | R171: 618 | S171: 658 | T171: 585 | U171: 588 | V171: 588 | W171: 591 | X171: 549.54 | Y171: 645.1 | Z171: 761.051 | AA171: 664.92 | AB171: 560.838 | AD171: 700.127 | AE171: 691.032 | AF171: 686.33455 | AG171: 681.23055 | AH171: 660.82245
B172: Individual Minor Customers | C172: ML | D172: 72 | E172: 54 | F172: 48 | G172: 50 | H172: 50 | I172: 50 | J172: 66 | K172: 60 | L172: 45 | M172: 64 | N172: 47 | O172: 40 | P172: 42 | Q172: 40 | R172: 30 | S172: 36 | T172: 41 | U172: 54 | V172: 65 | W172: 51.097 | X172: 70.798 | Y172: 56.5 | Z172: 61.56 | AA172: 53.261 | AB172: 52.74 | AD172: 50.19475 | AE172: 50.31975 | AF172: 50.99775 | AG172: 51.1608 | AH172: 51.2978
B174: Bulk Filtered Water
B175: Lithgow Council | C175: ML | D175: 1098 | E175: 970 | F175: 898 | G175: 858 | H175: 927 | I175: 1019 | J175: 1183 | K175: 968 | L175: 735 | M175: 959 | N175: 795 | O175: 747 | P175: 748 | Q175: 747 | R175: 764 | S175: 755 | T175: 833 | U175: 795 | V175: 752 | W175: 766 | X175: 770 | Y175: 810.5 | Z175: 702.849 | AA175: 743.543 | AB175: 778.401 | AD175: =AVERAGE(E175:X175) -> 849.45 | AE175: 841.475 | AF175: 831.71745 | AG175: 825.9946 | AH175: 818.56465
B176: Individual Minor Customers | C176: ML | D176: 186 | E176: 138 | F176: 123 | G176: 129 | H176: 129 | I176: 129 | J176: 170 | K176: 155 | L176: 116 | M176: 164 | N176: 112 | O176: 110 | P176: 104 | Q176: 88 | R176: 97 | S176: 92 | T176: 65 | U176: 66 | V176: 80 | W176: 73.824 | X176: 65.659 | Y176: 75.3 | Z176: 82.214 | AA176: 80.654 | AB176: 77.14 | AD176: 110.32415 | AE176: 107.18915 | AF176: 105.14985 | AG176: 102.73255 | AH176: 100.13955
B178: Number of minor customers
B179: Bulk raw water | V179: 73 | W179: 77 | X179: 83 | Y179: 83 | Z179: 84 | AA179: 84 | AB179: 87
B180: Bulk filtered water | V180: 207 | W180: 230 | X180: 224 | Y180: 228 | Z180: 231 | AA180: 231 | AB180: 233
